Directorate,Department,Expenditure Type,Ref.Doc.1,Vendor Name,Expenditure Amount (exc VAT),Payment Date
Assurance,Assurance,Advertising,60067170,THE BARNETGROUP LIMITED,590.00,24/11/2016
Assurance,Assurance,Consumable Catering Supplies,80006711,CENTERPLATE UK LIMITED,343.75,10/11/2016
Assurance,Assurance,Equipment and Materials Purcha,80006298,D & R SIMMONS LIMITED,252.00,07/11/2016
Assurance,Assurance,Legal and Court Fees,60067143,CITY OF WESTMINSTER,"22,800.00",24/11/2016
Assurance,Assurance,Legal and Court Fees,60067158,CITY OF WESTMINSTER,"20,400.00",24/11/2016
Assurance,Assurance,Other Indirect Employee Expens,80006553,LBH MAYORS CHARITIES APPEAL AC,56.00,01/11/2016
Assurance,Assurance,Other Indirect Employee Expens,80006549,REDACTED - PERSONAL DATA,25.75,01/11/2016
Assurance,Assurance,Other Indirect Employee Expens,80006581,THE MAYOR'S CHARITIES,30.00,04/11/2016
Assurance,Assurance,Other Services,80006551,LONDON AUDIT GROUP,290.00,30/11/2016
Assurance,Assurance,Postage,10013506,ROYAL MAIL GROUP LIMITED,"3,934.08",11/11/2016
Assurance,Assurance,Postage,10013507,ROYAL MAIL GROUP LIMITED,"1,940.16",11/11/2016
Assurance,Assurance,Postage,10013508,ROYAL MAIL GROUP LIMITED,"1,374.21",11/11/2016
Assurance,Assurance,Postage,10013509,ROYAL MAIL GROUP LIMITED,"2,980.93",11/11/2016
Assurance,Assurance,Postage,10013510,ROYAL MAIL GROUP LIMITED,"1,040.32",11/11/2016
Assurance,Assurance,Postage,60061589,ROYAL MAIL GROUP LIMITED,"5,377.77",11/11/2016
Assurance,Assurance,Postage,60065767,ROYAL MAIL GROUP LIMITED,0.90,01/11/2016
Assurance,Assurance,Postage,60066201,ROYAL MAIL GROUP LIMITED,312.66,11/11/2016
Assurance,Assurance,Postage,60067172,ROYAL MAIL GROUP LIMITED,0.45,25/11/2016
Assurance,Assurance,Printing-Contract,60065666,BARNARD &  WESTWOOD LTD,87.56,09/11/2016
Assurance,Assurance,Professional Services,60065709,ELECTORAL REFORM SERVICES,"41,940.34",03/11/2016
Assurance,Assurance,Professional Services,60066162,ELECTORAL REFORM SERVICES,"28,198.03",07/11/2016
Assurance,Assurance,Professional Services,60066961,ELECTORAL REFORM SERVICES,"7,611.33",21/11/2016
Assurance,Assurance,Professional Services,60065789,PRICEWATERHOUSE COOPERS,"7,816.00",25/11/2016
Assurance,Assurance,Professional Services,60065829,PRICEWATERHOUSE COOPERS,"25,633.92",25/11/2016
Assurance,Assurance,Professional Services,60065855,PRICEWATERHOUSE COOPERS,"37,849.43",25/11/2016
Assurance,Assurance,Professional Services,60065868,PRICEWATERHOUSE COOPERS,"14,850.00",09/11/2016
Assurance,Assurance,Professional Services,80006709,RAF MUSEUM ENTERPRISES LTD,800.00,10/11/2016
Assurance,Assurance,Publications,60066815,REDACTED - PERSONAL DATA,250.00,25/11/2016
Assurance,Assurance,Rents,80006349,HAMPSTEAD GARDEN SUBURB SYNAGO,250.00,04/11/2016
Assurance,Assurance,Rents,60064926,LONDON COUNCILS,269.00,16/11/2016
Assurance,Assurance,Rents,10013494,MANOR DRIVE METHODIST CHURCH,600.00,01/11/2016
Assurance,Assurance,Rents,60067181,MOTT MACDONALD LTD/CAMBRIDGE EDUCATION,"5,025.00",24/11/2016
Assurance,Assurance,Rents,60067177,SARACENS LTD,"28,230.00",24/11/2016
Assurance,Assurance,Software Licences & Support,60065652,DEMOCRACY COUNTS LIMITED,"34,500.00",09/11/2016
Assurance,Assurance,Subscriptions,60064938,ASSOCIATION OF ELECTORAL ADMINISTRA,285.00,22/11/2016
Assurance,Assurance,Subscriptions,60066357,COMPANIES HOUSE,5.00,11/11/2016
Assurance,Assurance,Subscriptions,60066361,COMPANIES HOUSE,5.00,11/11/2016
Assurance,Assurance,Subscriptions,60066368,COMPANIES HOUSE,5.00,11/11/2016
Assurance,Assurance,Subscriptions,60066395,COMPANIES HOUSE,4.00,11/11/2016
Assurance,Assurance,Subscriptions,60066416,COMPANIES HOUSE,4.00,11/11/2016
Assurance,Assurance,Training,60064646,ASSOCIATION OF DEMOCRATIC SERVICES OFFIC,95.00,08/11/2016
Assurance,Assurance,Training,60067242,MEDIA FIRST LTD,"1,695.00",30/11/2016
Assurance,Assurance,Training,80006710,PREMIER PARTNERSHIPS,395.00,10/11/2016
Assurance,Assurance,Translation Exp / Interpret,60065669,REDACTED - PERSONAL DATA,"1,177.50",24/11/2016
Assurance,Assurance,Transport Hire Charges,80006577,BRITISH CHAUFFERS GUILD LIMITED,249.60,04/11/2016
Assurance,Assurance,Ttl IT & Comms,60064683,CONFABULATE LTD,"3,900.00",08/11/2016
Central Expenses,Central Expenses,Audit Fee,60066334,BDO LLP,"85,012.50",28/11/2016
Central Expenses,Central Expenses,Grant Payments,60067379,LONDON FIRE AND EMERGENCY,"15,000.00",29/11/2016
Central Expenses,Central Expenses,Grant Payments,60066175,TRANSPORT FOR LONDON,"107,434.59",04/11/2016
Central Expenses,Central Expenses,Insurance Claims,80007022,ADMIRAL INSURANCE,547.36,28/11/2016
Central Expenses,Central Expenses,Insurance Claims,80006531,AVIVA INSURANCE,"1,811.04",04/11/2016
Central Expenses,Central Expenses,Insurance Claims,80006813,BACON LANE SURGERY,50.00,16/11/2016
Central Expenses,Central Expenses,Insurance Claims,80006909,BAKERS SOLICITORS,"4,905.00",24/11/2016
Central Expenses,Central Expenses,Insurance Claims,80006185,BERRYMANS LACE MAWER,339.00,04/11/2016
Central Expenses,Central Expenses,Insurance Claims,60061211,CHARLES DUKES ASSESSORS,60.00,15/11/2016
Central Expenses,Central Expenses,Insurance Claims,60065063,CHARLES DUKES ASSESSORS,60.00,01/11/2016
Central Expenses,Central Expenses,Insurance Claims,80007028,DLG LEGAL SERVICES LTD,"6,876.97",28/11/2016
Central Expenses,Central Expenses,Insurance Claims,80006560,DWP COMPENSATION RECOVERY UNIT,647.00,02/11/2016
Central Expenses,Central Expenses,Insurance Claims,80006740,DWP COMPENSATION RECOVERY UNIT,816.00,15/11/2016
Central Expenses,Central Expenses,Insurance Claims,80006779,DWP COMPENSATION RECOVERY UNIT,866.00,15/11/2016
Central Expenses,Central Expenses,Insurance Claims,80006911,DWP COMPENSATION RECOVERY UNIT,637.00,24/11/2016
Central Expenses,Central Expenses,Insurance Claims,80007029,DWP COMPENSATION RECOVERY UNIT,615.00,28/11/2016
Central Expenses,Central Expenses,Insurance Claims,80007032,DWP COMPENSATION RECOVERY UNIT,637.00,28/11/2016
Central Expenses,Central Expenses,Insurance Claims,80007036,DWP COMPENSATION RECOVERY UNIT,627.00,28/11/2016
Central Expenses,Central Expenses,Insurance Claims,80007046,DWP COMPENSATION RECOVERY UNIT,627.00,29/11/2016
Central Expenses,Central Expenses,Insurance Claims,80007066,DWP COMPENSATION RECOVERY UNIT,647.00,29/11/2016
Central Expenses,Central Expenses,Insurance Claims,80006815,ESURE,"1,908.46",15/11/2016
Central Expenses,Central Expenses,Insurance Claims,80007045,FRIERN BARNET MEDICAL CENTRE,50.00,29/11/2016
Central Expenses,Central Expenses,Insurance Claims,80006739,HODGE JONES & ALLEN SOLICITORS,"8,115.00",15/11/2016
Central Expenses,Central Expenses,Insurance Claims,80006762,HOLMES & HILLS LLP,"24,000.00",15/11/2016
Central Expenses,Central Expenses,Insurance Claims,80006633,IME LAW,600.00,11/11/2016
Central Expenses,Central Expenses,Insurance Claims,60065668,JOHNSON AUSTIN PARTNERSHIP LLP,375.00,04/11/2016
Central Expenses,Central Expenses,Insurance Claims,60066861,JOHNSON AUSTIN PARTNERSHIP LLP,375.00,25/11/2016
Central Expenses,Central Expenses,Insurance Claims,60063356,LEGAL COSTS NEGOTIATORS,"1,470.42",16/11/2016
Central Expenses,Central Expenses,Insurance Claims,80007024,LYONS DAVIDSON SOLICITORS,986.09,25/11/2016
Central Expenses,Central Expenses,Insurance Claims,80006864,ROMAIN COLEMAN SOLICITORS,360.00,24/11/2016
Central Expenses,Central Expenses,Insurance Claims,80006519,SCOTT REES & CO,"6,500.00",04/11/2016
Central Expenses,Central Expenses,Insurance Claims,80006940,SLATER GORDON SOLUTIONS,"1,994.69",25/11/2016
Central Expenses,Central Expenses,Insurance Claims,80007027,SLATER GORDON SOLUTIONS,"1,544.54",25/11/2016
Central Expenses,Central Expenses,Insurance Claims,80006495,THOMPSONS SOLICITORS,"8,500.00",04/11/2016
Central Expenses,Central Expenses,Insurance Claims,80006640,TRUE PERSONAL INJURY SOLICITOR,600.00,11/11/2016
Central Expenses,Central Expenses,Insurance Claims,80006530,UK INSURANCE LTD,616.63,04/11/2016
Central Expenses,Central Expenses,Insurance Claims,80006841,UK INSURANCE LTD,"3,090.58",18/11/2016
Central Expenses,Central Expenses,Insurance Claims,80006843,UK INSURANCE LTD,"1,789.80",18/11/2016
Central Expenses,Central Expenses,Insurance Claims,60051653,WEIGHTMANS LLP,935.10,18/11/2016
Central Expenses,Central Expenses,Insurance Claims,60054084,WEIGHTMANS LLP,174.00,16/11/2016
Central Expenses,Central Expenses,Insurance Claims,60054649,WEIGHTMANS LLP,"1,000.00",22/11/2016
Central Expenses,Central Expenses,Insurance Claims,60054669,WEIGHTMANS LLP,"1,250.00",16/11/2016
Central Expenses,Central Expenses,Insurance Claims,60054671,WEIGHTMANS LLP,"1,000.00",22/11/2016
Central Expenses,Central Expenses,Insurance Claims,60057090,WEIGHTMANS LLP,"1,000.00",22/11/2016
Central Expenses,Central Expenses,Insurance Claims,60057116,WEIGHTMANS LLP,250.00,16/11/2016
Central Expenses,Central Expenses,Insurance Claims,60057761,WEIGHTMANS LLP,"1,912.50",16/11/2016
Central Expenses,Central Expenses,Insurance Claims,60058347,WEIGHTMANS LLP,"1,250.00",16/11/2016
Central Expenses,Central Expenses,Insurance Claims,60058390,WEIGHTMANS LLP,"1,250.00",16/11/2016
Central Expenses,Central Expenses,Insurance Claims,60064848,WEIGHTMANS LLP,"1,000.00",25/11/2016
Central Expenses,Central Expenses,Insurance Claims,60065512,WEIGHTMANS LLP,725.00,18/11/2016
Central Expenses,Central Expenses,Insurance Claims,60065514,WEIGHTMANS LLP,"3,747.33",24/11/2016
Central Expenses,Central Expenses,Insurance Claims,60065553,WEIGHTMANS LLP,237.50,22/11/2016
Central Expenses,Central Expenses,Insurance Claims,60065603,WEIGHTMANS LLP,785.18,01/11/2016
Central Expenses,Central Expenses,Insurance Claims,60065610,WEIGHTMANS LLP,75.00,01/11/2016
Central Expenses,Central Expenses,Insurance Claims,60065621,WEIGHTMANS LLP,759.90,01/11/2016
Central Expenses,Central Expenses,Insurance Claims,60065626,WEIGHTMANS LLP,687.50,01/11/2016
Central Expenses,Central Expenses,Insurance Claims,60065632,WEIGHTMANS LLP,184.00,01/11/2016
Central Expenses,Central Expenses,Other Establishments - Third P,EBX0143844,LEE VALLEY REGIONAL PARK AUTH.,"32,219.58",17/11/2016
Central Expenses,Central Expenses,Other Establishments - Third P,EBX0143418,LONDON PENSIONS FUND AUTHORITY,"49,627.80",16/11/2016
Commercial,Births Deaths & Marriages,Cleaning and domestic material,60066023,CHURCHILL CONTRACT SERVICES,624.26,30/11/2016
Commercial,Births Deaths & Marriages,Cleaning and domestic material,60066034,CHURCHILL CONTRACT SERVICES,664.48,30/11/2016
Commercial,Births Deaths & Marriages,Other Services,80006917,BLUE 9 SECURITY LIMITED,13.43,24/11/2016
Commercial,Births Deaths & Marriages,Other Services,80006685,LEE SECURITY LONDON LIMITED,40.00,24/11/2016
Commercial,Customer Support Group,Advertising,60064838,NEWSQUEST (LONDON) LIMITED,500.00,08/11/2016
Commercial,Customer Support Group,Books-CDs-Audio-Video,10013500,SM ELECTRICAL SERVICES,135.00,09/11/2016
Commercial,Customer Support Group,Books-CDs-Audio-Video,60066394,SM ELECTRICAL SERVICES,200.00,10/11/2016
Commercial,Customer Support Group,Building Repairs & Maintenance,60065376,ADAMS ENVIRONMENTAL LTD,500.00,16/11/2016
Commercial,Customer Support Group,Building Repairs & Maintenance,60066670,AJS LTD,7.84,16/11/2016
Commercial,Customer Support Group,Building Repairs & Maintenance,60066682,AJS LTD,296.87,17/11/2016
Commercial,Customer Support Group,Building Repairs & Maintenance,60066693,AJS LTD,296.87,17/11/2016
Commercial,Customer Support Group,Building Repairs & Maintenance,60066694,AJS LTD,70.56,16/11/2016
Commercial,Customer Support Group,Building Repairs & Maintenance,60066711,AJS LTD,296.87,17/11/2016
Commercial,Customer Support Group,Building Repairs & Maintenance,60066715,AJS LTD,164.64,16/11/2016
Commercial,Customer Support Group,Building Repairs & Maintenance,60066722,AJS LTD,296.87,17/11/2016
Commercial,Customer Support Group,Building Repairs & Maintenance,60066725,AJS LTD,296.87,17/11/2016
Commercial,Customer Support Group,Building Repairs & Maintenance,60066728,AJS LTD,47.04,16/11/2016
Commercial,Customer Support Group,Building Repairs & Maintenance,60066730,AJS LTD,54.88,16/11/2016
Commercial,Customer Support Group,Building Repairs & Maintenance,60066731,AJS LTD,296.87,17/11/2016
Commercial,Customer Support Group,Building Repairs & Maintenance,60066738,AJS LTD,109.76,16/11/2016
Commercial,Customer Support Group,Building Repairs & Maintenance,60066743,AJS LTD,296.87,17/11/2016
Commercial,Customer Support Group,Building Repairs & Maintenance,60066762,AJS LTD,94.08,16/11/2016
Commercial,Customer Support Group,Building Repairs & Maintenance,60066780,AJS LTD,86.24,16/11/2016
Commercial,Customer Support Group,Building Repairs & Maintenance,60066781,AJS LTD,296.87,17/11/2016
Commercial,Customer Support Group,Building Repairs & Maintenance,60066788,AJS LTD,525.28,18/11/2016
Commercial,Customer Support Group,Building Repairs & Maintenance,60066801,AJS LTD,133.28,18/11/2016
Commercial,Customer Support Group,Building Repairs & Maintenance,60066803,AJS LTD,250.88,18/11/2016
Commercial,Customer Support Group,Building Repairs & Maintenance,60066811,AJS LTD,125.44,18/11/2016
Commercial,Customer Support Group,Building Repairs & Maintenance,60066821,AJS LTD,86.24,18/11/2016
Commercial,Customer Support Group,Building Repairs & Maintenance,60066837,AJS LTD,368.48,18/11/2016
Commercial,Customer Support Group,Building Repairs & Maintenance,60066859,AJS LTD,266.56,18/11/2016
Commercial,Customer Support Group,Building Repairs & Maintenance,60066863,AJS LTD,141.12,18/11/2016
Commercial,Customer Support Group,Building Repairs & Maintenance,60066876,AJS LTD,94.08,18/11/2016
Commercial,Customer Support Group,Building Repairs & Maintenance,60066877,AJS LTD,196.00,18/11/2016
Commercial,Customer Support Group,Building Repairs & Maintenance,60065983,DOORWAY-MAINTENANCE CO.,180.00,10/11/2016
Commercial,Customer Support Group,Building Repairs & Maintenance,60065564,EUROLOOS LTD,"2,560.00",04/11/2016
Commercial,Customer Support Group,Building Repairs & Maintenance,60065128,HERTEL (UK) LTD,266.38,04/11/2016
Commercial,Customer Support Group,Building Repairs & Maintenance,60065138,HERTEL (UK) LTD,110.00,04/11/2016
Commercial,Customer Support Group,Building Repairs & Maintenance,60065163,HERTEL (UK) LTD,325.00,04/11/2016
Commercial,Customer Support Group,Building Repairs & Maintenance,60065178,HERTEL (UK) LTD,657.13,04/11/2016
Commercial,Customer Support Group,Building Repairs & Maintenance,60065179,HERTEL (UK) LTD,400.00,04/11/2016
Commercial,Customer Support Group,Building Repairs & Maintenance,60065116,LIFT & ENGINEERING SERVICES LTD,47.10,15/11/2016
Commercial,Customer Support Group,Building Repairs & Maintenance,60065132,LIFT & ENGINEERING SERVICES LTD,47.10,15/11/2016
Commercial,Customer Support Group,Building Repairs & Maintenance,60065134,LIFT & ENGINEERING SERVICES LTD,47.10,15/11/2016
Commercial,Customer Support Group,Building Repairs & Maintenance,60065169,LIFT & ENGINEERING SERVICES LTD,94.21,15/11/2016
Commercial,Customer Support Group,Building Repairs & Maintenance,60065232,LIFT & ENGINEERING SERVICES LTD,145.00,17/11/2016
Commercial,Customer Support Group,Building Repairs & Maintenance,60065283,LIFT & ENGINEERING SERVICES LTD,201.38,17/11/2016
Commercial,Customer Support Group,Building Repairs & Maintenance,60065341,LIFT & ENGINEERING SERVICES LTD,232.00,17/11/2016
Commercial,Customer Support Group,Building Repairs & Maintenance,60065348,LIFT & ENGINEERING SERVICES LTD,116.00,17/11/2016
Commercial,Customer Support Group,Building Repairs & Maintenance,60065374,LIFT & ENGINEERING SERVICES LTD,116.00,17/11/2016
Commercial,Customer Support Group,Building Repairs & Maintenance,60065384,LIFT & ENGINEERING SERVICES LTD,232.00,17/11/2016
Commercial,Customer Support Group,Building Repairs & Maintenance,60065608,LIFT & ENGINEERING SERVICES LTD,145.00,22/11/2016
Commercial,Customer Support Group,Building Repairs & Maintenance,60066093,LIFT & ENGINEERING SERVICES LTD,"1,327.00",25/11/2016
Commercial,Customer Support Group,Building Repairs & Maintenance,60066609,LIFT & ENGINEERING SERVICES LTD,222.06,17/11/2016
Commercial,Customer Support Group,Building Repairs & Maintenance,60066610,LIFT & ENGINEERING SERVICES LTD,222.06,16/11/2016
Commercial,Customer Support Group,Building Repairs & Maintenance,60066613,LIFT & ENGINEERING SERVICES LTD,222.06,17/11/2016
Commercial,Customer Support Group,Building Repairs & Maintenance,60066618,LIFT & ENGINEERING SERVICES LTD,222.06,17/11/2016
Commercial,Customer Support Group,Building Repairs & Maintenance,60066626,LIFT & ENGINEERING SERVICES LTD,222.06,17/11/2016
Commercial,Customer Support Group,Building Repairs & Maintenance,60066632,LIFT & ENGINEERING SERVICES LTD,222.06,17/11/2016
Commercial,Customer Support Group,Building Repairs & Maintenance,60066635,LIFT & ENGINEERING SERVICES LTD,222.06,17/11/2016
Commercial,Customer Support Group,Building Repairs & Maintenance,60066642,LIFT & ENGINEERING SERVICES LTD,222.06,17/11/2016
Commercial,Customer Support Group,Building Repairs & Maintenance,60066654,LIFT & ENGINEERING SERVICES LTD,222.06,17/11/2016
Commercial,Customer Support Group,Building Repairs & Maintenance,60066792,LIFT & ENGINEERING SERVICES LTD,94.21,18/11/2016
Commercial,Customer Support Group,Building Repairs & Maintenance,60066793,LIFT & ENGINEERING SERVICES LTD,47.10,21/11/2016
Commercial,Customer Support Group,Building Repairs & Maintenance,60066796,LIFT & ENGINEERING SERVICES LTD,70.66,21/11/2016
Commercial,Customer Support Group,Building Repairs & Maintenance,60066799,LIFT & ENGINEERING SERVICES LTD,94.21,21/11/2016
Commercial,Customer Support Group,Building Repairs & Maintenance,60066805,LIFT & ENGINEERING SERVICES LTD,128.81,21/11/2016
Commercial,Customer Support Group,Building Repairs & Maintenance,60066808,LIFT & ENGINEERING SERVICES LTD,70.66,21/11/2016
Commercial,Customer Support Group,Building Repairs & Maintenance,60066812,LIFT & ENGINEERING SERVICES LTD,70.66,21/11/2016
Commercial,Customer Support Group,Building Repairs & Maintenance,60066817,LIFT & ENGINEERING SERVICES LTD,47.10,21/11/2016
Commercial,Customer Support Group,Building Repairs & Maintenance,60066823,LIFT & ENGINEERING SERVICES LTD,70.66,21/11/2016
Commercial,Customer Support Group,Building Repairs & Maintenance,60066831,LIFT & ENGINEERING SERVICES LTD,94.21,21/11/2016
Commercial,Customer Support Group,Building Repairs & Maintenance,60066832,LIFT & ENGINEERING SERVICES LTD,94.21,21/11/2016
Commercial,Customer Support Group,Building Repairs & Maintenance,60066833,LIFT & ENGINEERING SERVICES LTD,94.21,21/11/2016
Commercial,Customer Support Group,Building Repairs & Maintenance,60066838,LIFT & ENGINEERING SERVICES LTD,94.21,21/11/2016
Commercial,Customer Support Group,Building Repairs & Maintenance,60066839,LIFT & ENGINEERING SERVICES LTD,222.06,21/11/2016
Commercial,Customer Support Group,Building Repairs & Maintenance,60066844,LIFT & ENGINEERING SERVICES LTD,70.66,21/11/2016
Commercial,Customer Support Group,Building Repairs & Maintenance,60066848,LIFT & ENGINEERING SERVICES LTD,94.21,21/11/2016
Commercial,Customer Support Group,Building Repairs & Maintenance,60066849,LIFT & ENGINEERING SERVICES LTD,94.21,18/11/2016
Commercial,Customer Support Group,Building Repairs & Maintenance,60066853,LIFT & ENGINEERING SERVICES LTD,94.21,18/11/2016
Commercial,Customer Support Group,Building Repairs & Maintenance,60066854,LIFT & ENGINEERING SERVICES LTD,94.21,21/11/2016
Commercial,Customer Support Group,Building Repairs & Maintenance,60066857,LIFT & ENGINEERING SERVICES LTD,250.92,30/11/2016
Commercial,Customer Support Group,Building Repairs & Maintenance,60066865,LIFT & ENGINEERING SERVICES LTD,70.66,21/11/2016
Commercial,Customer Support Group,Building Repairs & Maintenance,60066866,LIFT & ENGINEERING SERVICES LTD,47.10,21/11/2016
Commercial,Customer Support Group,Building Repairs & Maintenance,60066873,LIFT & ENGINEERING SERVICES LTD,94.21,21/11/2016
Commercial,Customer Support Group,Building Repairs & Maintenance,60066879,LIFT & ENGINEERING SERVICES LTD,222.06,21/11/2016
Commercial,Customer Support Group,Building Repairs & Maintenance,60025843,OAKRAY LIMITED,102.28,02/11/2016
Commercial,Customer Support Group,Building Repairs & Maintenance,60028416,OAKRAY LIMITED,131.91,02/11/2016
Commercial,Customer Support Group,Building Repairs & Maintenance,60037266,OAKRAY LIMITED,500.00,08/11/2016
Commercial,Customer Support Group,Building Repairs & Maintenance,60043418,OAKRAY LIMITED,"1,300.02",02/11/2016
Commercial,Customer Support Group,Building Repairs & Maintenance,60043607,OAKRAY LIMITED,176.00,03/11/2016
Commercial,Customer Support Group,Building Repairs & Maintenance,60047614,OAKRAY LIMITED,64.00,16/11/2016
Commercial,Customer Support Group,Building Repairs & Maintenance,60047650,OAKRAY LIMITED,64.00,16/11/2016
Commercial,Customer Support Group,Building Repairs & Maintenance,60047682,OAKRAY LIMITED,64.00,07/11/2016
Commercial,Customer Support Group,Building Repairs & Maintenance,60059403,OAKRAY LIMITED,88.00,07/11/2016
Commercial,Customer Support Group,Building Repairs & Maintenance,60059404,OAKRAY LIMITED,162.00,07/11/2016
Commercial,Customer Support Group,Building Repairs & Maintenance,60059443,OAKRAY LIMITED,80.00,07/11/2016
Commercial,Customer Support Group,Building Repairs & Maintenance,60059452,OAKRAY LIMITED,246.09,07/11/2016
Commercial,Customer Support Group,Building Repairs & Maintenance,60059472,OAKRAY LIMITED,64.00,07/11/2016
Commercial,Customer Support Group,Building Repairs & Maintenance,60059491,OAKRAY LIMITED,72.00,07/11/2016
Commercial,Customer Support Group,Building Repairs & Maintenance,60059499,OAKRAY LIMITED,96.00,07/11/2016
Commercial,Customer Support Group,Building Repairs & Maintenance,60059501,OAKRAY LIMITED,112.00,07/11/2016
Commercial,Customer Support Group,Building Repairs & Maintenance,60059502,OAKRAY LIMITED,96.00,07/11/2016
Commercial,Customer Support Group,Building Repairs & Maintenance,60059504,OAKRAY LIMITED,96.00,07/11/2016
Commercial,Customer Support Group,Building Repairs & Maintenance,60059505,OAKRAY LIMITED,96.00,07/11/2016
Commercial,Customer Support Group,Building Repairs & Maintenance,60059508,OAKRAY LIMITED,64.00,07/11/2016
Commercial,Customer Support Group,Building Repairs & Maintenance,60064644,OAKRAY LIMITED,556.92,08/11/2016
Commercial,Customer Support Group,Building Repairs & Maintenance,60065778,OAKRAY LIMITED,359.36,25/11/2016
Commercial,Customer Support Group,Building Repairs & Maintenance,60065779,OAKRAY LIMITED,96.00,25/11/2016
Commercial,Customer Support Group,Building Repairs & Maintenance,60065780,OAKRAY LIMITED,72.00,25/11/2016
Commercial,Customer Support Group,Building Repairs & Maintenance,60065781,OAKRAY LIMITED,64.00,25/11/2016
Commercial,Customer Support Group,Building Repairs & Maintenance,60065784,OAKRAY LIMITED,747.50,25/11/2016
Commercial,Customer Support Group,Building Repairs & Maintenance,60065790,OAKRAY LIMITED,160.00,25/11/2016
Commercial,Customer Support Group,Building Repairs & Maintenance,60065791,OAKRAY LIMITED,72.00,25/11/2016
Commercial,Customer Support Group,Building Repairs & Maintenance,60065795,OAKRAY LIMITED,359.36,25/11/2016
Commercial,Customer Support Group,Building Repairs & Maintenance,60065799,OAKRAY LIMITED,80.00,24/11/2016
Commercial,Customer Support Group,Building Repairs & Maintenance,60065805,OAKRAY LIMITED,80.00,25/11/2016
Commercial,Customer Support Group,Building Repairs & Maintenance,60065807,OAKRAY LIMITED,128.00,25/11/2016
Commercial,Customer Support Group,Building Repairs & Maintenance,60065809,OAKRAY LIMITED,80.00,25/11/2016
Commercial,Customer Support Group,Building Repairs & Maintenance,60065810,OAKRAY LIMITED,48.00,25/11/2016
Commercial,Customer Support Group,Building Repairs & Maintenance,60065812,OAKRAY LIMITED,128.00,24/11/2016
Commercial,Customer Support Group,Building Repairs & Maintenance,60065814,OAKRAY LIMITED,96.00,25/11/2016
Commercial,Customer Support Group,Building Repairs & Maintenance,60065815,OAKRAY LIMITED,80.00,25/11/2016
Commercial,Customer Support Group,Building Repairs & Maintenance,60065817,OAKRAY LIMITED,64.00,25/11/2016
Commercial,Customer Support Group,Building Repairs & Maintenance,60065822,OAKRAY LIMITED,144.79,25/11/2016
Commercial,Customer Support Group,Building Repairs & Maintenance,60065825,OAKRAY LIMITED,64.00,25/11/2016
Commercial,Customer Support Group,Building Repairs & Maintenance,60065828,OAKRAY LIMITED,88.00,24/11/2016
Commercial,Customer Support Group,Building Repairs & Maintenance,60065830,OAKRAY LIMITED,94.50,24/11/2016
Commercial,Customer Support Group,Building Repairs & Maintenance,60065833,OAKRAY LIMITED,72.00,25/11/2016
Commercial,Customer Support Group,Building Repairs & Maintenance,60065847,OAKRAY LIMITED,64.00,25/11/2016
Commercial,Customer Support Group,Building Repairs & Maintenance,60065848,OAKRAY LIMITED,80.00,25/11/2016
Commercial,Customer Support Group,Building Repairs & Maintenance,60065850,OAKRAY LIMITED,242.28,25/11/2016
Commercial,Customer Support Group,Building Repairs & Maintenance,60065857,OAKRAY LIMITED,72.00,25/11/2016
Commercial,Customer Support Group,Building Repairs & Maintenance,60065858,OAKRAY LIMITED,150.08,25/11/2016
Commercial,Customer Support Group,Building Repairs & Maintenance,60065859,OAKRAY LIMITED,48.00,25/11/2016
Commercial,Customer Support Group,Building Repairs & Maintenance,60065991,OAKRAY LIMITED,56.00,04/11/2016
Commercial,Customer Support Group,Building Repairs & Maintenance,60066019,OAKRAY LIMITED,64.00,04/11/2016
Commercial,Customer Support Group,Building Repairs & Maintenance,60066066,OAKRAY LIMITED,"2,967.72",04/11/2016
Commercial,Customer Support Group,Building Repairs & Maintenance,60066070,OAKRAY LIMITED,80.00,04/11/2016
Commercial,Customer Support Group,Building Repairs & Maintenance,60066078,OAKRAY LIMITED,144.00,04/11/2016
Commercial,Customer Support Group,Building Repairs & Maintenance,60066851,OAKRAY LIMITED,88.00,18/11/2016
Commercial,Customer Support Group,Building Repairs & Maintenance,60065803,OFFICE DEPOT UK LTD,129.10,08/11/2016
Commercial,Customer Support Group,Building Repairs & Maintenance,60065305,RGE SERVICES,108.80,10/11/2016
Commercial,Customer Support Group,Building Repairs & Maintenance,60065346,RGE SERVICES,184.72,10/11/2016
Commercial,Customer Support Group,Building Repairs & Maintenance,60065369,RGE SERVICES,551.12,07/11/2016
Commercial,Customer Support Group,Building Repairs & Maintenance,60065392,RGE SERVICES,171.30,10/11/2016
Commercial,Customer Support Group,Building Repairs & Maintenance,60065394,RGE SERVICES,86.17,10/11/2016
Commercial,Customer Support Group,Building Repairs & Maintenance,60065402,RGE SERVICES,284.34,10/11/2016
Commercial,Customer Support Group,Building Repairs & Maintenance,60065414,RGE SERVICES,72.40,10/11/2016
Commercial,Customer Support Group,Building Repairs & Maintenance,60065416,RGE SERVICES,"1,686.32",10/11/2016
Commercial,Customer Support Group,Building Repairs & Maintenance,60065431,RGE SERVICES,62.00,10/11/2016
Commercial,Customer Support Group,Building Repairs & Maintenance,60065438,RGE SERVICES,75.72,10/11/2016
Commercial,Customer Support Group,Building Repairs & Maintenance,60065450,RGE SERVICES,155.97,10/11/2016
Commercial,Customer Support Group,Building Repairs & Maintenance,60065452,RGE SERVICES,62.00,10/11/2016
Commercial,Customer Support Group,Building Repairs & Maintenance,60065483,RGE SERVICES,190.65,10/11/2016
Commercial,Customer Support Group,Building Repairs & Maintenance,60065485,RGE SERVICES,128.51,10/11/2016
Commercial,Customer Support Group,Building Repairs & Maintenance,60066047,RGE SERVICES,"2,618.53",10/11/2016
Commercial,Customer Support Group,Building Repairs & Maintenance,60066364,RGE SERVICES,211.01,17/11/2016
Commercial,Customer Support Group,Building Repairs & Maintenance,60066374,RGE SERVICES,101.55,17/11/2016
Commercial,Customer Support Group,Building Repairs & Maintenance,60066380,RGE SERVICES,150.00,17/11/2016
Commercial,Customer Support Group,Building Repairs & Maintenance,60066393,RGE SERVICES,55.90,17/11/2016
Commercial,Customer Support Group,Building Repairs & Maintenance,60066398,RGE SERVICES,62.00,17/11/2016
Commercial,Customer Support Group,Building Repairs & Maintenance,60066427,RGE SERVICES,240.50,17/11/2016
Commercial,Customer Support Group,Building Repairs & Maintenance,60012660,S W BRUCE & CO LTD,80.67,16/11/2016
Commercial,Customer Support Group,Building Repairs & Maintenance,60042846,S W BRUCE & CO LTD,106.42,16/11/2016
Commercial,Customer Support Group,Building Repairs & Maintenance,60043230,S W BRUCE & CO LTD,169.83,15/11/2016
Commercial,Customer Support Group,Building Repairs & Maintenance,60064378,S W BRUCE & CO LTD,360.09,02/11/2016
Commercial,Customer Support Group,Building Repairs & Maintenance,60064387,S W BRUCE & CO LTD,371.45,02/11/2016
Commercial,Customer Support Group,Building Repairs & Maintenance,60064754,S W BRUCE & CO LTD,833.28,01/11/2016
Commercial,Customer Support Group,Building Repairs & Maintenance,60064755,S W BRUCE & CO LTD,131.44,01/11/2016
Commercial,Customer Support Group,Building Repairs & Maintenance,60064757,S W BRUCE & CO LTD,34.44,01/11/2016
Commercial,Customer Support Group,Building Repairs & Maintenance,60064763,S W BRUCE & CO LTD,78.11,01/11/2016
Commercial,Customer Support Group,Building Repairs & Maintenance,60064764,S W BRUCE & CO LTD,169.99,01/11/2016
Commercial,Customer Support Group,Building Repairs & Maintenance,60064765,S W BRUCE & CO LTD,71.86,01/11/2016
Commercial,Customer Support Group,Building Repairs & Maintenance,60064767,S W BRUCE & CO LTD,83.73,01/11/2016
Commercial,Customer Support Group,Building Repairs & Maintenance,60064768,S W BRUCE & CO LTD,120.67,01/11/2016
Commercial,Customer Support Group,Building Repairs & Maintenance,60064771,S W BRUCE & CO LTD,833.88,01/11/2016
Commercial,Customer Support Group,Building Repairs & Maintenance,60064777,S W BRUCE & CO LTD,687.10,01/11/2016
Commercial,Customer Support Group,Building Repairs & Maintenance,60064782,S W BRUCE & CO LTD,109.04,01/11/2016
Commercial,Customer Support Group,Building Repairs & Maintenance,60064783,S W BRUCE & CO LTD,88.34,01/11/2016
Commercial,Customer Support Group,Building Repairs & Maintenance,60064786,S W BRUCE & CO LTD,76.36,01/11/2016
Commercial,Customer Support Group,Building Repairs & Maintenance,60064795,S W BRUCE & CO LTD,600.00,01/11/2016
Commercial,Customer Support Group,Building Repairs & Maintenance,60064796,S W BRUCE & CO LTD,57.00,01/11/2016
Commercial,Customer Support Group,Building Repairs & Maintenance,60064802,S W BRUCE & CO LTD,234.58,01/11/2016
Commercial,Customer Support Group,Building Repairs & Maintenance,60064804,S W BRUCE & CO LTD,57.00,01/11/2016
Commercial,Customer Support Group,Building Repairs & Maintenance,60064805,S W BRUCE & CO LTD,"1,397.25",01/11/2016
Commercial,Customer Support Group,Building Repairs & Maintenance,60064808,S W BRUCE & CO LTD,193.10,01/11/2016
Commercial,Customer Support Group,Building Repairs & Maintenance,60064809,S W BRUCE & CO LTD,66.56,01/11/2016
Commercial,Customer Support Group,Building Repairs & Maintenance,60064815,S W BRUCE & CO LTD,114.68,01/11/2016
Commercial,Customer Support Group,Building Repairs & Maintenance,60064816,S W BRUCE & CO LTD,40.26,01/11/2016
Commercial,Customer Support Group,Building Repairs & Maintenance,60064818,S W BRUCE & CO LTD,754.00,01/11/2016
Commercial,Customer Support Group,Building Repairs & Maintenance,60064821,S W BRUCE & CO LTD,85.50,01/11/2016
Commercial,Customer Support Group,Building Repairs & Maintenance,60064825,S W BRUCE & CO LTD,57.00,01/11/2016
Commercial,Customer Support Group,Building Repairs & Maintenance,60064826,S W BRUCE & CO LTD,156.42,01/11/2016
Commercial,Customer Support Group,Building Repairs & Maintenance,60064829,S W BRUCE & CO LTD,110.74,01/11/2016
Commercial,Customer Support Group,Building Repairs & Maintenance,60064830,S W BRUCE & CO LTD,147.95,01/11/2016
Commercial,Customer Support Group,Building Repairs & Maintenance,60064831,S W BRUCE & CO LTD,85.50,01/11/2016
Commercial,Customer Support Group,Building Repairs & Maintenance,60064833,S W BRUCE & CO LTD,52.82,01/11/2016
Commercial,Customer Support Group,Building Repairs & Maintenance,60064839,S W BRUCE & CO LTD,182.80,01/11/2016
Commercial,Customer Support Group,Building Repairs & Maintenance,60064840,S W BRUCE & CO LTD,927.28,01/11/2016
Commercial,Customer Support Group,Building Repairs & Maintenance,60064844,S W BRUCE & CO LTD,84.82,01/11/2016
Commercial,Customer Support Group,Building Repairs & Maintenance,60064846,S W BRUCE & CO LTD,126.77,01/11/2016
Commercial,Customer Support Group,Building Repairs & Maintenance,60064849,S W BRUCE & CO LTD,89.48,01/11/2016
Commercial,Customer Support Group,Building Repairs & Maintenance,60064851,S W BRUCE & CO LTD,153.17,01/11/2016
Commercial,Customer Support Group,Building Repairs & Maintenance,60064852,S W BRUCE & CO LTD,100.38,01/11/2016
Commercial,Customer Support Group,Building Repairs & Maintenance,60064855,S W BRUCE & CO LTD,66.56,01/11/2016
Commercial,Customer Support Group,Building Repairs & Maintenance,60064864,S W BRUCE & CO LTD,139.02,01/11/2016
Commercial,Customer Support Group,Building Repairs & Maintenance,60064871,S W BRUCE & CO LTD,80.31,01/11/2016
Commercial,Customer Support Group,Building Repairs & Maintenance,60064872,S W BRUCE & CO LTD,57.00,01/11/2016
Commercial,Customer Support Group,Building Repairs & Maintenance,60064873,S W BRUCE & CO LTD,40.26,01/11/2016
Commercial,Customer Support Group,Building Repairs & Maintenance,60064876,S W BRUCE & CO LTD,133.13,01/11/2016
Commercial,Customer Support Group,Building Repairs & Maintenance,60064879,S W BRUCE & CO LTD,25.00,01/11/2016
Commercial,Customer Support Group,Building Repairs & Maintenance,60065867,S W BRUCE & CO LTD,173.63,29/11/2016
Commercial,Customer Support Group,Building Repairs & Maintenance,60065872,S W BRUCE & CO LTD,46.60,29/11/2016
Commercial,Customer Support Group,Building Repairs & Maintenance,60065878,S W BRUCE & CO LTD,232.00,23/11/2016
Commercial,Customer Support Group,Building Repairs & Maintenance,60065880,S W BRUCE & CO LTD,81.40,29/11/2016
Commercial,Customer Support Group,Building Repairs & Maintenance,60065901,S W BRUCE & CO LTD,147.95,29/11/2016
Commercial,Customer Support Group,Building Repairs & Maintenance,60065902,S W BRUCE & CO LTD,64.57,29/11/2016
Commercial,Customer Support Group,Building Repairs & Maintenance,60065905,S W BRUCE & CO LTD,25.00,30/11/2016
Commercial,Customer Support Group,Building Repairs & Maintenance,60065908,S W BRUCE & CO LTD,148.96,29/11/2016
Commercial,Customer Support Group,Building Repairs & Maintenance,60065914,S W BRUCE & CO LTD,199.50,30/11/2016
Commercial,Customer Support Group,Building Repairs & Maintenance,60065923,S W BRUCE & CO LTD,25.00,29/11/2016
Commercial,Customer Support Group,Building Repairs & Maintenance,60065924,S W BRUCE & CO LTD,25.00,29/11/2016
Commercial,Customer Support Group,Building Repairs & Maintenance,60065925,S W BRUCE & CO LTD,129.99,29/11/2016
Commercial,Customer Support Group,Building Repairs & Maintenance,60065929,S W BRUCE & CO LTD,52.08,29/11/2016
Commercial,Customer Support Group,Building Repairs & Maintenance,60065930,S W BRUCE & CO LTD,91.93,29/11/2016
Commercial,Customer Support Group,Building Repairs & Maintenance,60065935,S W BRUCE & CO LTD,63.43,29/11/2016
Commercial,Customer Support Group,Building Repairs & Maintenance,60065941,S W BRUCE & CO LTD,25.00,29/11/2016
Commercial,Customer Support Group,Building Repairs & Maintenance,60065944,S W BRUCE & CO LTD,25.64,29/11/2016
Commercial,Customer Support Group,Building Repairs & Maintenance,60065949,S W BRUCE & CO LTD,111.95,29/11/2016
Commercial,Customer Support Group,Building Repairs & Maintenance,60065950,S W BRUCE & CO LTD,25.00,29/11/2016
Commercial,Customer Support Group,Building Repairs & Maintenance,60065951,S W BRUCE & CO LTD,94.67,29/11/2016
Commercial,Customer Support Group,Building Repairs & Maintenance,60066118,S W BRUCE & CO LTD,400.66,29/11/2016
Commercial,Customer Support Group,Building Repairs & Maintenance,60066119,S W BRUCE & CO LTD,105.00,29/11/2016
Commercial,Customer Support Group,Building Repairs & Maintenance,60066122,S W BRUCE & CO LTD,25.00,29/11/2016
Commercial,Customer Support Group,Building Repairs & Maintenance,60066126,S W BRUCE & CO LTD,43.33,29/11/2016
Commercial,Customer Support Group,Building Repairs & Maintenance,60066137,S W BRUCE & CO LTD,130.99,29/11/2016
Commercial,Customer Support Group,Building Repairs & Maintenance,60066138,S W BRUCE & CO LTD,165.98,29/11/2016
Commercial,Customer Support Group,Building Repairs & Maintenance,60066141,S W BRUCE & CO LTD,133.14,29/11/2016
Commercial,Customer Support Group,Building Repairs & Maintenance,60066145,S W BRUCE & CO LTD,113.09,29/11/2016
Commercial,Customer Support Group,Building Repairs & Maintenance,60066146,S W BRUCE & CO LTD,25.00,29/11/2016
Commercial,Customer Support Group,Building Repairs & Maintenance,60066735,S W BRUCE & CO LTD,78.19,16/11/2016
Commercial,Customer Support Group,Building Repairs & Maintenance,60066774,S W BRUCE & CO LTD,75.96,16/11/2016
Commercial,Customer Support Group,Building Repairs & Maintenance,60065175,TECHNICAL SURFACES LTD,830.00,03/11/2016
Commercial,Customer Support Group,Building Repairs & Maintenance,60066377,TECHNICAL SURFACES LTD,415.00,24/11/2016
Commercial,Customer Support Group,Cleaning and domestic material,60063985,CHURCHILL CONTRACT SERVICES,"1,133.45",01/11/2016
Commercial,Customer Support Group,Cleaning and domestic material,60064066,CHURCHILL CONTRACT SERVICES,661.80,04/11/2016
Commercial,Customer Support Group,Cleaning and domestic material,60065955,CHURCHILL CONTRACT SERVICES,661.80,30/11/2016
Commercial,Customer Support Group,Cleaning and domestic material,60065960,CHURCHILL CONTRACT SERVICES,"7,329.82",30/11/2016
Commercial,Customer Support Group,Cleaning and domestic material,60065982,CHURCHILL CONTRACT SERVICES,"1,133.45",30/11/2016
Commercial,Customer Support Group,Cleaning and domestic material,60066074,CHURCHILL CONTRACT SERVICES,"11,562.54",30/11/2016
Commercial,Customer Support Group,Cleaning and domestic material,60064345,HERTFORDSHIRE SUPPLIES   COUNTY CO,"1,824.90",16/11/2016
Commercial,Customer Support Group,Cleaning and domestic material,60066221,HERTFORDSHIRE SUPPLIES   COUNTY CO,"1,368.00",08/11/2016
Commercial,Customer Support Group,Cleaning and domestic material,60066223,HERTFORDSHIRE SUPPLIES   COUNTY CO,843.55,09/11/2016
Commercial,Customer Support Group,Cleaning and domestic material,60066254,HERTFORDSHIRE SUPPLIES   COUNTY CO,308.80,08/11/2016
Commercial,Customer Support Group,Cleaning and domestic material,60066264,HERTFORDSHIRE SUPPLIES   COUNTY CO,256.75,08/11/2016
Commercial,Customer Support Group,Cleaning and domestic material,60066270,HERTFORDSHIRE SUPPLIES   COUNTY CO,228.40,08/11/2016
Commercial,Customer Support Group,Cleaning and domestic material,60066285,HERTFORDSHIRE SUPPLIES   COUNTY CO,"1,632.80",08/11/2016
Commercial,Customer Support Group,Contract Cleaning,60066053,CHURCHILL CONTRACT SERVICES,294.16,30/11/2016
Commercial,Customer Support Group,CSG Services Contract Payment,10013491,CAPITA BUSINESS SERVICES LTD,"-36,358.63",04/11/2016
Commercial,Customer Support Group,CSG Services Contract Payment,10013492,CAPITA BUSINESS SERVICES LTD,"-50,191.97",04/11/2016
Commercial,Customer Support Group,CSG Services Contract Payment,10013512,CAPITA BUSINESS SERVICES LTD,"-9,000.00",15/11/2016
Commercial,Customer Support Group,CSG Services Contract Payment,60065405,CAPITA BUSINESS SERVICES LTD,"172,328.17",04/11/2016
Commercial,Customer Support Group,CSG Services Contract Payment,60065801,CAPITA BUSINESS SERVICES LTD,"56,000.00",14/11/2016
Commercial,Customer Support Group,CSG Services Contract Payment,60065806,CAPITA BUSINESS SERVICES LTD,"70,000.00",14/11/2016
Commercial,Customer Support Group,CSG Services Contract Payment,60066107,CAPITA BUSINESS SERVICES LTD,"182,523.02",14/11/2016
Commercial,Customer Support Group,CSG Services Contract Payment,60066151,CAPITA BUSINESS SERVICES LTD,"12,174.35",15/11/2016
Commercial,Customer Support Group,CSG Services Contract Payment,60066636,CAPITA BUSINESS SERVICES LTD,"79,198.79",24/11/2016
Commercial,Customer Support Group,CSG Services Contract Payment,60066791,CAPITA BUSINESS SERVICES LTD,"161,405.00",28/11/2016
Commercial,Customer Support Group,CSG Services Contract Payment,60066889,CAPITA BUSINESS SERVICES LTD,"1,571,233.83",29/11/2016
Commercial,Customer Support Group,CSG Services Contract Payment,60066949,CAPITA BUSINESS SERVICES LTD,"247,000.00",29/11/2016
Commercial,Customer Support Group,CSG Services Contract Payment,60066963,CAPITA BUSINESS SERVICES LTD,"118,411.00",29/11/2016
Commercial,Customer Support Group,Electricity,60065992,BRITISH GAS BUSINESS,155.93,22/11/2016
Commercial,Customer Support Group,Electricity,60066828,BRITISH GAS BUSINESS,5.08,18/11/2016
Commercial,Customer Support Group,Electricity,60065945,BRITISH GAS BUSINESS(ELEC),63.25,04/11/2016
Commercial,Customer Support Group,Electricity,60064662,E-ON ENERGY,132.36,16/11/2016
Commercial,Customer Support Group,Electricity,60064800,KENT COUNTY COUNCIL (KCS),"4,671.30",16/11/2016
Commercial,Customer Support Group,Electricity,60065605,KENT COUNTY COUNCIL (KCS),188.61,07/11/2016
Commercial,Customer Support Group,Electricity,60065612,KENT COUNTY COUNCIL (KCS),331.16,01/11/2016
Commercial,Customer Support Group,Electricity,60065664,KENT COUNTY COUNCIL (KCS),619.55,01/11/2016
Commercial,Customer Support Group,Electricity,60065703,KENT COUNTY COUNCIL (KCS),"5,186.13",01/11/2016
Commercial,Customer Support Group,Electricity,60065723,KENT COUNTY COUNCIL (KCS),616.30,07/11/2016
Commercial,Customer Support Group,Electricity,60066215,KENT COUNTY COUNCIL (KCS),"4,947.45",08/11/2016
Commercial,Customer Support Group,Electricity,60066273,KENT COUNTY COUNCIL (KCS),"1,026.06",08/11/2016
Commercial,Customer Support Group,Electricity,60067441,KENT COUNTY COUNCIL (KCS),"1,285.72",30/11/2016
Commercial,Customer Support Group,Electricity,60067467,KENT COUNTY COUNCIL (KCS),239.45,30/11/2016
Commercial,Customer Support Group,Electricity,60065921,NPOWER,904.67,04/11/2016
Commercial,Customer Support Group,Equipment and Materials Purcha,60064875,S W BRUCE & CO LTD,25.00,01/11/2016
Commercial,Customer Support Group,Fixtures and fittings,60066063,LYCO DIRECT LTD,127.10,25/11/2016
Commercial,Customer Support Group,Furniture-Purchase-Repair,60065744,LYCO DIRECT LTD,453.00,24/11/2016
Commercial,Customer Support Group,Gas,60065702,KENT COUNTY COUNCIL (KCS),61.12,02/11/2016
Commercial,Customer Support Group,Gas,60065714,KENT COUNTY COUNCIL (KCS),"1,016.14",02/11/2016
Commercial,Customer Support Group,Gas,60065728,KENT COUNTY COUNCIL (KCS),"1,725.28",02/11/2016
Commercial,Customer Support Group,Gas,60065764,KENT COUNTY COUNCIL (KCS),76.67,02/11/2016
Commercial,Customer Support Group,Gas,60065888,KENT COUNTY COUNCIL (KCS),191.76,17/11/2016
Commercial,Customer Support Group,Gas,60065889,KENT COUNTY COUNCIL (KCS),169.80,17/11/2016
Commercial,Customer Support Group,Gas,60066091,KENT COUNTY COUNCIL (KCS),623.74,17/11/2016
Commercial,Customer Support Group,Gas,60066110,KENT COUNTY COUNCIL (KCS),175.46,17/11/2016
Commercial,Customer Support Group,Gas,60066359,KENT COUNTY COUNCIL (KCS),129.02,22/11/2016
Commercial,Customer Support Group,Gas,60066388,KENT COUNTY COUNCIL (KCS),180.25,22/11/2016
Commercial,Customer Support Group,Gas,60066420,KENT COUNTY COUNCIL (KCS),123.90,22/11/2016
Commercial,Customer Support Group,Gas,60064358,TOTAL GAS & POWER LTD,"1,773.97",16/11/2016
Commercial,Customer Support Group,General Office Expenses,60065196,HSM (UK) LTD.,320.00,16/11/2016
Commercial,Customer Support Group,Grounds maintenance,60066358,RIBBEX UK LTD,941.75,22/11/2016
Commercial,Customer Support Group,Legal and Court Fees,80006498,MARSTON GROUP LTD,72.00,09/11/2016
Commercial,Customer Support Group,Legal and Court Fees,80006499,MARSTON GROUP LTD,72.00,08/11/2016
Commercial,Customer Support Group,Legal and Court Fees,80006500,MARSTON GROUP LTD,72.00,08/11/2016
Commercial,Customer Support Group,Other Services,60065998,BLUE 9 SECURITY LIMITED,"22,773.84",10/11/2016
Commercial,Customer Support Group,Other Services,60066120,BLUE 9 SECURITY LIMITED,"1,043.20",10/11/2016
Commercial,Customer Support Group,Other Services,60066123,BLUE 9 SECURITY LIMITED,"21,750.05",10/11/2016
Commercial,Customer Support Group,Other Services,60066132,BLUE 9 SECURITY LIMITED,"11,584.08",10/11/2016
Commercial,Customer Support Group,Other Services,60066163,BLUE 9 SECURITY LIMITED,"1,417.68",10/11/2016
Commercial,Customer Support Group,Other Services,60066353,BLUE 9 SECURITY LIMITED,214.88,11/11/2016
Commercial,Customer Support Group,Other Services,60066396,BLUE 9 SECURITY LIMITED,53.72,11/11/2016
Commercial,Customer Support Group,Other Services,60066399,BLUE 9 SECURITY LIMITED,134.30,10/11/2016
Commercial,Customer Support Group,Other Services,60066428,BLUE 9 SECURITY LIMITED,13.43,11/11/2016
Commercial,Customer Support Group,Postage,10013498,ROYAL MAIL GROUP LIMITED,-139.86,07/11/2016
Commercial,Customer Support Group,Postage,20032340,ROYAL MAIL GROUP LIMITED,331.38,07/11/2016
Commercial,Customer Support Group,Postage,20032341,ROYAL MAIL GROUP LIMITED,331.38,07/11/2016
Commercial,Customer Support Group,Postage,20032342,ROYAL MAIL GROUP LIMITED,331.38,07/11/2016
Commercial,Customer Support Group,Postage,60066304,ROYAL MAIL GROUP LIMITED,"5,515.59",09/11/2016
Commercial,Customer Support Group,Postage,60066318,ROYAL MAIL GROUP LIMITED,"7,446.27",09/11/2016
Commercial,Customer Support Group,Postage,60066344,ROYAL MAIL GROUP LIMITED,134.85,09/11/2016
Commercial,Customer Support Group,Postage,60066401,ROYAL MAIL GROUP LIMITED,"3,587.85",11/11/2016
Commercial,Customer Support Group,Postage,60067097,ROYAL MAIL GROUP LIMITED,"4,085.34",25/11/2016
Commercial,Customer Support Group,Professional Services,60064412,EQUITA LTD HIGH COURT ENFORCEMENT,60.00,04/11/2016
Commercial,Customer Support Group,Professional Services,60064444,EQUITA LTD HIGH COURT ENFORCEMENT,60.00,04/11/2016
Commercial,Customer Support Group,Professional Services,60066089,KPMG FEES ACCOUNT,875.00,04/11/2016
Commercial,Customer Support Group,Rents,60065987,RIDGELAND PROPERTIES LTD,"38,527.40",04/11/2016
Commercial,Customer Support Group,Rents,60066810,TOWNDENE PROPERTIES LTD,"43,168.29",28/11/2016
Commercial,Customer Support Group,Rubbish Collection,60059056,G.B.HOLDINGS LTD,686.60,25/11/2016
Commercial,Customer Support Group,Rubbish Collection,60064576,G.B.HOLDINGS LTD,789.00,29/11/2016
Commercial,Customer Support Group,Rubbish Collection,60066370,PREMIER SHREDDING,50.00,10/11/2016
Commercial,Customer Support Group,Rubbish Collection,60066432,PREMIER SHREDDING,75.00,10/11/2016
Commercial,Customer Support Group,Service Charges,60067144,LAZARI INVESTMENTS LTD,"27,966.24",24/11/2016
Commercial,Customer Support Group,Service Charges,60067186,LAZARI INVESTMENTS LTD,183.36,28/11/2016
Commercial,Customer Support Group,Service Charges,60067208,LAZARI INVESTMENTS LTD,183.36,28/11/2016
Commercial,Customer Support Group,Software Licences & Support,60064657,RESULT SOFTWARE LTD,750.00,09/11/2016
Commercial,Customer Support Group,Subscriptions,60065737,RICS,580.00,01/11/2016
Commercial,Customer Support Group,Subscriptions,60066237,RICS,690.00,24/11/2016
Commercial,Customer Support Group,Training,60067237,SKILLS TRAINING CENTRE LTD,655.00,29/11/2016
Commercial,Customer Support Group,Ttl IT & Comms,80006624,ENTERPRISE STATIONERY LIMITED,724.00,07/11/2016
Commercial,Customer Support Group,Ttl IT & Comms,80006520,VODAFONE LTD (BILLS ONLY),"4,929.55",24/11/2016
Commercial,Customer Support Group,Vending Machines,60067180,SIEMENS FINANCIAL SERVICES LTD,664.04,24/11/2016
Commercial,Customer Support Group,Water Services,60065968,AFFINITY WATER LIMITED,799.94,04/11/2016
Commercial,Customer Support Group,Water Services,60067470,AFFINITY WATER LIMITED,19.13,30/11/2016
Commercial,Customer Support Group,Water Services,60066789,ANGEL SPRINGS LTD,40.00,29/11/2016
Commercial,Customer Support Group,Water Services,60066790,ANGEL SPRINGS LTD,265.01,29/11/2016
Commercial,Customer Support Group,Water Services,60066797,ANGEL SPRINGS LTD,454.00,29/11/2016
Commercial,Customer Support Group,Water Services,60066804,ANGEL SPRINGS LTD,46.50,29/11/2016
Commercial,Customer Support Group,Water Services,60066822,ANGEL SPRINGS LTD,15.50,29/11/2016
Commercial,Customer Support Group,Water Services,60066824,ANGEL SPRINGS LTD,120.00,29/11/2016
Commercial,Customer Support Group,Water Services,60067145,ANGEL SPRINGS LTD,797.85,25/11/2016
Commercial,Customer Support Group,Water Services,60067162,ANGEL SPRINGS LTD,649.85,25/11/2016
Commercial,Customer Support Group,Water Services,60066864,THAMES WATER UTILITIES LIMITED,862.28,18/11/2016
Commercial,HB LAW,Legal and Court Fees,60066825,LONDON BOROUGH OF HARROW,"183,260.00",23/11/2016
Commercial,Housing Needs Resources,Other Agencies - Third Party P,60066230,THE BARNETGROUP LIMITED,"243,874.96",08/11/2016
Commercial,Housing Needs Resources,Other Transfer Payments to Soc,60065740,THE BARNETGROUP LIMITED,"29,097.00",03/11/2016
Commercial,HRA,Consultants Fees,60065551,PRIORITY ESTATES PROJECT LTD,"1,327.15",21/11/2016
Commercial,HRA,Consultants Fees,60065560,PRIORITY ESTATES PROJECT LTD,908.05,21/11/2016
Commercial,HRA,Consultants Fees,60065615,PRIORITY ESTATES PROJECT LTD,"2,044.91",21/11/2016
Commercial,HRA,Consultants Fees,60055512,THE BARNETGROUP LIMITED,"3,659.64",10/11/2016
Commercial,HRA,Consultants Fees,60065899,THE BARNETGROUP LIMITED,"3,753.01",22/11/2016
Commercial,HRA,Consultants Fees,60066009,THE BARNETGROUP LIMITED,"7,673.30",22/11/2016
Commercial,HRA,Consultants Fees,60066706,THE BARNETGROUP LIMITED,"2,010.61",21/11/2016
Commercial,HRA,Consultants Fees,60066733,THE BARNETGROUP LIMITED,555.50,17/11/2016
Commercial,HRA,Consultants Fees,60066752,THE BARNETGROUP LIMITED,518.00,17/11/2016
Commercial,HRA,Water Services,60065917,AFFINITY WATER LIMITED,"849,231.92",09/11/2016
Commercial,HRA,Water Services,60065932,AFFINITY WATER LIMITED,306.29,09/11/2016
Commercial,HRA,Water Services,60065938,AFFINITY WATER LIMITED,"781,739.49",09/11/2016
Commercial,HRA,Water Services,60066129,AFFINITY WATER LIMITED,"12,956.83",09/11/2016
Commercial,HRA,Water Services,60066136,AFFINITY WATER LIMITED,161.35,09/11/2016
Commercial,Parking & Infrastructure,Electricity,60065588,BARNET LIGHTING SERVICES LTD,"392,300.45",03/11/2016
Commercial,Parking & Infrastructure,Equipment and Materials Purcha,60066317,FABRIKAT (NOTTINGHAM) LIMITED,"1,196.70",25/11/2016
Commercial,Parking & Infrastructure,Equipment and Materials Purcha,60064417,GREENHAM TRADING LIMITED,52.49,04/11/2016
Commercial,Parking & Infrastructure,Equipment and Materials Purcha,60065373,GREENHAM TRADING LIMITED,553.20,17/11/2016
Commercial,Parking & Infrastructure,Equipment and Materials Purcha,60066103,KENT COUNTY COUNCIL (KCS),88.51,10/11/2016
Commercial,Parking & Infrastructure,Equipment and Materials Purcha,60065325,LAFARGE TARMAC TRADING LIMITED,239.55,04/11/2016
Commercial,Parking & Infrastructure,Equipment and Materials Purcha,60065353,LAFARGE TARMAC TRADING LIMITED,115.13,08/11/2016
Commercial,Parking & Infrastructure,Equipment and Materials Purcha,60065575,LAFARGE TARMAC TRADING LIMITED,159.70,11/11/2016
Commercial,Parking & Infrastructure,Equipment and Materials Purcha,60065590,LAFARGE TARMAC TRADING LIMITED,124.42,11/11/2016
Commercial,Parking & Infrastructure,Equipment and Materials Purcha,60066024,LAFARGE TARMAC TRADING LIMITED,102.14,17/11/2016
Commercial,Parking & Infrastructure,Equipment and Materials Purcha,60066026,LAFARGE TARMAC TRADING LIMITED,94.71,11/11/2016
Commercial,Parking & Infrastructure,Equipment and Materials Purcha,60066072,LAFARGE TARMAC TRADING LIMITED,92.85,15/11/2016
Commercial,Parking & Infrastructure,Equipment and Materials Purcha,60066084,LAFARGE TARMAC TRADING LIMITED,235.84,17/11/2016
Commercial,Parking & Infrastructure,Equipment and Materials Purcha,60066087,LAFARGE TARMAC TRADING LIMITED,116.06,15/11/2016
Commercial,Parking & Infrastructure,Equipment and Materials Purcha,60066607,LAFARGE TARMAC TRADING LIMITED,83.57,22/11/2016
Commercial,Parking & Infrastructure,Equipment and Materials Purcha,60066622,LAFARGE TARMAC TRADING LIMITED,90.99,22/11/2016
Commercial,Parking & Infrastructure,Equipment and Materials Purcha,60066629,LAFARGE TARMAC TRADING LIMITED,141.13,29/11/2016
Commercial,Parking & Infrastructure,Equipment and Materials Purcha,10013501,NSL LTD,"12,938.16",10/11/2016
Commercial,Parking & Infrastructure,Equipment and Materials Purcha,60066373,NSL LTD,"15,039.72",11/11/2016
Commercial,Parking & Infrastructure,Equipment and Materials Purcha,60066646,W. FAYERS & SONS,761.60,15/11/2016
Commercial,Parking & Infrastructure,Equipment and Materials Purcha,60066904,W. FAYERS & SONS,66.00,18/11/2016
Commercial,Parking & Infrastructure,Miscellaneous Expenses,60065585,NSL LTD,"6,129.79",04/11/2016
Commercial,Parking & Infrastructure,Miscellaneous Expenses,60066981,NSL LTD,"4,734.07",22/11/2016
Commercial,Parking & Infrastructure,Miscellaneous Expenses,60066985,NSL LTD,"1,546.10",22/11/2016
Commercial,Parking & Infrastructure,Other Services,60064667,LONDON COUNCILS,"39,720.92",18/11/2016
Commercial,Parking & Infrastructure,Other Services,60066800,NSL LTD,"1,720.65",25/11/2016
Commercial,Parking & Infrastructure,Other Services,60065015,PARKEON LIMITED,810.00,10/11/2016
Commercial,Parking & Infrastructure,Professional Services,10013513,NSL LTD,"4,589.89",15/11/2016
Commercial,Parking & Infrastructure,Professional Services,60066860,NSL LTD,"40,289.39",25/11/2016
Commercial,Parking & Infrastructure,Professional Services,60066875,NSL LTD,"287,741.39",25/11/2016
Commercial,Parking & Infrastructure,Software Licences & Support,60066814,NCC SERVICES LTD,785.00,18/11/2016
Commercial,Parking & Infrastructure,Software Licences & Support,60065001,NSL LTD,"7,187.48",16/11/2016
Commercial,Parking & Infrastructure,Software Licences & Support,60066813,NSL LTD,"8,383.33",25/11/2016
Commercial,Parking & Infrastructure,Software Licences & Support,60066843,NSL LTD,"31,495.87",25/11/2016
Commercial,Public Health,Professional Services,60065267,CENTRAL LONDONCOMMUNITY HEALTHCARE,"4,917.00",11/11/2016
Commercial,Regional Enterprise,Advertising,60058960,TMP (UK) LTD,406.92,16/11/2016
Commercial,Regional Enterprise,Advertising,60062745,TMP (UK) LTD,144.16,25/11/2016
Commercial,Regional Enterprise,Advertising,60062773,TMP (UK) LTD,172.66,25/11/2016
Commercial,Regional Enterprise,Advertising,60062795,TMP (UK) LTD,144.16,25/11/2016
Commercial,Regional Enterprise,Advertising,60062799,TMP (UK) LTD,144.16,25/11/2016
Commercial,Regional Enterprise,Advertising,60063639,TMP (UK) LTD,481.76,16/11/2016
Commercial,Regional Enterprise,Advertising,60065313,TMP (UK) LTD,374.84,17/11/2016
Commercial,Regional Enterprise,Advertising,60065327,TMP (UK) LTD,291.18,17/11/2016
Commercial,Regional Enterprise,Advertising,60065332,TMP (UK) LTD,216.33,17/11/2016
Commercial,Regional Enterprise,Advertising,60065372,TMP (UK) LTD,151.28,25/11/2016
Commercial,Regional Enterprise,Advertising,60065824,TMP (UK) LTD,234.15,25/11/2016
Commercial,Regional Enterprise,Advertising,60065990,TMP (UK) LTD,144.16,25/11/2016
Commercial,Regional Enterprise,Advertising,60066010,TMP (UK) LTD,144.16,25/11/2016
Commercial,Regional Enterprise,Advertising,60066099,TMP (UK) LTD,165.54,25/11/2016
Commercial,Regional Enterprise,Advertising,60067022,TMP (UK) LTD,422.96,23/11/2016
Commercial,Regional Enterprise,Advertising,60067056,TMP (UK) LTD,212.77,23/11/2016
Commercial,Regional Enterprise,Advertising,60067069,TMP (UK) LTD,369.50,23/11/2016
Commercial,Regional Enterprise,Advertising,60067382,TMP (UK) LTD,144.16,29/11/2016
Commercial,Regional Enterprise,Advertising,60067383,TMP (UK) LTD,151.28,29/11/2016
Commercial,Regional Enterprise,Capital Construction and Works,60066850,CONWAY AECOM LTD,"48,351.04",18/11/2016
Commercial,Regional Enterprise,Cleaning and domestic material,60064023,CHURCHILL CONTRACT SERVICES,488.56,01/11/2016
Commercial,Regional Enterprise,Cleaning and domestic material,60066005,CHURCHILL CONTRACT SERVICES,488.56,30/11/2016
Commercial,Regional Enterprise,Consultants Fees,60063787,CBRE INDIRECT INVESTMENT SERVS. LTD,"30,000.00",01/11/2016
Commercial,Regional Enterprise,Consultants Fees,60065851,EVERSHEDS LLP,"148,495.00",02/11/2016
Commercial,Regional Enterprise,Consultants Fees,60067329,EVERSHEDS LLP,"5,889.30",29/11/2016
Commercial,Regional Enterprise,Consultants Fees,60067371,EVERSHEDS LLP,"1,289.93",29/11/2016
Commercial,Regional Enterprise,Consultants Fees,60065797,GOWLING WLG,"24,732.20",02/11/2016
Commercial,Regional Enterprise,Consultants Fees,60065835,GOWLING WLG,"9,511.65",23/11/2016
Commercial,Regional Enterprise,Consultants Fees,60067339,GOWLING WLG,"9,133.98",29/11/2016
Commercial,Regional Enterprise,Consultants Fees,60067344,GOWLING WLG,"13,175.89",29/11/2016
Commercial,Regional Enterprise,Consultants Fees,60067357,GOWLING WLG,"5,487.33",29/11/2016
Commercial,Regional Enterprise,Consultants Fees,60061930,NETWORK RAIL INFRASTRUCTURE LTD,"125,472.57",25/11/2016
Commercial,Regional Enterprise,Consultants Fees,60065426,NETWORK RAIL INFRASTRUCTURE LTD,"114,289.71",25/11/2016
Commercial,Regional Enterprise,Consultants Fees,60058558,NORTH LONDON ESTATE PARTNERSHIPS LTD,"12,249.42",02/11/2016
Commercial,Regional Enterprise,Consultants Fees,60060434,NORTH LONDON ESTATE PARTNERSHIPS LTD,"12,249.42",02/11/2016
Commercial,Regional Enterprise,Consultants Fees,60065763,RAILFREIGHT CONSULTING LTD,"3,630.00",24/11/2016
Commercial,Regional Enterprise,Consultants Fees,60064946,TFL,"9,000.00",28/11/2016
Commercial,Regional Enterprise,Equipment and Materials Purcha,80006789,REDACTED - PERSONAL DATA,"2,158.00",25/11/2016
Commercial,Regional Enterprise,Grant Payments,80006567,AMWELL CONSTRUCTION LTD,85.00,03/11/2016
Commercial,Regional Enterprise,Grant Payments,80006854,AMWELL CONSTRUCTION LTD,100.00,24/11/2016
Commercial,Regional Enterprise,Grant Payments,80006902,AMWELL CONSTRUCTION LTD,100.00,24/11/2016
Commercial,Regional Enterprise,Grant Payments,80006904,AMWELL CONSTRUCTION LTD,"1,148.55",28/11/2016
Commercial,Regional Enterprise,Grant Payments,80006942,AMWELL CONSTRUCTION LTD,"5,975.00",24/11/2016
Commercial,Regional Enterprise,Grant Payments,80006963,AMWELL CONSTRUCTION LTD,"5,188.50",25/11/2016
Commercial,Regional Enterprise,Grant Payments,80006968,AMWELL CONSTRUCTION LTD,"1,059.00",25/11/2016
Commercial,Regional Enterprise,Grant Payments,80006867,ARTHUR J. FERRYMAN ASSOCIATES,"1,199.08",18/11/2016
Commercial,Regional Enterprise,Grant Payments,80006959,ARTHUR J. FERRYMAN ASSOCIATES,720.00,24/11/2016
Commercial,Regional Enterprise,Grant Payments,80007011,ARTHUR J. FERRYMAN ASSOCIATES,373.70,29/11/2016
Commercial,Regional Enterprise,Grant Payments,80006475,CAPITAL  LOCKSMITHS,297.00,03/11/2016
Commercial,Regional Enterprise,Grant Payments,80006552,CAPITAL  LOCKSMITHS,173.00,09/11/2016
Commercial,Regional Enterprise,Grant Payments,80006579,CAPITAL  LOCKSMITHS,80.00,10/11/2016
Commercial,Regional Enterprise,Grant Payments,80006580,CAPITAL  LOCKSMITHS,80.00,10/11/2016
Commercial,Regional Enterprise,Grant Payments,80006582,CAPITAL  LOCKSMITHS,80.00,10/11/2016
Commercial,Regional Enterprise,Grant Payments,80006583,CAPITAL  LOCKSMITHS,213.00,10/11/2016
Commercial,Regional Enterprise,Grant Payments,80006607,CAPITAL  LOCKSMITHS,295.00,10/11/2016
Commercial,Regional Enterprise,Grant Payments,80006852,CAPITAL  LOCKSMITHS,213.00,25/11/2016
Commercial,Regional Enterprise,Grant Payments,80006857,CAPITAL  LOCKSMITHS,100.00,25/11/2016
Commercial,Regional Enterprise,Grant Payments,80006874,CAPITAL  LOCKSMITHS,80.00,25/11/2016
Commercial,Regional Enterprise,Grant Payments,80006875,CAPITAL  LOCKSMITHS,80.00,25/11/2016
Commercial,Regional Enterprise,Grant Payments,80006908,DOLPHIN MOBILITY LTD.,"5,780.00",24/11/2016
Commercial,Regional Enterprise,Grant Payments,80006462,DP BUILDERS DISABLED ADAPTATIONS,"4,804.00",02/11/2016
Commercial,Regional Enterprise,Grant Payments,80006472,DP BUILDERS DISABLED ADAPTATIONS,"5,177.00",03/11/2016
Commercial,Regional Enterprise,Grant Payments,80006512,DP BUILDERS DISABLED ADAPTATIONS,"1,521.00",04/11/2016
Commercial,Regional Enterprise,Grant Payments,80006865,DP BUILDERS DISABLED ADAPTATIONS,"6,270.00",25/11/2016
Commercial,Regional Enterprise,Grant Payments,80006613,H D PROPERTY SERVICES LTD,"5,179.00",09/11/2016
Commercial,Regional Enterprise,Grant Payments,80006853,H D PROPERTY SERVICES LTD,439.00,24/11/2016
Commercial,Regional Enterprise,Grant Payments,80006856,H D PROPERTY SERVICES LTD,395.00,24/11/2016
Commercial,Regional Enterprise,Grant Payments,80006860,H D PROPERTY SERVICES LTD,"4,174.00",18/11/2016
Commercial,Regional Enterprise,Grant Payments,80006869,H D PROPERTY SERVICES LTD,"3,969.32",18/11/2016
Commercial,Regional Enterprise,Grant Payments,80006876,H D PROPERTY SERVICES LTD,316.00,24/11/2016
Commercial,Regional Enterprise,Grant Payments,80006939,H D PROPERTY SERVICES LTD,"4,979.00",24/11/2016
Commercial,Regional Enterprise,Grant Payments,80006473,MCP PROPERTY SERVICES LTD,"3,500.00",03/11/2016
Commercial,Regional Enterprise,Grant Payments,80006945,MORE & CO LTD,"29,760.00",24/11/2016
Commercial,Regional Enterprise,Grant Payments,80006635,REDACTED - PERSONAL DATA,"11,401.00",09/11/2016
Commercial,Regional Enterprise,Grant Payments,80006858,REDACTED - PERSONAL DATA,"15,339.20",18/11/2016
Commercial,Regional Enterprise,Grant Payments,80006899,REDACTED - PERSONAL DATA,"5,051.00",24/11/2016
Commercial,Regional Enterprise,Grant Payments,80006949,REDACTED - PERSONAL DATA,"7,071.00",24/11/2016
Commercial,Regional Enterprise,Grant Payments,80006950,REDACTED - PERSONAL DATA,105.00,25/11/2016
Commercial,Regional Enterprise,Grant Payments,80006967,REDACTED - PERSONAL DATA,"5,643.00",25/11/2016
Commercial,Regional Enterprise,Grant Payments,80007023,REDACTED - PERSONAL DATA,"12,000.00",29/11/2016
Commercial,Regional Enterprise,Grant Payments,80002400,SOUTH HERTFORDSHIRE,981.00,02/11/2016
Commercial,Regional Enterprise,Grant Payments,80006620,SOUTH HERTFORDSHIRE,"4,108.00",09/11/2016
Commercial,Regional Enterprise,Grant Payments,80006629,SOUTH HERTFORDSHIRE,"1,600.00",09/11/2016
Commercial,Regional Enterprise,Grant Payments,80006866,SOUTH HERTFORDSHIRE,"5,443.00",18/11/2016
Commercial,Regional Enterprise,Grant Payments,80006933,SOUTH HERTFORDSHIRE,"6,699.00",24/11/2016
Commercial,Regional Enterprise,Grant Payments,80006955,SOUTH HERTFORDSHIRE,"4,988.00",24/11/2016
Commercial,Regional Enterprise,Grant Payments,80006966,SOUTH HERTFORDSHIRE,"4,563.00",25/11/2016
Commercial,Regional Enterprise,Grant Payments,80006232,STANNAH STAIRLIFTS LTD,"5,070.00",23/11/2016
Commercial,Regional Enterprise,Grant Payments,80006873,STANNAH STAIRLIFTS LTD,"3,332.37",18/11/2016
Commercial,Regional Enterprise,Grant Payments,80006905,STANNAH STAIRLIFTS LTD,"4,503.00",28/11/2016
Commercial,Regional Enterprise,Grant Payments,80006938,STANNAH STAIRLIFTS LTD,"5,186.00",24/11/2016
Commercial,Regional Enterprise,Legal and Court Fees,80007051,DAC BEACHCROFT CLAIMS LTD,"25,000.00",29/11/2016
Commercial,Regional Enterprise,Legal and Court Fees,80006699,REDACTED - PERSONAL DATA,"3,000.00",15/11/2016
Commercial,Regional Enterprise,Legal and Court Fees,80007094,REDACTED - PERSONAL DATA,"1,198.00",29/11/2016
Commercial,Regional Enterprise,Other Establishments - Third P,20032338,TFL,"1,214,560.26",02/11/2016
Commercial,Regional Enterprise,Other Services,60066701,ARTS DEPOT,"1,011.50",16/11/2016
Commercial,Regional Enterprise,Other Services,60054351,CONWAY AECOM LTD,"1,624.59",08/11/2016
Commercial,Regional Enterprise,Other Services,60055147,CONWAY AECOM LTD,"3,660.84",29/11/2016
Commercial,Regional Enterprise,Other Services,60055886,CONWAY AECOM LTD,861.95,25/11/2016
Commercial,Regional Enterprise,Other Services,60055892,CONWAY AECOM LTD,671.46,29/11/2016
Commercial,Regional Enterprise,Other Services,60055906,CONWAY AECOM LTD,745.77,22/11/2016
Commercial,Regional Enterprise,Other Services,60055908,CONWAY AECOM LTD,712.19,03/11/2016
Commercial,Regional Enterprise,Other Services,60055967,CONWAY AECOM LTD,716.79,15/11/2016
Commercial,Regional Enterprise,Other Services,60065647,CONWAY AECOM LTD,"27,363.03",25/11/2016
Commercial,Regional Enterprise,Other Services,60065649,CONWAY AECOM LTD,122.16,02/11/2016
Commercial,Regional Enterprise,Other Services,60065658,CONWAY AECOM LTD,"63,146.13",25/11/2016
Commercial,Regional Enterprise,Other Services,60065663,CONWAY AECOM LTD,16.70,22/11/2016
Commercial,Regional Enterprise,Other Services,60065670,CONWAY AECOM LTD,13.05,17/11/2016
Commercial,Regional Enterprise,Other Services,60065673,CONWAY AECOM LTD,14.88,17/11/2016
Commercial,Regional Enterprise,Other Services,60065674,CONWAY AECOM LTD,33.41,22/11/2016
Commercial,Regional Enterprise,Other Services,60065675,CONWAY AECOM LTD,4.34,17/11/2016
Commercial,Regional Enterprise,Other Services,60065679,CONWAY AECOM LTD,13.05,17/11/2016
Commercial,Regional Enterprise,Other Services,60065683,CONWAY AECOM LTD,20.10,17/11/2016
Commercial,Regional Enterprise,Other Services,60065687,CONWAY AECOM LTD,"2,922.79",02/11/2016
Commercial,Regional Enterprise,Other Services,60065688,CONWAY AECOM LTD,"1,424.32",02/11/2016
Commercial,Regional Enterprise,Other Services,60065699,CONWAY AECOM LTD,"2,267.31",02/11/2016
Commercial,Regional Enterprise,Other Services,60065706,CONWAY AECOM LTD,"47,921.52",25/11/2016
Commercial,Regional Enterprise,Other Services,60065712,CONWAY AECOM LTD,"148,121.95",25/11/2016
Commercial,Regional Enterprise,Other Services,60065721,CONWAY AECOM LTD,"2,275.61",02/11/2016
Commercial,Regional Enterprise,Other Services,60065724,CONWAY AECOM LTD,"2,902.20",02/11/2016
Commercial,Regional Enterprise,Other Services,60065727,CONWAY AECOM LTD,19.84,17/11/2016
Commercial,Regional Enterprise,Other Services,60065738,CONWAY AECOM LTD,28.71,17/11/2016
Commercial,Regional Enterprise,Other Services,60065741,CONWAY AECOM LTD,"139,029.05",25/11/2016
Commercial,Regional Enterprise,Other Services,60065748,CONWAY AECOM LTD,"1,919.37",02/11/2016
Commercial,Regional Enterprise,Other Services,60065749,CONWAY AECOM LTD,"4,961.85",02/11/2016
Commercial,Regional Enterprise,Other Services,60065752,CONWAY AECOM LTD,"273,537.10",25/11/2016
Commercial,Regional Enterprise,Other Services,60065755,CONWAY AECOM LTD,"4,257.70",02/11/2016
Commercial,Regional Enterprise,Other Services,60065758,CONWAY AECOM LTD,122.16,02/11/2016
Commercial,Regional Enterprise,Other Services,60065759,CONWAY AECOM LTD,"111,445.06",25/11/2016
Commercial,Regional Enterprise,Other Services,60065762,CONWAY AECOM LTD,184.00,17/11/2016
Commercial,Regional Enterprise,Other Services,60065769,CONWAY AECOM LTD,"3,611.02",02/11/2016
Commercial,Regional Enterprise,Other Services,60066454,CONWAY AECOM LTD,"37,821.60",11/11/2016
Commercial,Regional Enterprise,Other Services,60066473,CONWAY AECOM LTD,"68,447.40",14/11/2016
Commercial,Regional Enterprise,Other Services,60066484,CONWAY AECOM LTD,"74,113.20",11/11/2016
Commercial,Regional Enterprise,Other Services,60066525,CONWAY AECOM LTD,"31,943.00",14/11/2016
Commercial,Regional Enterprise,Other Services,60067285,CONWAY AECOM LTD,16.70,29/11/2016
Commercial,Regional Enterprise,Other Services,60067299,CONWAY AECOM LTD,"23,500.00",29/11/2016
Commercial,Regional Enterprise,Other Services,60067301,CONWAY AECOM LTD,18.79,29/11/2016
Commercial,Regional Enterprise,Other Services,60067312,CONWAY AECOM LTD,"57,279.84",29/11/2016
Commercial,Regional Enterprise,Other Services,60067316,CONWAY AECOM LTD,75.60,29/11/2016
Commercial,Regional Enterprise,Other Services,60067320,CONWAY AECOM LTD,11.22,29/11/2016
Commercial,Regional Enterprise,Other Services,60067321,CONWAY AECOM LTD,"12,186.51",29/11/2016
Commercial,Regional Enterprise,Other Services,60067324,CONWAY AECOM LTD,"17,409.60",29/11/2016
Commercial,Regional Enterprise,Other Services,60067325,CONWAY AECOM LTD,"37,056.60",29/11/2016
Commercial,Regional Enterprise,Other Services,60067326,CONWAY AECOM LTD,18.27,29/11/2016
Commercial,Regional Enterprise,Other Services,60067331,CONWAY AECOM LTD,397.80,29/11/2016
Commercial,Regional Enterprise,Other Services,60067332,CONWAY AECOM LTD,"31,931.46",29/11/2016
Commercial,Regional Enterprise,Other Services,60067335,CONWAY AECOM LTD,"38,737.22",29/11/2016
Commercial,Regional Enterprise,Other Services,60067336,CONWAY AECOM LTD,116.10,29/11/2016
Commercial,Regional Enterprise,Other Services,60067337,CONWAY AECOM LTD,"39,990.00",29/11/2016
Commercial,Regional Enterprise,Other Services,60067338,CONWAY AECOM LTD,"45,668.18",29/11/2016
Commercial,Regional Enterprise,Other Services,60067346,CONWAY AECOM LTD,"7,414.53",29/11/2016
Commercial,Regional Enterprise,Other Services,60067347,CONWAY AECOM LTD,"12,873.15",29/11/2016
Commercial,Regional Enterprise,Other Services,60067354,CONWAY AECOM LTD,464.96,29/11/2016
Commercial,Regional Enterprise,Other Services,60067362,CONWAY AECOM LTD,"2,263.74",29/11/2016
Commercial,Regional Enterprise,Other Services,60067374,CONWAY AECOM LTD,"113,633.60",29/11/2016
Commercial,Regional Enterprise,Other Services,60067385,CONWAY AECOM LTD,39.15,29/11/2016
Commercial,Regional Enterprise,Other Services,60067387,CONWAY AECOM LTD,199.31,29/11/2016
Commercial,Regional Enterprise,Other Services,60067388,CONWAY AECOM LTD,"39,862.90",29/11/2016
Commercial,Regional Enterprise,Other Services,60067389,CONWAY AECOM LTD,"6,861.82",29/11/2016
Commercial,Regional Enterprise,Other Services,60066405,CYCLE CONFIDENT LTD,"25,961.00",30/11/2016
Commercial,Regional Enterprise,Printing-Contract,60066959,LETTERBOX DISTRIBUTION.COM,307.96,25/11/2016
Commercial,Regional Enterprise,Professional Services,60066224,OPENVIEW SECURITY SOLUTIONS LTD,"34,757.73",15/11/2016
Commercial,Regional Enterprise,Professional Services,60066275,OPENVIEW SECURITY SOLUTIONS LTD,"109,826.42",15/11/2016
Commercial,Regional Enterprise,RE Services Contract Payment,10013496,RE (REGIONAL ENTERPRISE) LIMITED,"330,757.97",04/11/2016
Commercial,Regional Enterprise,RE Services Contract Payment,10013497,RE (REGIONAL ENTERPRISE) LIMITED,-280.00,04/11/2016
Commercial,Regional Enterprise,RE Services Contract Payment,10013515,RE (REGIONAL ENTERPRISE) LIMITED,"611,353.87",16/11/2016
Commercial,Regional Enterprise,RE Services Contract Payment,10013516,RE (REGIONAL ENTERPRISE) LIMITED,"290,864.57",16/11/2016
Commercial,Regional Enterprise,RE Services Contract Payment,10013517,RE (REGIONAL ENTERPRISE) LIMITED,"-26,934.00",16/11/2016
Commercial,Regional Enterprise,RE Services Contract Payment,10013518,RE (REGIONAL ENTERPRISE) LIMITED,"-41,094.86",16/11/2016
Commercial,Regional Enterprise,RE Services Contract Payment,60064673,RE (REGIONAL ENTERPRISE) LIMITED,"167,500.00",04/11/2016
Commercial,Regional Enterprise,RE Services Contract Payment,60065382,RE (REGIONAL ENTERPRISE) LIMITED,"64,844.00",10/11/2016
Commissioning,Commissioning,Advertising for staff,80006872,REDACTED - PERSONAL DATA,300.00,24/11/2016
Commissioning,Commissioning,Building Repairs & Maintenance,60066006,CITY SUBURBAN TREE SURGEONS LTD,"1,900.00",24/11/2016
Commissioning,Commissioning,Building Repairs & Maintenance,60053268,OAKRAY LIMITED,144.00,02/11/2016
Commissioning,Commissioning,Building Repairs & Maintenance,10013493,RGE SERVICES,"3,346.29",10/11/2016
Commissioning,Commissioning,Building Repairs & Maintenance,60065640,RPM FUELS & TANKS,"5,350.00",22/11/2016
Commissioning,Commissioning,Building Repairs & Maintenance,60065371,S W BRUCE & CO LTD,"57,978.58",10/11/2016
Commissioning,Commissioning,Building Repairs & Maintenance,60065919,S W BRUCE & CO LTD,358.00,29/11/2016
Commissioning,Commissioning,Consultants Fees,80006568,BOUYGUES E & S INFRASTRUCTURE,"2,764.70",04/11/2016
Commissioning,Commissioning,Consultants Fees,60066468,GALLIFORD TRY,"430,156.45",17/11/2016
Commissioning,Commissioning,Consultants Fees,80006083,HJC ACTUARIAL CONSULTING LTD,"1,000.00",03/11/2016
Commissioning,Commissioning,Consultants Fees,60051886,KAZOU CONSULTANCY LTD,440.41,04/11/2016
Commissioning,Commissioning,Consultants Fees,60064990,KAZOU CONSULTANCY LTD,"1,062.69",09/11/2016
Commissioning,Commissioning,Consultants Fees,80007079,LAMBETH COMMUNICATIONS,"1,250.00",29/11/2016
Commissioning,Commissioning,Consultants Fees,60065787,PRECIOUS MOMENTS AND HEALTH LTD,381.25,18/11/2016
Commissioning,Commissioning,Consultants Fees,60065665,PRICEWATERHOUSE COOPERS,"10,500.00",15/11/2016
Commissioning,Commissioning,Consultants Fees,60064433,REDACTED - PERSONAL DATA,"1,288.75",03/11/2016
Commissioning,Commissioning,Consultants Fees,60065541,WILLMOTT DIXON CONSTRUCTION LTD,"405,095.00",02/11/2016
Commissioning,Commissioning,Consultants Fees,60066400,WILLMOTT DIXON CONSTRUCTION LTD,"599,412.00",30/11/2016
Commissioning,Commissioning,Equipment and Materials Purcha,60066922,GALLIFORD TRY,"17,592.11",18/11/2016
Commissioning,Commissioning,Equipment and Materials Purcha,60064785,GOOD IMPRESSIONS (LONDON) LIMITED,315.00,08/11/2016
Commissioning,Commissioning,Equipment and Materials Purcha,60065307,GOOD IMPRESSIONS (LONDON) LIMITED,180.00,10/11/2016
Commissioning,Commissioning,Equipment and Materials Purcha,60065783,OCS GROUP UK LIMITED,"46,521.00",03/11/2016
Commissioning,Commissioning,Equipment and Materials Purcha,60065984,OCS GROUP UK LIMITED,"46,521.00",30/11/2016
Commissioning,Commissioning,Equipment and Materials Purcha,60065494,RPM FUELS & TANKS,"17,797.50",22/11/2016
Commissioning,Commissioning,Equipment and Materials Purcha,60063657,THE BARNETGROUP LIMITED,"3,318.59",07/11/2016
Commissioning,Commissioning,Equipment and Materials Purcha,60067377,THE PROFESSIONAL PROMOTION COMPANY LTD,255.00,29/11/2016
Commissioning,Commissioning,Grant Payments,80006907,INCLUSION BARNET,"2,500.00",25/11/2016
Commissioning,Commissioning,Grant Payments,60065730,THE BARNETGROUP LIMITED,"25,851.46",03/11/2016
Commissioning,Commissioning,Joint Authorities - Third Part,EBX0145414,NORTH LONDON WASTE AUTHORITY,"904,617.00",25/11/2016
Commissioning,Commissioning,Miscellaneous Expenses,80006850,NSL LTD,130.00,18/11/2016
Commissioning,Commissioning,Other Agencies - Third Party P,60064658,FAMILY FUND TRADING LTD,"2,516.67",18/11/2016
Commissioning,Commissioning,Other Agencies - Third Party P,60065041,FAMILY FUND TRADING LTD,30.00,03/11/2016
Commissioning,Commissioning,Other Agencies - Third Party P,60065470,FAMILY FUND TRADING LTD,410.00,21/11/2016
Commissioning,Commissioning,Other Agencies - Third Party P,60065866,FAMILY FUND TRADING LTD,545.83,23/11/2016
Commissioning,Commissioning,Other Agencies - Third Party P,60067010,FAMILY FUND TRADING LTD,103.00,23/11/2016
Commissioning,Commissioning,Other Agencies - Third Party P,60066644,SPACE KRAFT LTD,495.95,16/11/2016
Commissioning,Commissioning,Other Services,60064659,CAPITA BUSINESS SERVICES LTD,140.00,25/11/2016
Commissioning,Commissioning,Other Services,60064734,FILIZ FERNANDEZ,80.00,04/11/2016
Commissioning,Commissioning,Other Services,80006721,HOLLY CALDECOURT AR THERAPIST,673.31,14/11/2016
Commissioning,Commissioning,Other Services,80007050,PROMODO LTD,"8,792.50",29/11/2016
Commissioning,Commissioning,Other Services,80002320,REDACTED - PERSONAL DATA,1.84,29/11/2016
Commissioning,Commissioning,Other Services,80002321,REDACTED - PERSONAL DATA,5.43,29/11/2016
Commissioning,Commissioning,Other Services,80002322,REDACTED - PERSONAL DATA,3.68,29/11/2016
Commissioning,Commissioning,Other Services,80002323,REDACTED - PERSONAL DATA,136.77,29/11/2016
Commissioning,Commissioning,Other Services,80002325,REDACTED - PERSONAL DATA,131.25,29/11/2016
Commissioning,Commissioning,Other Services,80002326,REDACTED - PERSONAL DATA,30.00,29/11/2016
Commissioning,Commissioning,Other Services,80002540,REDACTED - PERSONAL DATA,11.25,29/11/2016
Commissioning,Commissioning,Other Services,80002554,REDACTED - PERSONAL DATA,25.00,29/11/2016
Commissioning,Commissioning,Other Services,80003594,REDACTED - PERSONAL DATA,8.52,29/11/2016
Commissioning,Commissioning,Other Services,80004713,REDACTED - PERSONAL DATA,1.84,29/11/2016
Commissioning,Commissioning,Other Services,80004714,REDACTED - PERSONAL DATA,3.00,29/11/2016
Commissioning,Commissioning,Other Services,80006731,REDACTED - PERSONAL DATA,"3,750.00",18/11/2016
Commissioning,Commissioning,Other Services,80006835,RUSSEL COOKE LLP,"1,300.00",18/11/2016
Commissioning,Commissioning,Other Services,60062423,TRAFFIC SURVEY PARTNERS (TSP) LTD,"1,220.00",09/11/2016
Commissioning,Commissioning,Printing-Contract,60064762,GOOD IMPRESSIONS (LONDON) LIMITED,360.00,08/11/2016
Commissioning,Commissioning,Printing-Contract,60065931,LETTERBOX DISTRIBUTION.COM,965.72,10/11/2016
Commissioning,Commissioning,Printing-Contract,60066746,MPC PRINT SOLUTIONS,165.00,16/11/2016
Commissioning,Commissioning,Printing-Contract,60066770,MPC PRINT SOLUTIONS,180.00,16/11/2016
Commissioning,Commissioning,Private Contractors - Third Pa,10013504,GREENWICH LEISURE LTD,"101,631.70",11/11/2016
Commissioning,Commissioning,Private Contractors - Third Pa,60065466,GREENWICH LEISURE LTD,"101,631.70",10/11/2016
Commissioning,Commissioning,Professional Services,60066305,AIRWAVE SOLUTIONS LIMITED,"3,527.46",09/11/2016
Commissioning,Commissioning,Professional Services,60065012,ARIANA BANQUETING HALL,"1,600.00",10/11/2016
Commissioning,Commissioning,Professional Services,60066156,COMMUNITY LINKS TRADING LTD,265.00,07/11/2016
Commissioning,Commissioning,Professional Services,60066165,COMMUNITY LINKS TRADING LTD,501.00,07/11/2016
Commissioning,Commissioning,Professional Services,60064369,REACH AND TEACH (BALL FOR ALL),500.00,01/11/2016
Commissioning,Commissioning,Professional Services,60066554,REDACTED - PERSONAL DATA,112.50,18/11/2016
Commissioning,Commissioning,Professional Services,10013495,SIMETRICA LTD,"20,561.67",01/11/2016
Commissioning,Commissioning,Professional Services,60063699,TRACEY HILL TRAINING & CONSULTANCY LTD,"1,435.60",16/11/2016
Commissioning,Commissioning,Publications,60067203,CELARTEM INC. (DBA EXTENSIS),"1,050.00",25/11/2016
Commissioning,Commissioning,Publications,60066236,COMMUNITY LINKS TRADING LTD,125.00,08/11/2016
Commissioning,Commissioning,Publications,60064461,DIGITALISSUE LIMITED,150.00,18/11/2016
Commissioning,Commissioning,Publications,60060746,REDACTED - PERSONAL DATA,150.00,24/11/2016
Commissioning,Commissioning,Publications,60062528,REDACTED - PERSONAL DATA,150.00,08/11/2016
Commissioning,Commissioning,Publications,60064672,REDACTED - PERSONAL DATA,450.00,24/11/2016
Commissioning,Commissioning,Subscriptions,60066571,ADASS,"4,000.00",14/11/2016
Commissioning,Commissioning,Training,60066603,GOVNET COMMUNICATIONS,597.00,16/11/2016
Commissioning,Commissioning,Training,10013511,OCEAN MEDIA GROUP LIMITED,920.00,11/11/2016
Commissioning,Commissioning,Training,60066443,SOCIAL CARE INSTITUTE FOR EXCELLENCE,750.00,15/11/2016
Commissioning,Commissioning,Ttl IT & Comms,60066562,DATAPRESS LTD,"9,924.00",14/11/2016
Commissioning,Commissioning,Ttl IT & Comms,60066253,STOR-A FILE LTD,576.19,29/11/2016
Commissioning,Commissioning,Venue Hire,60064993,ARIANA BANQUETING HALL,"14,250.00",10/11/2016
Corporate Accounting,Corporate Accounting,Advertising,60066938,TMP (UK) LTD,"2,593.46",18/11/2016
Corporate Accounting,Corporate Accounting,Other Local Authorities - Thir,EBX0142985,GREATER LONDON AUTHORITY,"1,521,304.00",11/11/2016
Corporate Accounting,Corporate Accounting,Other Local Authorities - Thir,EBX0143420,GREATER LONDON AUTHORITY,"3,891,785.34",16/11/2016
Corporate Accounting,Corporate Accounting,Other Local Authorities - Thir,EBX0144326,GREATER LONDON AUTHORITY,"230,277.00",22/11/2016
Corporate Accounting,Corporate Accounting,Other Transfer Payments to Soc,60066363,CITIBANK NA LONDON,157.90,11/11/2016
Corporate Accounting,Corporate Accounting,Other Transfer Payments to Soc,60066383,CITIBANK NA LONDON,"1,538.00",11/11/2016
Corporate Accounting,Corporate Accounting,Other Transfer Payments to Soc,60066392,CITIBANK NA LONDON,247.90,11/11/2016
Corporate Accounting,Corporate Accounting,Other Transfer Payments to Soc,60066404,CITIBANK NA LONDON,"1,230.68",11/11/2016
Corporate Accounting,Corporate Accounting,Other Transfer Payments to Soc,60066406,CITIBANK NA LONDON,"1,133.20",11/11/2016
Corporate Accounting,Corporate Accounting,Other Transfer Payments to Soc,60066410,CITIBANK NA LONDON,182.90,11/11/2016
Corporate Accounting,Corporate Accounting,Other Transfer Payments to Soc,60066418,CITIBANK NA LONDON,127.90,11/11/2016
Corporate Accounting,Corporate Accounting,Other Transfer Payments to Soc,60066422,CITIBANK NA LONDON,80.00,11/11/2016
Corporate Accounting,Corporate Accounting,Other Transfer Payments to Soc,60066430,CITIBANK NA LONDON,305.01,11/11/2016
Corporate Accounting,Corporate Accounting,Other Transfer Payments to Soc,60066438,CITIBANK NA LONDON,"1,073.60",11/11/2016
Corporate Accounting,Corporate Accounting,Other Transfer Payments to Soc,60066439,CITIBANK NA LONDON,908.91,11/11/2016
Corporate Accounting,Corporate Accounting,Other Transfer Payments to Soc,60066661,CITIBANK NA LONDON,"1,036.02",17/11/2016
Corporate Accounting,Corporate Accounting,Other Transfer Payments to Soc,60066666,CITIBANK NA LONDON,435.30,17/11/2016
Corporate Accounting,Corporate Accounting,Other Transfer Payments to Soc,60066695,CITIBANK NA LONDON,559.00,17/11/2016
Corporate Accounting,Corporate Accounting,Other Transfer Payments to Soc,60066732,CITIBANK NA LONDON,173.70,17/11/2016
Corporate Accounting,Corporate Accounting,Other Transfer Payments to Soc,60066737,CITIBANK NA LONDON,77.90,17/11/2016
Corporate Accounting,Corporate Accounting,Other Transfer Payments to Soc,60066751,CITIBANK NA LONDON,210.00,17/11/2016
Corporate Accounting,Corporate Accounting,Other Transfer Payments to Soc,60066753,CITIBANK NA LONDON,529.16,17/11/2016
Corporate Accounting,Corporate Accounting,Other Transfer Payments to Soc,60066777,CITIBANK NA LONDON,"6,763.80",17/11/2016
Corporate Accounting,Corporate Accounting,Other Transfer Payments to Soc,60066783,CITIBANK NA LONDON,345.90,17/11/2016
Corporate Accounting,Corporate Accounting,Other Transfer Payments to Soc,60066786,CITIBANK NA LONDON,"3,025.60",17/11/2016
Corporate Accounting,Corporate Accounting,Other Transfer Payments to Soc,60066787,CITIBANK NA LONDON,20.00,17/11/2016
Corporate Accounting,Corporate Accounting,Other Transfer Payments to Soc,60066906,CITIBANK NA LONDON,397.50,21/11/2016
Corporate Accounting,Corporate Accounting,Other Transfer Payments to Soc,60066925,CITIBANK NA LONDON,176.50,21/11/2016
Corporate Accounting,Corporate Accounting,Other Transfer Payments to Soc,60066939,CITIBANK NA LONDON,265.50,21/11/2016
Delivery Units,Adults and Communities,Advertising for staff,60061191,TMP (UK) LTD,529.50,14/11/2016
Delivery Units,Adults and Communities,Capital Construction and Works,60063695,QUANTUM GEOTECHNICAL LTD,"72,012.76",29/11/2016
Delivery Units,Adults and Communities,Cleaning and domestic material,60065896,CHURCHILL CONTRACT SERVICES,391.37,30/11/2016
Delivery Units,Adults and Communities,Cleaning and domestic material,60066003,CHURCHILL CONTRACT SERVICES,377.81,30/11/2016
Delivery Units,Adults and Communities,Consultants Fees,60066238,VOICEABILITY,"3,940.00",09/11/2016
Delivery Units,Adults and Communities,Direct Transfer Payments to So,30142140,CITIBANK NA LONDON,250.00,09/11/2016
Delivery Units,Adults and Communities,Direct Transfer Payments to So,30142566,CITIBANK NA LONDON,250.00,15/11/2016
Delivery Units,Adults and Communities,Direct Transfer Payments to So,30142567,CITIBANK NA LONDON,250.00,15/11/2016
Delivery Units,Adults and Communities,Electricity,60065943,KENT COUNTY COUNCIL (KCS),111.82,14/11/2016
Delivery Units,Adults and Communities,Equipment and Materials Purcha,60064897,MEDEQUIP ASSISTIVE TECHNOLOGY LTD,"247,243.43",14/11/2016
Delivery Units,Adults and Communities,Equipment and Materials Purcha,60064912,MEDEQUIP ASSISTIVE TECHNOLOGY LTD,397.77,14/11/2016
Delivery Units,Adults and Communities,Equipment and Materials Purcha,60067086,MEDEQUIP ASSISTIVE TECHNOLOGY LTD,"203,693.48",25/11/2016
Delivery Units,Adults and Communities,Equipment and Materials Purcha,60067088,MEDEQUIP ASSISTIVE TECHNOLOGY LTD,"1,738.80",25/11/2016
Delivery Units,Adults and Communities,Equipment and Materials Purcha,60067106,MEDEQUIP ASSISTIVE TECHNOLOGY LTD,491.40,25/11/2016
Delivery Units,Adults and Communities,Equipment and Materials Purcha,60067126,MEDEQUIP ASSISTIVE TECHNOLOGY LTD,533.06,25/11/2016
Delivery Units,Adults and Communities,Equipment and Materials Purcha,60065660,THE PROFESSIONAL PROMOTION COMPANY LTD,225.00,23/11/2016
Delivery Units,Adults and Communities,Food Costs,60065072,MULLER MILK & INGREDIENTS,1.46,04/11/2016
Delivery Units,Adults and Communities,Food Costs,60065574,MULLER MILK & INGREDIENTS,1.46,11/11/2016
Delivery Units,Adults and Communities,Food Costs,60065933,MULLER MILK & INGREDIENTS,1.46,18/11/2016
Delivery Units,Adults and Communities,Food Costs,60066434,MULLER MILK & INGREDIENTS,1.46,25/11/2016
Delivery Units,Adults and Communities,Furniture-Purchase-Repair,60065871,REDACTED - PERSONAL DATA,110.00,09/11/2016
Delivery Units,Adults and Communities,Furniture-Purchase-Repair,60065907,REDACTED - PERSONAL DATA,200.00,09/11/2016
Delivery Units,Adults and Communities,Gas,60067064,BRITISH GAS,556.59,22/11/2016
Delivery Units,Adults and Communities,Gas,60065078,KENT COUNTY COUNCIL (KCS),88.14,02/11/2016
Delivery Units,Adults and Communities,I18 - Additional Grants for Sc,60065682,BEECHES HR CONSULTANCY,500.00,09/11/2016
Delivery Units,Adults and Communities,I18 - Additional Grants for Sc,60065705,BEECHES HR CONSULTANCY,500.00,04/11/2016
Delivery Units,Adults and Communities,I18 - Additional Grants for Sc,60065742,BEECHES HR CONSULTANCY,500.00,25/11/2016
Delivery Units,Adults and Communities,I18 - Additional Grants for Sc,60065743,BEECHES HR CONSULTANCY,500.00,04/11/2016
Delivery Units,Adults and Communities,I18 - Additional Grants for Sc,60065774,BEECHES HR CONSULTANCY,"1,000.00",04/11/2016
Delivery Units,Adults and Communities,I18 - Additional Grants for Sc,60066267,KAIROS HEALTHCARE TRAINING,400.00,09/11/2016
Delivery Units,Adults and Communities,Other Agencies - Third Party P,30144377,AARON COURT CARE HOME,"2,144.91",28/11/2016
Delivery Units,Adults and Communities,Other Agencies - Third Party P,30142923,ABBEY RAVENSCROFT PARK NURSING HOME,428.57,18/11/2016
Delivery Units,Adults and Communities,Other Agencies - Third Party P,30144939,ABBEY RAVENSCROFT PARK NURSING HOME,"2,698.37",30/11/2016
Delivery Units,Adults and Communities,Other Agencies - Third Party P,30144940,ABBEY RAVENSCROFT PARK NURSING HOME,"2,436.39",30/11/2016
Delivery Units,Adults and Communities,Other Agencies - Third Party P,30144941,ABBEY RAVENSCROFT PARK NURSING HOME,"2,698.37",30/11/2016
Delivery Units,Adults and Communities,Other Agencies - Third Party P,30144942,ABBEY RAVENSCROFT PARK NURSING HOME,"2,698.37",30/11/2016
Delivery Units,Adults and Communities,Other Agencies - Third Party P,30144943,ABBEY RAVENSCROFT PARK NURSING HOME,"2,698.37",30/11/2016
Delivery Units,Adults and Communities,Other Agencies - Third Party P,30144945,ABBEY RAVENSCROFT PARK NURSING HOME,"2,698.37",30/11/2016
Delivery Units,Adults and Communities,Other Agencies - Third Party P,30144946,ABBEY RAVENSCROFT PARK NURSING HOME,"3,150.00",30/11/2016
Delivery Units,Adults and Communities,Other Agencies - Third Party P,30144947,ABBEY RAVENSCROFT PARK NURSING HOME,"3,150.00",30/11/2016
Delivery Units,Adults and Communities,Other Agencies - Third Party P,30144948,ABBEY RAVENSCROFT PARK NURSING HOME,"3,150.00",30/11/2016
Delivery Units,Adults and Communities,Other Agencies - Third Party P,30144949,ABBEY RAVENSCROFT PARK NURSING HOME,"2,698.37",30/11/2016
Delivery Units,Adults and Communities,Other Agencies - Third Party P,30144950,ABBEY RAVENSCROFT PARK NURSING HOME,"3,037.50",30/11/2016
Delivery Units,Adults and Communities,Other Agencies - Third Party P,30144951,ABBEY RAVENSCROFT PARK NURSING HOME,"2,698.37",30/11/2016
Delivery Units,Adults and Communities,Other Agencies - Third Party P,30144952,ABBEY RAVENSCROFT PARK NURSING HOME,"3,150.00",30/11/2016
Delivery Units,Adults and Communities,Other Agencies - Third Party P,30144953,ABBEY RAVENSCROFT PARK NURSING HOME,"3,150.00",30/11/2016
Delivery Units,Adults and Communities,Other Agencies - Third Party P,30144954,ABBEY RAVENSCROFT PARK NURSING HOME,"3,150.00",30/11/2016
Delivery Units,Adults and Communities,Other Agencies - Third Party P,30144955,ABBEY RAVENSCROFT PARK NURSING HOME,"3,150.00",30/11/2016
Delivery Units,Adults and Communities,Other Agencies - Third Party P,30144956,ABBEY RAVENSCROFT PARK NURSING HOME,"3,150.00",30/11/2016
Delivery Units,Adults and Communities,Other Agencies - Third Party P,30144957,ABBEY RAVENSCROFT PARK NURSING HOME,"3,150.00",30/11/2016
Delivery Units,Adults and Communities,Other Agencies - Third Party P,30144958,ABBEY RAVENSCROFT PARK NURSING HOME,"3,150.00",30/11/2016
Delivery Units,Adults and Communities,Other Agencies - Third Party P,30144959,ABBEY RAVENSCROFT PARK NURSING HOME,"3,150.00",30/11/2016
Delivery Units,Adults and Communities,Other Agencies - Third Party P,30144960,ABBEY RAVENSCROFT PARK NURSING HOME,"2,698.37",30/11/2016
Delivery Units,Adults and Communities,Other Agencies - Third Party P,30144961,ABBEY RAVENSCROFT PARK NURSING HOME,"2,698.37",30/11/2016
Delivery Units,Adults and Communities,Other Agencies - Third Party P,30144962,ABBEY RAVENSCROFT PARK NURSING HOME,"3,150.00",30/11/2016
Delivery Units,Adults and Communities,Other Agencies - Third Party P,30144963,ABBEY RAVENSCROFT PARK NURSING HOME,"3,000.00",30/11/2016
Delivery Units,Adults and Communities,Other Agencies - Third Party P,30144987,ABBEY RAVENSCROFT PARK NURSING HOME,"-2,435.71",30/11/2016
Delivery Units,Adults and Communities,Other Agencies - Third Party P,30141935,ABOUT ME CARE & SUPPORT LTD,"1,365.84",08/11/2016
Delivery Units,Adults and Communities,Other Agencies - Third Party P,30141640,ACCEDO CARE LTD,"6,594.14",03/11/2016
Delivery Units,Adults and Communities,Other Agencies - Third Party P,30144568,ACCEDO CARE LTD,"6,381.43",29/11/2016
Delivery Units,Adults and Communities,Other Agencies - Third Party P,30142607,AGUDAS ISRAEL HOUSING ASSCTN LTD,"3,154.25",16/11/2016
Delivery Units,Adults and Communities,Other Agencies - Third Party P,30142608,AGUDAS ISRAEL HOUSING ASSCTN LTD,"2,736.86",16/11/2016
Delivery Units,Adults and Communities,Other Agencies - Third Party P,30144106,ALDWYCK HOUSING GROUP,580.50,25/11/2016
Delivery Units,Adults and Communities,Other Agencies - Third Party P,30144107,ALDWYCK HOUSING GROUP,"2,176.89",25/11/2016
Delivery Units,Adults and Communities,Other Agencies - Third Party P,30144108,ALDWYCK HOUSING GROUP,"2,176.89",25/11/2016
Delivery Units,Adults and Communities,Other Agencies - Third Party P,30144109,ALDWYCK HOUSING GROUP,"2,176.89",25/11/2016
Delivery Units,Adults and Communities,Other Agencies - Third Party P,30144110,ALDWYCK HOUSING GROUP,"2,176.89",25/11/2016
Delivery Units,Adults and Communities,Other Agencies - Third Party P,30142054,ALEXANDRA HOUSE (RUNWOOD HOMES),"2,262.69",08/11/2016
Delivery Units,Adults and Communities,Other Agencies - Third Party P,30141474,ALLIED HEALTHCARE LTD,"3,191.32",01/11/2016
Delivery Units,Adults and Communities,Other Agencies - Third Party P,30141844,ALLIED HEALTHCARE LTD,52.32,07/11/2016
Delivery Units,Adults and Communities,Other Agencies - Third Party P,30141845,ALLIED HEALTHCARE LTD,52.32,07/11/2016
Delivery Units,Adults and Communities,Other Agencies - Third Party P,30141846,ALLIED HEALTHCARE LTD,52.32,07/11/2016
Delivery Units,Adults and Communities,Other Agencies - Third Party P,30141847,ALLIED HEALTHCARE LTD,47.96,07/11/2016
Delivery Units,Adults and Communities,Other Agencies - Third Party P,30141848,ALLIED HEALTHCARE LTD,58.86,07/11/2016
Delivery Units,Adults and Communities,Other Agencies - Third Party P,30141849,ALLIED HEALTHCARE LTD,43.60,07/11/2016
Delivery Units,Adults and Communities,Other Agencies - Third Party P,30141850,ALLIED HEALTHCARE LTD,52.32,07/11/2016
Delivery Units,Adults and Communities,Other Agencies - Third Party P,30141852,ALLIED HEALTHCARE LTD,52.32,07/11/2016
Delivery Units,Adults and Communities,Other Agencies - Third Party P,30142564,ALLIED HEALTHCARE LTD,52.32,15/11/2016
Delivery Units,Adults and Communities,Other Agencies - Third Party P,30142565,ALLIED HEALTHCARE LTD,52.32,15/11/2016
Delivery Units,Adults and Communities,Other Agencies - Third Party P,30142574,ALLIED HEALTHCARE LTD,"2,929.16",15/11/2016
Delivery Units,Adults and Communities,Other Agencies - Third Party P,30142601,AN DIANDAN HOUSE,"1,947.80",16/11/2016
Delivery Units,Adults and Communities,Other Agencies - Third Party P,30144305,AN DIANDAN HOUSE,"20,034.64",28/11/2016
Delivery Units,Adults and Communities,Other Agencies - Third Party P,30144306,AN DIANDAN HOUSE,"20,034.64",28/11/2016
Delivery Units,Adults and Communities,Other Agencies - Third Party P,30144307,AN DIANDAN HOUSE,"20,034.64",28/11/2016
Delivery Units,Adults and Communities,Other Agencies - Third Party P,30141647,ANA HOMECARE LTD,367.36,03/11/2016
Delivery Units,Adults and Communities,Other Agencies - Third Party P,30141648,ANA HOMECARE LTD,685.79,03/11/2016
Delivery Units,Adults and Communities,Other Agencies - Third Party P,30141649,ANA HOMECARE LTD,367.36,03/11/2016
Delivery Units,Adults and Communities,Other Agencies - Third Party P,30141650,ANA HOMECARE LTD,659.56,03/11/2016
Delivery Units,Adults and Communities,Other Agencies - Third Party P,30145032,ANA HOMECARE LTD,209.86,30/11/2016
Delivery Units,Adults and Communities,Other Agencies - Third Party P,30145033,ANA HOMECARE LTD,104.93,30/11/2016
Delivery Units,Adults and Communities,Other Agencies - Third Party P,30145034,ANA HOMECARE LTD,194.87,30/11/2016
Delivery Units,Adults and Communities,Other Agencies - Third Party P,30145035,ANA HOMECARE LTD,209.86,30/11/2016
Delivery Units,Adults and Communities,Other Agencies - Third Party P,30145036,ANA HOMECARE LTD,29.98,30/11/2016
Delivery Units,Adults and Communities,Other Agencies - Third Party P,30142775,ANASTASIA LODGE,"3,000.00",18/11/2016
Delivery Units,Adults and Communities,Other Agencies - Third Party P,30143703,ANASTASIA LODGE,"3,000.00",28/11/2016
Delivery Units,Adults and Communities,Other Agencies - Third Party P,30142138,ANGEL HEALTHCARE LTD - GLENMUIR HOUSE,"2,211.72",09/11/2016
Delivery Units,Adults and Communities,Other Agencies - Third Party P,30144150,ANGEL HEALTHCARE LTD - GLENMUIR HOUSE,"2,211.72",25/11/2016
Delivery Units,Adults and Communities,Other Agencies - Third Party P,80006570,APAD,150.00,03/11/2016
Delivery Units,Adults and Communities,Other Agencies - Third Party P,30141670,APPLE TREE COURT CARE HOME,"2,448.78",07/11/2016
Delivery Units,Adults and Communities,Other Agencies - Third Party P,30144005,APPLE TREE COURT CARE HOME,"2,369.79",24/11/2016
Delivery Units,Adults and Communities,Other Agencies - Third Party P,30144169,APPLE TREE COURT CARE HOME,"2,320.37",25/11/2016
Delivery Units,Adults and Communities,Other Agencies - Third Party P,30144170,APPLE TREE COURT CARE HOME,"2,320.37",25/11/2016
Delivery Units,Adults and Communities,Other Agencies - Third Party P,30144171,APPLE TREE COURT CARE HOME,"2,244.13",25/11/2016
Delivery Units,Adults and Communities,Other Agencies - Third Party P,30144172,APPLE TREE COURT CARE HOME,"2,487.77",25/11/2016
Delivery Units,Adults and Communities,Other Agencies - Third Party P,30144173,APPLE TREE COURT CARE HOME,"2,487.77",25/11/2016
Delivery Units,Adults and Communities,Other Agencies - Third Party P,30144174,APPLE TREE COURT CARE HOME,"2,487.77",25/11/2016
Delivery Units,Adults and Communities,Other Agencies - Third Party P,30144175,APPLE TREE COURT CARE HOME,"2,487.77",25/11/2016
Delivery Units,Adults and Communities,Other Agencies - Third Party P,30144176,APPLE TREE COURT CARE HOME,"3,000.00",25/11/2016
Delivery Units,Adults and Communities,Other Agencies - Third Party P,30144177,APPLE TREE COURT CARE HOME,"2,571.43",25/11/2016
Delivery Units,Adults and Communities,Other Agencies - Third Party P,30144178,APPLE TREE COURT CARE HOME,"2,340.04",25/11/2016
Delivery Units,Adults and Communities,Other Agencies - Third Party P,30144179,APPLE TREE COURT CARE HOME,"2,487.77",25/11/2016
Delivery Units,Adults and Communities,Other Agencies - Third Party P,30144180,APPLE TREE COURT CARE HOME,"3,428.57",25/11/2016
Delivery Units,Adults and Communities,Other Agencies - Third Party P,30143636,AREA 51 EDUCATION LTD,474.00,24/11/2016
Delivery Units,Adults and Communities,Other Agencies - Third Party P,30143637,AREA 51 EDUCATION LTD,711.00,24/11/2016
Delivery Units,Adults and Communities,Other Agencies - Third Party P,30143638,AREA 51 EDUCATION LTD,948.00,24/11/2016
Delivery Units,Adults and Communities,Other Agencies - Third Party P,30144139,AREA 51 EDUCATION LTD,632.00,25/11/2016
Delivery Units,Adults and Communities,Other Agencies - Third Party P,30144140,AREA 51 EDUCATION LTD,316.00,25/11/2016
Delivery Units,Adults and Communities,Other Agencies - Third Party P,30144141,AREA 51 EDUCATION LTD,474.00,25/11/2016
Delivery Units,Adults and Communities,Other Agencies - Third Party P,30144142,AREA 51 EDUCATION LTD,632.00,25/11/2016
Delivery Units,Adults and Communities,Other Agencies - Third Party P,30144143,AREA 51 EDUCATION LTD,474.00,25/11/2016
Delivery Units,Adults and Communities,Other Agencies - Third Party P,30144144,AREA 51 EDUCATION LTD,632.00,25/11/2016
Delivery Units,Adults and Communities,Other Agencies - Third Party P,30144314,AREA 51 EDUCATION LTD,"1,185.00",28/11/2016
Delivery Units,Adults and Communities,Other Agencies - Third Party P,30144315,AREA 51 EDUCATION LTD,"1,580.00",28/11/2016
Delivery Units,Adults and Communities,Other Agencies - Third Party P,30143352,ASH COURT CARE CENTRE,"3,764.29",22/11/2016
Delivery Units,Adults and Communities,Other Agencies - Third Party P,30144352,ASH COURT CARE CENTRE,"3,642.86",30/11/2016
Delivery Units,Adults and Communities,Other Agencies - Third Party P,30142021,ASHFIELDS RESIDENTIAL CARE HOME,"2,448.78",08/11/2016
Delivery Units,Adults and Communities,Other Agencies - Third Party P,30144188,ASHFIELDS RESIDENTIAL CARE HOME,"2,369.79",25/11/2016
Delivery Units,Adults and Communities,Other Agencies - Third Party P,30144189,ASHFIELDS RESIDENTIAL CARE HOME,"2,369.79",25/11/2016
Delivery Units,Adults and Communities,Other Agencies - Third Party P,30144190,ASHFIELDS RESIDENTIAL CARE HOME,"2,571.43",25/11/2016
Delivery Units,Adults and Communities,Other Agencies - Third Party P,30144191,ASHFIELDS RESIDENTIAL CARE HOME,"2,369.79",25/11/2016
Delivery Units,Adults and Communities,Other Agencies - Third Party P,30144192,ASHFIELDS RESIDENTIAL CARE HOME,"2,176.71",25/11/2016
Delivery Units,Adults and Communities,Other Agencies - Third Party P,30144194,ASHFIELDS RESIDENTIAL CARE HOME,"2,369.79",25/11/2016
Delivery Units,Adults and Communities,Other Agencies - Third Party P,30144360,ASHFIELDS RESIDENTIAL CARE HOME,"2,369.79",28/11/2016
Delivery Units,Adults and Communities,Other Agencies - Third Party P,30141604,ASHTON LODGE CARE CENTRE,-420.29,03/11/2016
Delivery Units,Adults and Communities,Other Agencies - Third Party P,30141689,ASHTON LODGE CARE CENTRE,"3,512.18",03/11/2016
Delivery Units,Adults and Communities,Other Agencies - Third Party P,30141727,ASHTON LODGE CARE CENTRE,"3,764.29",03/11/2016
Delivery Units,Adults and Communities,Other Agencies - Third Party P,30143368,ASHTON LODGE CARE CENTRE,"-1,668.95",24/11/2016
Delivery Units,Adults and Communities,Other Agencies - Third Party P,30144092,ASHTON LODGE CARE CENTRE,"3,528.57",24/11/2016
Delivery Units,Adults and Communities,Other Agencies - Third Party P,30144350,ASHTON LODGE CARE CENTRE,"2,320.37",28/11/2016
Delivery Units,Adults and Communities,Other Agencies - Third Party P,30144374,ASHTON LODGE CARE CENTRE,"2,569.89",28/11/2016
Delivery Units,Adults and Communities,Other Agencies - Third Party P,30144380,ASHTON LODGE CARE CENTRE,"2,569.89",28/11/2016
Delivery Units,Adults and Communities,Other Agencies - Third Party P,30144404,ASHTON LODGE CARE CENTRE,"2,176.89",28/11/2016
Delivery Units,Adults and Communities,Other Agencies - Third Party P,30144407,ASHTON LODGE CARE CENTRE,"2,569.89",28/11/2016
Delivery Units,Adults and Communities,Other Agencies - Third Party P,30144410,ASHTON LODGE CARE CENTRE,"2,571.43",28/11/2016
Delivery Units,Adults and Communities,Other Agencies - Third Party P,30144412,ASHTON LODGE CARE CENTRE,"2,571.43",28/11/2016
Delivery Units,Adults and Communities,Other Agencies - Third Party P,30144414,ASHTON LODGE CARE CENTRE,"2,369.79",28/11/2016
Delivery Units,Adults and Communities,Other Agencies - Third Party P,30144415,ASHTON LODGE CARE CENTRE,"3,642.86",28/11/2016
Delivery Units,Adults and Communities,Other Agencies - Third Party P,30144416,ASHTON LODGE CARE CENTRE,"2,421.43",28/11/2016
Delivery Units,Adults and Communities,Other Agencies - Third Party P,30144418,ASHTON LODGE CARE CENTRE,"2,569.89",28/11/2016
Delivery Units,Adults and Communities,Other Agencies - Third Party P,30144448,ASHTON LODGE CARE CENTRE,"2,369.79",28/11/2016
Delivery Units,Adults and Communities,Other Agencies - Third Party P,30144449,ASHTON LODGE CARE CENTRE,"3,162.86",28/11/2016
Delivery Units,Adults and Communities,Other Agencies - Third Party P,30144451,ASHTON LODGE CARE CENTRE,"2,973.21",28/11/2016
Delivery Units,Adults and Communities,Other Agencies - Third Party P,30144452,ASHTON LODGE CARE CENTRE,"2,320.37",28/11/2016
Delivery Units,Adults and Communities,Other Agencies - Third Party P,30144453,ASHTON LODGE CARE CENTRE,"2,369.79",28/11/2016
Delivery Units,Adults and Communities,Other Agencies - Third Party P,30144454,ASHTON LODGE CARE CENTRE,"3,805.71",28/11/2016
Delivery Units,Adults and Communities,Other Agencies - Third Party P,30145067,ASHTON LODGE CARE CENTRE,"-1,828.57",30/11/2016
Delivery Units,Adults and Communities,Other Agencies - Third Party P,30145074,ASHTON LODGE CARE CENTRE,"5,748.21",30/11/2016
Delivery Units,Adults and Communities,Other Agencies - Third Party P,30144383,ASPEN VILLAGES LTD,"2,144.91",28/11/2016
Delivery Units,Adults and Communities,Other Agencies - Third Party P,30144384,ASPEN VILLAGES LTD,"4,714.29",28/11/2016
Delivery Units,Adults and Communities,Other Agencies - Third Party P,30144385,ASPEN VILLAGES LTD,"3,214.29",28/11/2016
Delivery Units,Adults and Communities,Other Agencies - Third Party P,30144387,ASPEN VILLAGES LTD,"3,428.57",28/11/2016
Delivery Units,Adults and Communities,Other Agencies - Third Party P,30144388,ASPEN VILLAGES LTD,"5,785.71",28/11/2016
Delivery Units,Adults and Communities,Other Agencies - Third Party P,30144389,ASPEN VILLAGES LTD,"2,340.04",28/11/2016
Delivery Units,Adults and Communities,Other Agencies - Third Party P,30144390,ASPEN VILLAGES LTD,"4,714.29",28/11/2016
Delivery Units,Adults and Communities,Other Agencies - Third Party P,30144391,ASPEN VILLAGES LTD,"4,071.43",28/11/2016
Delivery Units,Adults and Communities,Other Agencies - Third Party P,30144392,ASPEN VILLAGES LTD,"3,428.57",28/11/2016
Delivery Units,Adults and Communities,Other Agencies - Third Party P,30144393,ASPEN VILLAGES LTD,"4,714.29",28/11/2016
Delivery Units,Adults and Communities,Other Agencies - Third Party P,30144394,ASPEN VILLAGES LTD,"3,642.86",28/11/2016
Delivery Units,Adults and Communities,Other Agencies - Third Party P,30142814,AUTUMN GARDENS,"3,160.00",18/11/2016
Delivery Units,Adults and Communities,Other Agencies - Third Party P,30142815,AUTUMN GARDENS,"4,800.00",18/11/2016
Delivery Units,Adults and Communities,Other Agencies - Third Party P,30142816,AUTUMN GARDENS,"2,880.00",18/11/2016
Delivery Units,Adults and Communities,Other Agencies - Third Party P,30142817,AUTUMN GARDENS,"2,800.00",18/11/2016
Delivery Units,Adults and Communities,Other Agencies - Third Party P,30142818,AUTUMN GARDENS,"2,184.04",18/11/2016
Delivery Units,Adults and Communities,Other Agencies - Third Party P,30143748,AUTUMN GARDENS,"2,184.04",24/11/2016
Delivery Units,Adults and Communities,Other Agencies - Third Party P,30143749,AUTUMN GARDENS,"2,800.00",24/11/2016
Delivery Units,Adults and Communities,Other Agencies - Third Party P,30143750,AUTUMN GARDENS,"2,880.00",24/11/2016
Delivery Units,Adults and Communities,Other Agencies - Third Party P,30143751,AUTUMN GARDENS,"4,800.00",24/11/2016
Delivery Units,Adults and Communities,Other Agencies - Third Party P,30143752,AUTUMN GARDENS,"3,160.00",24/11/2016
Delivery Units,Adults and Communities,Other Agencies - Third Party P,30143753,AUTUMN GARDENS,"3,200.00",24/11/2016
Delivery Units,Adults and Communities,Other Agencies - Third Party P,30144397,B & M CARE,"2,176.89",28/11/2016
Delivery Units,Adults and Communities,Other Agencies - Third Party P,30144398,B & M CARE,"2,982.86",28/11/2016
Delivery Units,Adults and Communities,Other Agencies - Third Party P,30144399,B & M CARE,"2,369.79",28/11/2016
Delivery Units,Adults and Communities,Other Agencies - Third Party P,30144400,B & M CARE,"2,369.79",28/11/2016
Delivery Units,Adults and Communities,Other Agencies - Third Party P,30144401,B & M CARE,"3,642.86",28/11/2016
Delivery Units,Adults and Communities,Other Agencies - Third Party P,30144402,B & M CARE,"3,642.86",28/11/2016
Delivery Units,Adults and Communities,Other Agencies - Third Party P,30144403,B & M CARE,"3,642.86",28/11/2016
Delivery Units,Adults and Communities,Other Agencies - Third Party P,30142603,BARNET CARERS CENTRE,105.48,16/11/2016
Delivery Units,Adults and Communities,Other Agencies - Third Party P,30142604,BARNET CARERS CENTRE,39.56,16/11/2016
Delivery Units,Adults and Communities,Other Agencies - Third Party P,30144597,BARNET EXECUTIVE CAR SERVICE,480.00,29/11/2016
Delivery Units,Adults and Communities,Other Agencies - Third Party P,30144607,BARNET EXECUTIVE CAR SERVICE,400.00,29/11/2016
Delivery Units,Adults and Communities,Other Agencies - Third Party P,30141600,BARNET MENCAP,921.20,02/11/2016
Delivery Units,Adults and Communities,Other Agencies - Third Party P,30142204,BARNET MENCAP,"1,771.20",09/11/2016
Delivery Units,Adults and Communities,Other Agencies - Third Party P,30144161,BAYTREE COMMUNITY CARE (LONDON) LTD,"2,797.06",25/11/2016
Delivery Units,Adults and Communities,Other Agencies - Third Party P,30144162,BAYTREE COMMUNITY CARE (LONDON) LTD,"2,600.01",25/11/2016
Delivery Units,Adults and Communities,Other Agencies - Third Party P,30144163,BAYTREE COMMUNITY CARE (LONDON) LTD,"2,014.84",25/11/2016
Delivery Units,Adults and Communities,Other Agencies - Third Party P,30144164,BAYTREE COMMUNITY CARE (LONDON) LTD,"3,424.27",25/11/2016
Delivery Units,Adults and Communities,Other Agencies - Third Party P,30142010,BELMONT LODGE CARE CENTRE,"2,404.71",08/11/2016
Delivery Units,Adults and Communities,Other Agencies - Third Party P,30144354,BELMONT LODGE CARE CENTRE,"2,327.14",28/11/2016
Delivery Units,Adults and Communities,Other Agencies - Third Party P,30144783,BIRCHWOOD GRANGE CARE HOME,"2,571.43",29/11/2016
Delivery Units,Adults and Communities,Other Agencies - Third Party P,30141639,BROOKDALE HEALTHCARE,"9,672.90",03/11/2016
Delivery Units,Adults and Communities,Other Agencies - Third Party P,30142364,BROOKDALE HEALTHCARE,"3,759.36",14/11/2016
Delivery Units,Adults and Communities,Other Agencies - Third Party P,30144297,BROOKDALE HEALTHCARE,"9,000.00",28/11/2016
Delivery Units,Adults and Communities,Other Agencies - Third Party P,30144298,BROOKDALE HEALTHCARE,"9,300.00",28/11/2016
Delivery Units,Adults and Communities,Other Agencies - Third Party P,30144299,BROOKDALE HEALTHCARE,"9,672.90",28/11/2016
Delivery Units,Adults and Communities,Other Agencies - Third Party P,30144806,BRUNSWICK SUPPORTED LIVING SERVICES,"1,412.68",29/11/2016
Delivery Units,Adults and Communities,Other Agencies - Third Party P,30144807,BRUNSWICK SUPPORTED LIVING SERVICES,"1,942.84",29/11/2016
Delivery Units,Adults and Communities,Other Agencies - Third Party P,30144811,BRUNSWICK SUPPORTED LIVING SERVICES,"2,153.92",29/11/2016
Delivery Units,Adults and Communities,Other Agencies - Third Party P,30141481,BUPA CARE HOMES,"3,287.93",01/11/2016
Delivery Units,Adults and Communities,Other Agencies - Third Party P,30142028,BUPA CARE HOMES,522.57,08/11/2016
Delivery Units,Adults and Communities,Other Agencies - Third Party P,30142029,BUPA CARE HOMES,"2,384.57",08/11/2016
Delivery Units,Adults and Communities,Other Agencies - Third Party P,30142030,BUPA CARE HOMES,"2,943.51",08/11/2016
Delivery Units,Adults and Communities,Other Agencies - Third Party P,30142201,BUPA CARE HOMES,552.93,09/11/2016
Delivery Units,Adults and Communities,Other Agencies - Third Party P,30142471,BUPA CARE HOMES,522.57,14/11/2016
Delivery Units,Adults and Communities,Other Agencies - Third Party P,30142472,BUPA CARE HOMES,85.66,14/11/2016
Delivery Units,Adults and Communities,Other Agencies - Third Party P,30143369,BUPA CARE HOMES,"1,970.76",22/11/2016
Delivery Units,Adults and Communities,Other Agencies - Third Party P,30143370,BUPA CARE HOMES,"2,314.24",22/11/2016
Delivery Units,Adults and Communities,Other Agencies - Third Party P,30143371,BUPA CARE HOMES,"1,756.81",22/11/2016
Delivery Units,Adults and Communities,Other Agencies - Third Party P,30143372,BUPA CARE HOMES,"1,622.27",22/11/2016
Delivery Units,Adults and Communities,Other Agencies - Third Party P,30143373,BUPA CARE HOMES,"2,464.06",22/11/2016
Delivery Units,Adults and Communities,Other Agencies - Third Party P,30143374,BUPA CARE HOMES,"3,041.63",22/11/2016
Delivery Units,Adults and Communities,Other Agencies - Third Party P,30143376,BUPA CARE HOMES,"3,243.56",22/11/2016
Delivery Units,Adults and Communities,Other Agencies - Third Party P,30143377,BUPA CARE HOMES,"3,305.91",22/11/2016
Delivery Units,Adults and Communities,Other Agencies - Third Party P,30143378,BUPA CARE HOMES,"2,466.05",22/11/2016
Delivery Units,Adults and Communities,Other Agencies - Third Party P,30143379,BUPA CARE HOMES,"3,007.40",22/11/2016
Delivery Units,Adults and Communities,Other Agencies - Third Party P,30143380,BUPA CARE HOMES,"2,466.05",22/11/2016
Delivery Units,Adults and Communities,Other Agencies - Third Party P,30143413,BUPA CARE HOMES,"2,490.90",22/11/2016
Delivery Units,Adults and Communities,Other Agencies - Third Party P,30144032,BUPA CARE HOMES,-72.13,25/11/2016
Delivery Units,Adults and Communities,Other Agencies - Third Party P,30144033,BUPA CARE HOMES,"7,707.77",24/11/2016
Delivery Units,Adults and Communities,Other Agencies - Third Party P,30144203,BUPA CARE HOMES,"1,700.14",25/11/2016
Delivery Units,Adults and Communities,Other Agencies - Third Party P,30144204,BUPA CARE HOMES,"1,469.57",25/11/2016
Delivery Units,Adults and Communities,Other Agencies - Third Party P,30144205,BUPA CARE HOMES,"2,144.91",25/11/2016
Delivery Units,Adults and Communities,Other Agencies - Third Party P,30144206,BUPA CARE HOMES,"2,121.39",25/11/2016
Delivery Units,Adults and Communities,Other Agencies - Third Party P,30144207,BUPA CARE HOMES,-267.85,25/11/2016
Delivery Units,Adults and Communities,Other Agencies - Third Party P,30144208,BUPA CARE HOMES,-691.97,25/11/2016
Delivery Units,Adults and Communities,Other Agencies - Third Party P,30144209,BUPA CARE HOMES,"1,713.26",25/11/2016
Delivery Units,Adults and Communities,Other Agencies - Third Party P,30144256,BUPA CARE HOMES,"4,796.10",25/11/2016
Delivery Units,Adults and Communities,Other Agencies - Third Party P,30144406,BUPA CARE HOMES,"2,437.24",28/11/2016
Delivery Units,Adults and Communities,Other Agencies - Third Party P,30142007,BUPA NURSING HOMES LTD - ARKLEY,"2,165.68",08/11/2016
Delivery Units,Adults and Communities,Other Agencies - Third Party P,30142008,BUPA NURSING HOMES LTD - ARKLEY,"2,358.49",08/11/2016
Delivery Units,Adults and Communities,Other Agencies - Third Party P,30143343,BUPA NURSING HOMES LTD - ARKLEY,"2,227.52",22/11/2016
Delivery Units,Adults and Communities,Other Agencies - Third Party P,30143344,BUPA NURSING HOMES LTD - ARKLEY,"2,227.24",22/11/2016
Delivery Units,Adults and Communities,Other Agencies - Third Party P,30143345,BUPA NURSING HOMES LTD - ARKLEY,"2,227.24",22/11/2016
Delivery Units,Adults and Communities,Other Agencies - Third Party P,30143346,BUPA NURSING HOMES LTD - ARKLEY,"2,227.24",22/11/2016
Delivery Units,Adults and Communities,Other Agencies - Third Party P,30143347,BUPA NURSING HOMES LTD - ARKLEY,"1,606.84",22/11/2016
Delivery Units,Adults and Communities,Other Agencies - Third Party P,30143348,BUPA NURSING HOMES LTD - ARKLEY,"2,094.52",22/11/2016
Delivery Units,Adults and Communities,Other Agencies - Third Party P,30143349,BUPA NURSING HOMES LTD - ARKLEY,"2,375.44",22/11/2016
Delivery Units,Adults and Communities,Other Agencies - Third Party P,30143350,BUPA NURSING HOMES LTD - ARKLEY,"2,214.76",22/11/2016
Delivery Units,Adults and Communities,Other Agencies - Third Party P,30143351,BUPA NURSING HOMES LTD - ARKLEY,"2,165.68",22/11/2016
Delivery Units,Adults and Communities,Other Agencies - Third Party P,30144009,BUPA NURSING HOMES LTD - ARKLEY,"3,484.16",24/11/2016
Delivery Units,Adults and Communities,Other Agencies - Third Party P,30144989,BUPA NURSING HOMES LTD - ARKLEY,"2,545.11",30/11/2016
Delivery Units,Adults and Communities,Other Agencies - Third Party P,30144990,BUPA NURSING HOMES LTD - ARKLEY,"2,630.91",30/11/2016
Delivery Units,Adults and Communities,Other Agencies - Third Party P,30142154,CAMPHILL DEVON COMMUNITY LIMITED,"4,508.00",09/11/2016
Delivery Units,Adults and Communities,Other Agencies - Third Party P,30143706,CAMPHILL DEVON COMMUNITY LIMITED,"4,508.00",24/11/2016
Delivery Units,Adults and Communities,Other Agencies - Third Party P,30144147,CANDLE COURT NURSING HOME,"5,142.86",25/11/2016
Delivery Units,Adults and Communities,Other Agencies - Third Party P,30144148,CANDLE COURT NURSING HOME,"3,642.86",25/11/2016
Delivery Units,Adults and Communities,Other Agencies - Third Party P,30144149,CANDLE COURT NURSING HOME,"2,569.89",25/11/2016
Delivery Units,Adults and Communities,Other Agencies - Third Party P,30141701,CARE ASSIST LIMITED,"4,207.14",03/11/2016
Delivery Units,Adults and Communities,Other Agencies - Third Party P,30141702,CARE ASSIST LIMITED,"4,207.14",03/11/2016
Delivery Units,Adults and Communities,Other Agencies - Third Party P,30141921,CARE WORLDWIDE (LONDON) LTD,"5,380.25",08/11/2016
Delivery Units,Adults and Communities,Other Agencies - Third Party P,30141934,CARE WORLDWIDE (LONDON) LTD,"5,380.25",08/11/2016
Delivery Units,Adults and Communities,Other Agencies - Third Party P,30141998,CARE WORLDWIDE (LONDON) LTD,"5,380.25",08/11/2016
Delivery Units,Adults and Communities,Other Agencies - Third Party P,30142004,CARE WORLDWIDE (LONDON) LTD,"5,380.25",08/11/2016
Delivery Units,Adults and Communities,Other Agencies - Third Party P,30142610,CARE WORLDWIDE (LONDON) LTD,"2,680.88",16/11/2016
Delivery Units,Adults and Communities,Other Agencies - Third Party P,30142611,CARE WORLDWIDE (LONDON) LTD,"3,936.46",16/11/2016
Delivery Units,Adults and Communities,Other Agencies - Third Party P,30142612,CARE WORLDWIDE (LONDON) LTD,"5,380.25",16/11/2016
Delivery Units,Adults and Communities,Other Agencies - Third Party P,30142613,CARE WORLDWIDE (LONDON) LTD,"4,246.53",16/11/2016
Delivery Units,Adults and Communities,Other Agencies - Third Party P,30142614,CARE WORLDWIDE (LONDON) LTD,"2,685.98",16/11/2016
Delivery Units,Adults and Communities,Other Agencies - Third Party P,30142615,CARE WORLDWIDE (LONDON) LTD,"4,400.13",16/11/2016
Delivery Units,Adults and Communities,Other Agencies - Third Party P,30142022,CARETECH COMMUNITY SERVICES LTD,"-5,795.25",14/11/2016
Delivery Units,Adults and Communities,Other Agencies - Third Party P,30142052,CARETECH COMMUNITY SERVICES LTD,287.33,14/11/2016
Delivery Units,Adults and Communities,Other Agencies - Third Party P,30142518,CARETECH COMMUNITY SERVICES LTD,"4,627.86",14/11/2016
Delivery Units,Adults and Communities,Other Agencies - Third Party P,30142519,CARETECH COMMUNITY SERVICES LTD,"2,149.94",14/11/2016
Delivery Units,Adults and Communities,Other Agencies - Third Party P,30142520,CARETECH COMMUNITY SERVICES LTD,"4,782.86",14/11/2016
Delivery Units,Adults and Communities,Other Agencies - Third Party P,30142521,CARETECH COMMUNITY SERVICES LTD,"1,527.86",14/11/2016
Delivery Units,Adults and Communities,Other Agencies - Third Party P,30142523,CARETECH COMMUNITY SERVICES LTD,919.15,14/11/2016
Delivery Units,Adults and Communities,Other Agencies - Third Party P,30142524,CARETECH COMMUNITY SERVICES LTD,"2,149.94",14/11/2016
Delivery Units,Adults and Communities,Other Agencies - Third Party P,30143418,CARETECH COMMUNITY SERVICES LTD,-895.71,30/11/2016
Delivery Units,Adults and Communities,Other Agencies - Third Party P,30144054,CARETECH COMMUNITY SERVICES LTD,"4,496.66",30/11/2016
Delivery Units,Adults and Communities,Other Agencies - Third Party P,30144056,CARETECH COMMUNITY SERVICES LTD,699.30,30/11/2016
Delivery Units,Adults and Communities,Other Agencies - Third Party P,30144057,CARETECH COMMUNITY SERVICES LTD,"7,375.71",30/11/2016
Delivery Units,Adults and Communities,Other Agencies - Third Party P,30144059,CARETECH COMMUNITY SERVICES LTD,789.81,30/11/2016
Delivery Units,Adults and Communities,Other Agencies - Third Party P,30144062,CARETECH COMMUNITY SERVICES LTD,"4,478.57",30/11/2016
Delivery Units,Adults and Communities,Other Agencies - Third Party P,30144065,CARETECH COMMUNITY SERVICES LTD,"1,053.04",30/11/2016
Delivery Units,Adults and Communities,Other Agencies - Third Party P,30144098,CARETECH COMMUNITY SERVICES LTD,889.50,30/11/2016
Delivery Units,Adults and Communities,Other Agencies - Third Party P,30144423,CARETECH COMMUNITY SERVICES LTD,459.94,30/11/2016
Delivery Units,Adults and Communities,Other Agencies - Third Party P,30144427,CARETECH COMMUNITY SERVICES LTD,"1,053.04",30/11/2016
Delivery Units,Adults and Communities,Other Agencies - Third Party P,30144431,CARETECH COMMUNITY SERVICES LTD,"1,053.04",30/11/2016
Delivery Units,Adults and Communities,Other Agencies - Third Party P,30144432,CARETECH COMMUNITY SERVICES LTD,"2,506.20",30/11/2016
Delivery Units,Adults and Communities,Other Agencies - Third Party P,30144433,CARETECH COMMUNITY SERVICES LTD,"4,478.57",30/11/2016
Delivery Units,Adults and Communities,Other Agencies - Third Party P,30144434,CARETECH COMMUNITY SERVICES LTD,"2,080.59",30/11/2016
Delivery Units,Adults and Communities,Other Agencies - Third Party P,30144435,CARETECH COMMUNITY SERVICES LTD,"4,628.57",30/11/2016
Delivery Units,Adults and Communities,Other Agencies - Third Party P,30144436,CARETECH COMMUNITY SERVICES LTD,"1,478.57",30/11/2016
Delivery Units,Adults and Communities,Other Agencies - Third Party P,30144438,CARETECH COMMUNITY SERVICES LTD,889.50,30/11/2016
Delivery Units,Adults and Communities,Other Agencies - Third Party P,30142420,CARING HOMES HEALTHCARE GROUP,"3,200.00",14/11/2016
Delivery Units,Adults and Communities,Other Agencies - Third Party P,30141644,CARLTON COURT (TLC GROUP),"1,015.88",03/11/2016
Delivery Units,Adults and Communities,Other Agencies - Third Party P,30144122,CARLTON COURT (TLC GROUP),"3,642.86",25/11/2016
Delivery Units,Adults and Communities,Other Agencies - Third Party P,30144123,CARLTON COURT (TLC GROUP),"4,285.71",25/11/2016
Delivery Units,Adults and Communities,Other Agencies - Third Party P,30144124,CARLTON COURT (TLC GROUP),"2,369.79",25/11/2016
Delivery Units,Adults and Communities,Other Agencies - Third Party P,30144125,CARLTON COURT (TLC GROUP),"2,176.89",25/11/2016
Delivery Units,Adults and Communities,Other Agencies - Third Party P,30144126,CARLTON COURT (TLC GROUP),"2,176.89",25/11/2016
Delivery Units,Adults and Communities,Other Agencies - Third Party P,30144127,CARLTON COURT (TLC GROUP),"2,569.89",25/11/2016
Delivery Units,Adults and Communities,Other Agencies - Third Party P,30144128,CARLTON COURT (TLC GROUP),"2,569.89",25/11/2016
Delivery Units,Adults and Communities,Other Agencies - Third Party P,30144131,CARLTON COURT (TLC GROUP),"2,569.89",25/11/2016
Delivery Units,Adults and Communities,Other Agencies - Third Party P,30144132,CARLTON COURT (TLC GROUP),"6,000.00",25/11/2016
Delivery Units,Adults and Communities,Other Agencies - Third Party P,30144133,CARLTON COURT (TLC GROUP),"4,285.71",25/11/2016
Delivery Units,Adults and Communities,Other Agencies - Third Party P,30144134,CARLTON COURT (TLC GROUP),"4,714.29",25/11/2016
Delivery Units,Adults and Communities,Other Agencies - Third Party P,30144135,CARLTON COURT (TLC GROUP),"3,600.90",25/11/2016
Delivery Units,Adults and Communities,Other Agencies - Third Party P,30144136,CARLTON COURT (TLC GROUP),"2,569.89",25/11/2016
Delivery Units,Adults and Communities,Other Agencies - Third Party P,30144137,CARLTON COURT (TLC GROUP),"2,320.37",25/11/2016
Delivery Units,Adults and Communities,Other Agencies - Third Party P,30145030,CARLTON COURT (TLC GROUP),"1,500.86",30/11/2016
Delivery Units,Adults and Communities,Other Agencies - Third Party P,30145031,CARLTON COURT (TLC GROUP),"2,369.79",30/11/2016
Delivery Units,Adults and Communities,Other Agencies - Third Party P,30141664,CARMEN LODGE RESIDENTIAL HOME,"2,739.47",03/11/2016
Delivery Units,Adults and Communities,Other Agencies - Third Party P,30141665,CARMEN LODGE RESIDENTIAL HOME,"2,651.10",03/11/2016
Delivery Units,Adults and Communities,Other Agencies - Third Party P,30141666,CARMEN LODGE RESIDENTIAL HOME,"2,739.47",03/11/2016
Delivery Units,Adults and Communities,Other Agencies - Third Party P,30142823,CATHERINE LODGE,"2,211.80",18/11/2016
Delivery Units,Adults and Communities,Other Agencies - Third Party P,30142825,CATHERINE LODGE,"2,211.80",18/11/2016
Delivery Units,Adults and Communities,Other Agencies - Third Party P,30142827,CATHERINE LODGE,"3,000.00",18/11/2016
Delivery Units,Adults and Communities,Other Agencies - Third Party P,30142830,CATHERINE LODGE,"2,211.80",18/11/2016
Delivery Units,Adults and Communities,Other Agencies - Third Party P,30142832,CATHERINE LODGE,"2,920.00",18/11/2016
Delivery Units,Adults and Communities,Other Agencies - Third Party P,30143267,CAVENDISH RADIO CARS,901.40,22/11/2016
Delivery Units,Adults and Communities,Other Agencies - Third Party P,30141555,CDR CARE LTD,"2,000.00",02/11/2016
Delivery Units,Adults and Communities,Other Agencies - Third Party P,30141556,CDR CARE LTD,"2,000.00",02/11/2016
Delivery Units,Adults and Communities,Other Agencies - Third Party P,30144114,CDR CARE LTD,800.00,25/11/2016
Delivery Units,Adults and Communities,Other Agencies - Third Party P,30144115,CDR CARE LTD,800.00,25/11/2016
Delivery Units,Adults and Communities,Other Agencies - Third Party P,30144116,CDR CARE LTD,800.00,25/11/2016
Delivery Units,Adults and Communities,Other Agencies - Third Party P,30144117,CDR CARE LTD,"1,680.00",25/11/2016
Delivery Units,Adults and Communities,Other Agencies - Third Party P,30144571,CDR CARE LTD,"2,000.00",29/11/2016
Delivery Units,Adults and Communities,Other Agencies - Third Party P,30144572,CDR CARE LTD,"2,000.00",29/11/2016
Delivery Units,Adults and Communities,Other Agencies - Third Party P,30144361,CEDARS NURSING HOME,"2,569.89",28/11/2016
Delivery Units,Adults and Communities,Other Agencies - Third Party P,30144362,CEDARS NURSING HOME,"2,569.89",28/11/2016
Delivery Units,Adults and Communities,Other Agencies - Third Party P,30144363,CEDARS NURSING HOME,"2,320.37",28/11/2016
Delivery Units,Adults and Communities,Other Agencies - Third Party P,30144364,CEDARS NURSING HOME,"2,569.89",28/11/2016
Delivery Units,Adults and Communities,Other Agencies - Third Party P,30144365,CEDARS NURSING HOME,"2,320.37",28/11/2016
Delivery Units,Adults and Communities,Other Agencies - Third Party P,30141430,CENTRAL MIDDLESEX SKILLS,"1,085.52",01/11/2016
Delivery Units,Adults and Communities,Other Agencies - Third Party P,30141431,CENTRAL MIDDLESEX SKILLS,904.60,01/11/2016
Delivery Units,Adults and Communities,Other Agencies - Third Party P,30144656,CHILTERN SUPPORT & HOUSING LTD,"23,836.80",29/11/2016
Delivery Units,Adults and Communities,Other Agencies - Third Party P,30144657,CHILTERN SUPPORT & HOUSING LTD,"23,836.80",29/11/2016
Delivery Units,Adults and Communities,Other Agencies - Third Party P,30145054,CHILTERN SUPPORT & HOUSING LTD,"1,071.43",30/11/2016
Delivery Units,Adults and Communities,Other Agencies - Third Party P,30145055,CHILTERN SUPPORT & HOUSING LTD,"10,000.00",30/11/2016
Delivery Units,Adults and Communities,Other Agencies - Third Party P,30145056,CHILTERN SUPPORT & HOUSING LTD,"10,000.00",30/11/2016
Delivery Units,Adults and Communities,Other Agencies - Third Party P,30145057,CHILTERN SUPPORT & HOUSING LTD,"10,000.00",30/11/2016
Delivery Units,Adults and Communities,Other Agencies - Third Party P,30142468,CLARE HOUSE NURSING HOME,"2,228.72",14/11/2016
Delivery Units,Adults and Communities,Other Agencies - Third Party P,30144366,CLOVELLY HOUSE RESID. HOME LTD,"2,211.80",28/11/2016
Delivery Units,Adults and Communities,Other Agencies - Third Party P,30144367,CLOVELLY HOUSE RESID. HOME LTD,"2,600.00",28/11/2016
Delivery Units,Adults and Communities,Other Agencies - Third Party P,30144368,CLOVELLY HOUSE RESID. HOME LTD,"2,211.80",28/11/2016
Delivery Units,Adults and Communities,Other Agencies - Third Party P,30144369,CLOVELLY HOUSE RESID. HOME LTD,"1,900.40",28/11/2016
Delivery Units,Adults and Communities,Other Agencies - Third Party P,30144370,CLOVELLY HOUSE RESID. HOME LTD,"2,600.00",28/11/2016
Delivery Units,Adults and Communities,Other Agencies - Third Party P,30144371,CLOVELLY HOUSE RESID. HOME LTD,"2,211.80",28/11/2016
Delivery Units,Adults and Communities,Other Agencies - Third Party P,30144372,CLOVELLY HOUSE RESID. HOME LTD,"2,211.80",28/11/2016
Delivery Units,Adults and Communities,Other Agencies - Third Party P,30144373,CLOVELLY HOUSE RESID. HOME LTD,"2,600.00",28/11/2016
Delivery Units,Adults and Communities,Other Agencies - Third Party P,30144375,CLOVELLY HOUSE RESID. HOME LTD,"2,211.80",28/11/2016
Delivery Units,Adults and Communities,Other Agencies - Third Party P,30141663,CMG HOMES LTD,"3,240.96",03/11/2016
Delivery Units,Adults and Communities,Other Agencies - Third Party P,30144045,CONNIFERS CARE LTD,"7,137.90",30/11/2016
Delivery Units,Adults and Communities,Other Agencies - Third Party P,30142568,COURTLANDS,"1,071.43",15/11/2016
Delivery Units,Adults and Communities,Other Agencies - Third Party P,30142569,COURTLANDS,"10,000.00",15/11/2016
Delivery Units,Adults and Communities,Other Agencies - Third Party P,30142570,COURTLANDS,"10,000.00",17/11/2016
Delivery Units,Adults and Communities,Other Agencies - Third Party P,30142571,COURTLANDS,"10,000.00",17/11/2016
Delivery Units,Adults and Communities,Other Agencies - Third Party P,30145071,COVERAGE CARE SERVICES LTD,"-2,725.00",30/11/2016
Delivery Units,Adults and Communities,Other Agencies - Third Party P,30145072,COVERAGE CARE SERVICES LTD,"9,265.00",30/11/2016
Delivery Units,Adults and Communities,Other Agencies - Third Party P,30142151,CRAEGMOOR,"2,673.96",14/11/2016
Delivery Units,Adults and Communities,Other Agencies - Third Party P,30142788,CRESWICK HOUSE,"7,123.12",18/11/2016
Delivery Units,Adults and Communities,Other Agencies - Third Party P,30144159,DABB PAA,261.36,25/11/2016
Delivery Units,Adults and Communities,Other Agencies - Third Party P,30144165,DANA CARE LIMITED,"9,582.86",25/11/2016
Delivery Units,Adults and Communities,Other Agencies - Third Party P,30144978,DELAMER HOUSE,"2,357.14",30/11/2016
Delivery Units,Adults and Communities,Other Agencies - Third Party P,30141451,DEVELOPMENT AND LEARNING OPPORTUNIT,652.40,01/11/2016
Delivery Units,Adults and Communities,Other Agencies - Third Party P,30141452,DEVELOPMENT AND LEARNING OPPORTUNIT,"1,056.00",01/11/2016
Delivery Units,Adults and Communities,Other Agencies - Third Party P,30141453,DEVELOPMENT AND LEARNING OPPORTUNIT,"1,875.00",01/11/2016
Delivery Units,Adults and Communities,Other Agencies - Third Party P,30141454,DEVELOPMENT AND LEARNING OPPORTUNIT,500.00,01/11/2016
Delivery Units,Adults and Communities,Other Agencies - Third Party P,30141455,DEVELOPMENT AND LEARNING OPPORTUNIT,306.00,01/11/2016
Delivery Units,Adults and Communities,Other Agencies - Third Party P,30141456,DEVELOPMENT AND LEARNING OPPORTUNIT,"1,053.00",01/11/2016
Delivery Units,Adults and Communities,Other Agencies - Third Party P,30142003,DEVELOPMENT AND LEARNING OPPORTUNIT,"2,958.00",08/11/2016
Delivery Units,Adults and Communities,Other Agencies - Third Party P,30143310,DEVELOPMENT AND LEARNING OPPORTUNIT,652.40,22/11/2016
Delivery Units,Adults and Communities,Other Agencies - Third Party P,30144767,DEVELOPMENT AND LEARNING OPPORTUNIT,652.40,29/11/2016
Delivery Units,Adults and Communities,Other Agencies - Third Party P,30144768,DEVELOPMENT AND LEARNING OPPORTUNIT,"1,056.00",29/11/2016
Delivery Units,Adults and Communities,Other Agencies - Third Party P,30144769,DEVELOPMENT AND LEARNING OPPORTUNIT,"1,875.00",29/11/2016
Delivery Units,Adults and Communities,Other Agencies - Third Party P,30144770,DEVELOPMENT AND LEARNING OPPORTUNIT,500.00,29/11/2016
Delivery Units,Adults and Communities,Other Agencies - Third Party P,30144771,DEVELOPMENT AND LEARNING OPPORTUNIT,306.00,29/11/2016
Delivery Units,Adults and Communities,Other Agencies - Third Party P,30144772,DEVELOPMENT AND LEARNING OPPORTUNIT,"1,053.00",29/11/2016
Delivery Units,Adults and Communities,Other Agencies - Third Party P,30144853,DILLON CARE LTD,"3,900.00",29/11/2016
Delivery Units,Adults and Communities,Other Agencies - Third Party P,30141739,DIMENSIONS UK,"4,495.76",03/11/2016
Delivery Units,Adults and Communities,Other Agencies - Third Party P,30141740,DIMENSIONS UK,"4,495.76",03/11/2016
Delivery Units,Adults and Communities,Other Agencies - Third Party P,30141863,DIMENSIONS UK,149.60,07/11/2016
Delivery Units,Adults and Communities,Other Agencies - Third Party P,30141864,DIMENSIONS UK,224.40,07/11/2016
Delivery Units,Adults and Communities,Other Agencies - Third Party P,30141865,DIMENSIONS UK,149.60,07/11/2016
Delivery Units,Adults and Communities,Other Agencies - Third Party P,30141866,DIMENSIONS UK,149.60,07/11/2016
Delivery Units,Adults and Communities,Other Agencies - Third Party P,30141867,DIMENSIONS UK,74.80,07/11/2016
Delivery Units,Adults and Communities,Other Agencies - Third Party P,30141868,DIMENSIONS UK,74.80,07/11/2016
Delivery Units,Adults and Communities,Other Agencies - Third Party P,30141869,DIMENSIONS UK,74.80,07/11/2016
Delivery Units,Adults and Communities,Other Agencies - Third Party P,30141870,DIMENSIONS UK,149.60,07/11/2016
Delivery Units,Adults and Communities,Other Agencies - Third Party P,30141871,DIMENSIONS UK,149.60,07/11/2016
Delivery Units,Adults and Communities,Other Agencies - Third Party P,30141872,DIMENSIONS UK,74.80,07/11/2016
Delivery Units,Adults and Communities,Other Agencies - Third Party P,30141873,DIMENSIONS UK,149.60,07/11/2016
Delivery Units,Adults and Communities,Other Agencies - Third Party P,30141874,DIMENSIONS UK,74.80,07/11/2016
Delivery Units,Adults and Communities,Other Agencies - Third Party P,30141875,DIMENSIONS UK,74.80,07/11/2016
Delivery Units,Adults and Communities,Other Agencies - Third Party P,30141876,DIMENSIONS UK,523.60,07/11/2016
Delivery Units,Adults and Communities,Other Agencies - Third Party P,30141877,DIMENSIONS UK,299.20,07/11/2016
Delivery Units,Adults and Communities,Other Agencies - Third Party P,30141878,DIMENSIONS UK,224.40,07/11/2016
Delivery Units,Adults and Communities,Other Agencies - Third Party P,30141879,DIMENSIONS UK,299.20,07/11/2016
Delivery Units,Adults and Communities,Other Agencies - Third Party P,30141880,DIMENSIONS UK,897.60,07/11/2016
Delivery Units,Adults and Communities,Other Agencies - Third Party P,30141881,DIMENSIONS UK,448.80,07/11/2016
Delivery Units,Adults and Communities,Other Agencies - Third Party P,30141882,DIMENSIONS UK,112.20,07/11/2016
Delivery Units,Adults and Communities,Other Agencies - Third Party P,30141883,DIMENSIONS UK,149.60,07/11/2016
Delivery Units,Adults and Communities,Other Agencies - Third Party P,30141884,DIMENSIONS UK,149.60,07/11/2016
Delivery Units,Adults and Communities,Other Agencies - Third Party P,30141885,DIMENSIONS UK,149.60,07/11/2016
Delivery Units,Adults and Communities,Other Agencies - Third Party P,30141886,DIMENSIONS UK,448.80,07/11/2016
Delivery Units,Adults and Communities,Other Agencies - Third Party P,30141887,DIMENSIONS UK,149.60,07/11/2016
Delivery Units,Adults and Communities,Other Agencies - Third Party P,30141889,DIMENSIONS UK,149.60,07/11/2016
Delivery Units,Adults and Communities,Other Agencies - Third Party P,30141890,DIMENSIONS UK,374.00,07/11/2016
Delivery Units,Adults and Communities,Other Agencies - Third Party P,30141891,DIMENSIONS UK,149.60,07/11/2016
Delivery Units,Adults and Communities,Other Agencies - Third Party P,30141892,DIMENSIONS UK,"1,122.00",07/11/2016
Delivery Units,Adults and Communities,Other Agencies - Third Party P,30141893,DIMENSIONS UK,"1,570.80",07/11/2016
Delivery Units,Adults and Communities,Other Agencies - Third Party P,30141894,DIMENSIONS UK,224.40,07/11/2016
Delivery Units,Adults and Communities,Other Agencies - Third Party P,30141895,DIMENSIONS UK,149.60,07/11/2016
Delivery Units,Adults and Communities,Other Agencies - Third Party P,30142051,DIMENSIONS UK,75.00,08/11/2016
Delivery Units,Adults and Communities,Other Agencies - Third Party P,30142209,DIMENSIONS UK,"4,495.76",09/11/2016
Delivery Units,Adults and Communities,Other Agencies - Third Party P,30142210,DIMENSIONS UK,"4,495.76",09/11/2016
Delivery Units,Adults and Communities,Other Agencies - Third Party P,30142502,DIMENSIONS UK,912.00,14/11/2016
Delivery Units,Adults and Communities,Other Agencies - Third Party P,30142503,DIMENSIONS UK,"2,128.00",14/11/2016
Delivery Units,Adults and Communities,Other Agencies - Third Party P,30142505,DIMENSIONS UK,"1,541.00",14/11/2016
Delivery Units,Adults and Communities,Other Agencies - Third Party P,30144238,DIMENSIONS UK,"1,118.16",25/11/2016
Delivery Units,Adults and Communities,Other Agencies - Third Party P,30144817,DIMENSIONS UK,149.60,29/11/2016
Delivery Units,Adults and Communities,Other Agencies - Third Party P,30144818,DIMENSIONS UK,149.60,29/11/2016
Delivery Units,Adults and Communities,Other Agencies - Third Party P,30144819,DIMENSIONS UK,224.40,29/11/2016
Delivery Units,Adults and Communities,Other Agencies - Third Party P,30144820,DIMENSIONS UK,149.60,29/11/2016
Delivery Units,Adults and Communities,Other Agencies - Third Party P,30144821,DIMENSIONS UK,149.60,29/11/2016
Delivery Units,Adults and Communities,Other Agencies - Third Party P,30144822,DIMENSIONS UK,74.80,29/11/2016
Delivery Units,Adults and Communities,Other Agencies - Third Party P,30144823,DIMENSIONS UK,74.80,29/11/2016
Delivery Units,Adults and Communities,Other Agencies - Third Party P,30144824,DIMENSIONS UK,74.80,29/11/2016
Delivery Units,Adults and Communities,Other Agencies - Third Party P,30144825,DIMENSIONS UK,74.80,29/11/2016
Delivery Units,Adults and Communities,Other Agencies - Third Party P,30144826,DIMENSIONS UK,149.60,29/11/2016
Delivery Units,Adults and Communities,Other Agencies - Third Party P,30144827,DIMENSIONS UK,74.80,29/11/2016
Delivery Units,Adults and Communities,Other Agencies - Third Party P,30144828,DIMENSIONS UK,74.80,29/11/2016
Delivery Units,Adults and Communities,Other Agencies - Third Party P,30144829,DIMENSIONS UK,523.60,29/11/2016
Delivery Units,Adults and Communities,Other Agencies - Third Party P,30144830,DIMENSIONS UK,299.20,29/11/2016
Delivery Units,Adults and Communities,Other Agencies - Third Party P,30144831,DIMENSIONS UK,224.40,29/11/2016
Delivery Units,Adults and Communities,Other Agencies - Third Party P,30144832,DIMENSIONS UK,299.20,29/11/2016
Delivery Units,Adults and Communities,Other Agencies - Third Party P,30144833,DIMENSIONS UK,897.60,29/11/2016
Delivery Units,Adults and Communities,Other Agencies - Third Party P,30144834,DIMENSIONS UK,448.80,29/11/2016
Delivery Units,Adults and Communities,Other Agencies - Third Party P,30144835,DIMENSIONS UK,149.60,29/11/2016
Delivery Units,Adults and Communities,Other Agencies - Third Party P,30144836,DIMENSIONS UK,112.20,29/11/2016
Delivery Units,Adults and Communities,Other Agencies - Third Party P,30144837,DIMENSIONS UK,149.60,29/11/2016
Delivery Units,Adults and Communities,Other Agencies - Third Party P,30144838,DIMENSIONS UK,149.60,29/11/2016
Delivery Units,Adults and Communities,Other Agencies - Third Party P,30144839,DIMENSIONS UK,149.60,29/11/2016
Delivery Units,Adults and Communities,Other Agencies - Third Party P,30144840,DIMENSIONS UK,448.80,29/11/2016
Delivery Units,Adults and Communities,Other Agencies - Third Party P,30144841,DIMENSIONS UK,149.60,29/11/2016
Delivery Units,Adults and Communities,Other Agencies - Third Party P,30144843,DIMENSIONS UK,149.60,29/11/2016
Delivery Units,Adults and Communities,Other Agencies - Third Party P,30144844,DIMENSIONS UK,374.00,29/11/2016
Delivery Units,Adults and Communities,Other Agencies - Third Party P,30144845,DIMENSIONS UK,149.60,29/11/2016
Delivery Units,Adults and Communities,Other Agencies - Third Party P,30144846,DIMENSIONS UK,"1,122.00",29/11/2016
Delivery Units,Adults and Communities,Other Agencies - Third Party P,30144847,DIMENSIONS UK,"1,570.80",29/11/2016
Delivery Units,Adults and Communities,Other Agencies - Third Party P,30144848,DIMENSIONS UK,224.40,29/11/2016
Delivery Units,Adults and Communities,Other Agencies - Third Party P,30144849,DIMENSIONS UK,74.80,29/11/2016
Delivery Units,Adults and Communities,Other Agencies - Third Party P,30144850,DIMENSIONS UK,294.84,29/11/2016
Delivery Units,Adults and Communities,Other Agencies - Third Party P,30144851,DIMENSIONS UK,309.96,29/11/2016
Delivery Units,Adults and Communities,Other Agencies - Third Party P,30144852,DIMENSIONS UK,149.60,29/11/2016
Delivery Units,Adults and Communities,Other Agencies - Third Party P,30144333,DOWNLANDS CARE LTD,"2,012.10",28/11/2016
Delivery Units,Adults and Communities,Other Agencies - Third Party P,30141685,DYNAMIC PEOPLE LTD,106.96,03/11/2016
Delivery Units,Adults and Communities,Other Agencies - Third Party P,30144120,EASTSIDE HOUSE RESIDENTIAL CARE HOM,"2,211.80",25/11/2016
Delivery Units,Adults and Communities,Other Agencies - Third Party P,30143275,ELEANOR PALMER TRUST NO 2 A/C.,"4,502.59",22/11/2016
Delivery Units,Adults and Communities,Other Agencies - Third Party P,30143277,ELEANOR PALMER TRUST NO 2 A/C.,"2,211.80",22/11/2016
Delivery Units,Adults and Communities,Other Agencies - Third Party P,30143711,ELEANOR PALMER TRUST NO 2 A/C.,"2,612.26",24/11/2016
Delivery Units,Adults and Communities,Other Agencies - Third Party P,30144154,ELEANOR PALMER TRUST NO 2 A/C.,"2,031.76",25/11/2016
Delivery Units,Adults and Communities,Other Agencies - Third Party P,30144155,ELEANOR PALMER TRUST NO 2 A/C.,"2,031.76",25/11/2016
Delivery Units,Adults and Communities,Other Agencies - Third Party P,30145053,ELEANOR PALMER TRUST NO 2 A/C.,"2,053.81",30/11/2016
Delivery Units,Adults and Communities,Other Agencies - Third Party P,30142006,ELM PARK LODGE,"3,299.29",09/11/2016
Delivery Units,Adults and Communities,Other Agencies - Third Party P,30142023,ELM PARK LODGE,"3,520.71",09/11/2016
Delivery Units,Adults and Communities,Other Agencies - Third Party P,30142024,ELM PARK LODGE,"1,911.02",09/11/2016
Delivery Units,Adults and Communities,Other Agencies - Third Party P,30142027,ELM PARK LODGE,"3,432.14",09/11/2016
Delivery Units,Adults and Communities,Other Agencies - Third Party P,30142034,ELM PARK LODGE,"3,441.00",09/11/2016
Delivery Units,Adults and Communities,Other Agencies - Third Party P,30142035,ELM PARK LODGE,"6,242.07",09/11/2016
Delivery Units,Adults and Communities,Other Agencies - Third Party P,30142036,ELM PARK LODGE,"2,103.31",09/11/2016
Delivery Units,Adults and Communities,Other Agencies - Third Party P,30142038,ELM PARK LODGE,"3,432.14",09/11/2016
Delivery Units,Adults and Communities,Other Agencies - Third Party P,30142040,ELM PARK LODGE,"2,161.85",09/11/2016
Delivery Units,Adults and Communities,Other Agencies - Third Party P,30142048,ELM PARK LODGE,"3,210.71",09/11/2016
Delivery Units,Adults and Communities,Other Agencies - Third Party P,30142049,ELM PARK LODGE,"3,432.14",09/11/2016
Delivery Units,Adults and Communities,Other Agencies - Third Party P,30142050,ELM PARK LODGE,"3,432.14",09/11/2016
Delivery Units,Adults and Communities,Other Agencies - Third Party P,30142056,ELM PARK LODGE,"3,455.61",09/11/2016
Delivery Units,Adults and Communities,Other Agencies - Third Party P,30142057,ELM PARK LODGE,"9,092.49",09/11/2016
Delivery Units,Adults and Communities,Other Agencies - Third Party P,30142058,ELM PARK LODGE,"3,170.86",09/11/2016
Delivery Units,Adults and Communities,Other Agencies - Third Party P,30142670,ELM PARK LODGE,"9,988.57",16/11/2016
Delivery Units,Adults and Communities,Other Agencies - Third Party P,30142190,EMMAUS HOUSE,"2,211.80",09/11/2016
Delivery Units,Adults and Communities,Other Agencies - Third Party P,30142672,EMMAUS HOUSE,"2,211.80",16/11/2016
Delivery Units,Adults and Communities,Other Agencies - Third Party P,30142939,ENABLE U SENSORY SUPPORT LTD,240.00,18/11/2016
Delivery Units,Adults and Communities,Other Agencies - Third Party P,30141990,FERNBANK NURSING HOME.,"2,397.54",08/11/2016
Delivery Units,Adults and Communities,Other Agencies - Third Party P,30141991,FERNBANK NURSING HOME.,"2,397.54",08/11/2016
Delivery Units,Adults and Communities,Other Agencies - Third Party P,30141992,FERNBANK NURSING HOME.,"2,397.54",08/11/2016
Delivery Units,Adults and Communities,Other Agencies - Third Party P,30141993,FERNBANK NURSING HOME.,"2,397.54",08/11/2016
Delivery Units,Adults and Communities,Other Agencies - Third Party P,30141994,FERNBANK NURSING HOME.,"2,397.54",08/11/2016
Delivery Units,Adults and Communities,Other Agencies - Third Party P,30144343,FINBOND LIMITED,"2,571.43",28/11/2016
Delivery Units,Adults and Communities,Other Agencies - Third Party P,30144344,FINBOND LIMITED,"2,144.91",28/11/2016
Delivery Units,Adults and Communities,Other Agencies - Third Party P,30144345,FINBOND LIMITED,"2,340.04",28/11/2016
Delivery Units,Adults and Communities,Other Agencies - Third Party P,30144346,FINBOND LIMITED,"2,352.86",28/11/2016
Delivery Units,Adults and Communities,Other Agencies - Third Party P,30144347,FINBOND LIMITED,"3,214.29",28/11/2016
Delivery Units,Adults and Communities,Other Agencies - Third Party P,30144348,FINBOND LIMITED,"2,418.04",28/11/2016
Delivery Units,Adults and Communities,Other Agencies - Third Party P,30144976,FINBOND LIMITED,"4,368.08",30/11/2016
Delivery Units,Adults and Communities,Other Agencies - Third Party P,30144982,FINBOND LIMITED,"2,144.91",30/11/2016
Delivery Units,Adults and Communities,Other Agencies - Third Party P,30144986,FINBOND LIMITED,"2,340.04",30/11/2016
Delivery Units,Adults and Communities,Other Agencies - Third Party P,30142944,FLAGSWAN TWO LTD,"3,072.33",18/11/2016
Delivery Units,Adults and Communities,Other Agencies - Third Party P,30142945,FLAGSWAN TWO LTD,"2,546.43",18/11/2016
Delivery Units,Adults and Communities,Other Agencies - Third Party P,30142776,FLEXSERVE RESOURCE LTD,"2,937.20",18/11/2016
Delivery Units,Adults and Communities,Other Agencies - Third Party P,30142777,FLEXSERVE RESOURCE LTD,"1,369.20",18/11/2016
Delivery Units,Adults and Communities,Other Agencies - Third Party P,30142778,FLEXSERVE RESOURCE LTD,"1,213.50",18/11/2016
Delivery Units,Adults and Communities,Other Agencies - Third Party P,30142779,FLEXSERVE RESOURCE LTD,"1,371.60",18/11/2016
Delivery Units,Adults and Communities,Other Agencies - Third Party P,30141691,FOUR SEASONS HEALTH CARE,-499.39,03/11/2016
Delivery Units,Adults and Communities,Other Agencies - Third Party P,30141692,FOUR SEASONS HEALTH CARE,-499.39,03/11/2016
Delivery Units,Adults and Communities,Other Agencies - Third Party P,30141693,FOUR SEASONS HEALTH CARE,-499.39,03/11/2016
Delivery Units,Adults and Communities,Other Agencies - Third Party P,30141694,FOUR SEASONS HEALTH CARE,-499.39,03/11/2016
Delivery Units,Adults and Communities,Other Agencies - Third Party P,30141695,FOUR SEASONS HEALTH CARE,-499.39,03/11/2016
Delivery Units,Adults and Communities,Other Agencies - Third Party P,30141696,FOUR SEASONS HEALTH CARE,-499.39,03/11/2016
Delivery Units,Adults and Communities,Other Agencies - Third Party P,30141697,FOUR SEASONS HEALTH CARE,-499.39,03/11/2016
Delivery Units,Adults and Communities,Other Agencies - Third Party P,30141710,FOUR SEASONS HEALTH CARE,"3,290.92",03/11/2016
Delivery Units,Adults and Communities,Other Agencies - Third Party P,30141711,FOUR SEASONS HEALTH CARE,"2,973.69",03/11/2016
Delivery Units,Adults and Communities,Other Agencies - Third Party P,30141712,FOUR SEASONS HEALTH CARE,"2,973.69",03/11/2016
Delivery Units,Adults and Communities,Other Agencies - Third Party P,30141713,FOUR SEASONS HEALTH CARE,"4,064.47",03/11/2016
Delivery Units,Adults and Communities,Other Agencies - Third Party P,30141714,FOUR SEASONS HEALTH CARE,"2,622.87",03/11/2016
Delivery Units,Adults and Communities,Other Agencies - Third Party P,30141715,FOUR SEASONS HEALTH CARE,"3,288.35",03/11/2016
Delivery Units,Adults and Communities,Other Agencies - Third Party P,30141716,FOUR SEASONS HEALTH CARE,"2,973.69",03/11/2016
Delivery Units,Adults and Communities,Other Agencies - Third Party P,30141717,FOUR SEASONS HEALTH CARE,"3,422.28",03/11/2016
Delivery Units,Adults and Communities,Other Agencies - Third Party P,30141718,FOUR SEASONS HEALTH CARE,"2,534.44",03/11/2016
Delivery Units,Adults and Communities,Other Agencies - Third Party P,30141719,FOUR SEASONS HEALTH CARE,"2,246.44",03/11/2016
Delivery Units,Adults and Communities,Other Agencies - Third Party P,30141720,FOUR SEASONS HEALTH CARE,"2,246.44",03/11/2016
Delivery Units,Adults and Communities,Other Agencies - Third Party P,30141721,FOUR SEASONS HEALTH CARE,"2,500.72",03/11/2016
Delivery Units,Adults and Communities,Other Agencies - Third Party P,30141722,FOUR SEASONS HEALTH CARE,"2,123.48",03/11/2016
Delivery Units,Adults and Communities,Other Agencies - Third Party P,30141723,FOUR SEASONS HEALTH CARE,"2,500.72",03/11/2016
Delivery Units,Adults and Communities,Other Agencies - Third Party P,30141724,FOUR SEASONS HEALTH CARE,"2,246.44",03/11/2016
Delivery Units,Adults and Communities,Other Agencies - Third Party P,30141725,FOUR SEASONS HEALTH CARE,"2,523.04",03/11/2016
Delivery Units,Adults and Communities,Other Agencies - Third Party P,30142475,FOUR SEASONS HEALTH CARE,"2,246.44",14/11/2016
Delivery Units,Adults and Communities,Other Agencies - Third Party P,30142476,FOUR SEASONS HEALTH CARE,"2,246.44",14/11/2016
Delivery Units,Adults and Communities,Other Agencies - Third Party P,30142477,FOUR SEASONS HEALTH CARE,"2,500.72",14/11/2016
Delivery Units,Adults and Communities,Other Agencies - Third Party P,30142478,FOUR SEASONS HEALTH CARE,"2,123.48",14/11/2016
Delivery Units,Adults and Communities,Other Agencies - Third Party P,30142479,FOUR SEASONS HEALTH CARE,"2,500.72",14/11/2016
Delivery Units,Adults and Communities,Other Agencies - Third Party P,30142480,FOUR SEASONS HEALTH CARE,"2,246.44",14/11/2016
Delivery Units,Adults and Communities,Other Agencies - Third Party P,30142481,FOUR SEASONS HEALTH CARE,"2,500.72",14/11/2016
Delivery Units,Adults and Communities,Other Agencies - Third Party P,30142482,FOUR SEASONS HEALTH CARE,"2,246.44",14/11/2016
Delivery Units,Adults and Communities,Other Agencies - Third Party P,30142483,FOUR SEASONS HEALTH CARE,"2,246.44",14/11/2016
Delivery Units,Adults and Communities,Other Agencies - Third Party P,30142484,FOUR SEASONS HEALTH CARE,"2,399.36",14/11/2016
Delivery Units,Adults and Communities,Other Agencies - Third Party P,30142485,FOUR SEASONS HEALTH CARE,"2,246.44",14/11/2016
Delivery Units,Adults and Communities,Other Agencies - Third Party P,30142486,FOUR SEASONS HEALTH CARE,"2,246.44",14/11/2016
Delivery Units,Adults and Communities,Other Agencies - Third Party P,30142487,FOUR SEASONS HEALTH CARE,"2,246.44",14/11/2016
Delivery Units,Adults and Communities,Other Agencies - Third Party P,30142488,FOUR SEASONS HEALTH CARE,"2,246.44",14/11/2016
Delivery Units,Adults and Communities,Other Agencies - Third Party P,30142679,FOUR SEASONS HEALTH CARE,"2,398.56",16/11/2016
Delivery Units,Adults and Communities,Other Agencies - Third Party P,30142681,FOUR SEASONS HEALTH CARE,"2,313.08",16/11/2016
Delivery Units,Adults and Communities,Other Agencies - Third Party P,30142682,FOUR SEASONS HEALTH CARE,"2,313.08",16/11/2016
Delivery Units,Adults and Communities,Other Agencies - Third Party P,30142683,FOUR SEASONS HEALTH CARE,"2,600.05",16/11/2016
Delivery Units,Adults and Communities,Other Agencies - Third Party P,30142684,FOUR SEASONS HEALTH CARE,"2,398.56",16/11/2016
Delivery Units,Adults and Communities,Other Agencies - Third Party P,30142685,FOUR SEASONS HEALTH CARE,"2,398.56",16/11/2016
Delivery Units,Adults and Communities,Other Agencies - Third Party P,30142686,FOUR SEASONS HEALTH CARE,"2,398.56",16/11/2016
Delivery Units,Adults and Communities,Other Agencies - Third Party P,30142688,FOUR SEASONS HEALTH CARE,"2,398.56",16/11/2016
Delivery Units,Adults and Communities,Other Agencies - Third Party P,30142689,FOUR SEASONS HEALTH CARE,"3,263.06",16/11/2016
Delivery Units,Adults and Communities,Other Agencies - Third Party P,30142690,FOUR SEASONS HEALTH CARE,"2,500.72",16/11/2016
Delivery Units,Adults and Communities,Other Agencies - Third Party P,30142631,FOUR SEASONS HEALTH CARE (NO.4) LTD,"2,004.00",16/11/2016
Delivery Units,Adults and Communities,Other Agencies - Third Party P,30142947,FREEWAYS TRUST LIMITED,829.80,18/11/2016
Delivery Units,Adults and Communities,Other Agencies - Third Party P,30141466,FREMANTLE TRUST,"-16,453.71",01/11/2016
Delivery Units,Adults and Communities,Other Agencies - Third Party P,30143342,FREMANTLE TRUST,"2,981.26",22/11/2016
Delivery Units,Adults and Communities,Other Agencies - Third Party P,30143358,FREMANTLE TRUST,"-1,048.16",22/11/2016
Delivery Units,Adults and Communities,Other Agencies - Third Party P,30143359,FREMANTLE TRUST,383.04,22/11/2016
Delivery Units,Adults and Communities,Other Agencies - Third Party P,30143388,FREMANTLE TRUST,"1,423.52",22/11/2016
Delivery Units,Adults and Communities,Other Agencies - Third Party P,30143389,FREMANTLE TRUST,"3,581.96",22/11/2016
Delivery Units,Adults and Communities,Other Agencies - Third Party P,30144152,FRIARY LODGE,"2,369.78",25/11/2016
Delivery Units,Adults and Communities,Other Agencies - Third Party P,30144153,FRIARY LODGE,"2,176.88",25/11/2016
Delivery Units,Adults and Communities,Other Agencies - Third Party P,30144158,FRIARY LODGE,"2,369.78",25/11/2016
Delivery Units,Adults and Communities,Other Agencies - Third Party P,30144166,FRIARY LODGE,"2,369.78",25/11/2016
Delivery Units,Adults and Communities,Other Agencies - Third Party P,30141688,FRIERN RESIDENTIAL CARE HOME,"2,103.31",03/11/2016
Delivery Units,Adults and Communities,Other Agencies - Third Party P,30141690,FRIERN RESIDENTIAL CARE HOME,"3,985.71",03/11/2016
Delivery Units,Adults and Communities,Other Agencies - Third Party P,30144351,FRIERN RESIDENTIAL CARE HOME,"2,035.46",28/11/2016
Delivery Units,Adults and Communities,Other Agencies - Third Party P,30144356,FRIERN RESIDENTIAL CARE HOME,"3,857.14",28/11/2016
Delivery Units,Adults and Communities,Other Agencies - Third Party P,30142183,GENTLE CARE,230.26,09/11/2016
Delivery Units,Adults and Communities,Other Agencies - Third Party P,30142184,GENTLE CARE,222.32,17/11/2016
Delivery Units,Adults and Communities,Other Agencies - Third Party P,30143364,GENTLE HANDS CARE AGENCY,351.00,22/11/2016
Delivery Units,Adults and Communities,Other Agencies - Third Party P,30143365,GENTLE HANDS CARE AGENCY,520.00,22/11/2016
Delivery Units,Adults and Communities,Other Agencies - Third Party P,30143366,GENTLE HANDS CARE AGENCY,189.00,22/11/2016
Delivery Units,Adults and Communities,Other Agencies - Third Party P,30144029,GENTLE HANDS CARE AGENCY,"1,400.00",24/11/2016
Delivery Units,Adults and Communities,Other Agencies - Third Party P,30142469,GENTLE HANDS CARE HOMES LIMITED,"4,394.00",14/11/2016
Delivery Units,Adults and Communities,Other Agencies - Third Party P,30142473,GENTLE HANDS CARE HOMES LIMITED,"1,080.00",14/11/2016
Delivery Units,Adults and Communities,Other Agencies - Third Party P,30143367,GENTLE HANDS CARE HOMES LIMITED,"2,700.00",22/11/2016
Delivery Units,Adults and Communities,Other Agencies - Third Party P,30143393,GENTLE HANDS CARE HOMES LIMITED,"3,419.00",22/11/2016
Delivery Units,Adults and Communities,Other Agencies - Third Party P,30144011,GLENHOLME PSYCHIATRIC AFTER CARE HO,"3,964.89",24/11/2016
Delivery Units,Adults and Communities,Other Agencies - Third Party P,30144012,GLENHOLME PSYCHIATRIC AFTER CARE HO,"4,125.43",24/11/2016
Delivery Units,Adults and Communities,Other Agencies - Third Party P,30144042,GLENHOLME PSYCHIATRIC AFTER CARE HO,"3,857.57",24/11/2016
Delivery Units,Adults and Communities,Other Agencies - Third Party P,30145006,GREEN TREES,"2,678.57",30/11/2016
Delivery Units,Adults and Communities,Other Agencies - Third Party P,30144202,HALLMARK CARE (KINGS LYNN) LTD,"2,797.07",25/11/2016
Delivery Units,Adults and Communities,Other Agencies - Third Party P,30144097,HARDEN,"4,343.12",24/11/2016
Delivery Units,Adults and Communities,Other Agencies - Third Party P,30142572,HARTWIG CARE LIMITED,810.85,15/11/2016
Delivery Units,Adults and Communities,Other Agencies - Third Party P,30142573,HARTWIG CARE LIMITED,"1,109.08",15/11/2016
Delivery Units,Adults and Communities,Other Agencies - Third Party P,30143225,HARTWIG CARE LIMITED,283.48,22/11/2016
Delivery Units,Adults and Communities,Other Agencies - Third Party P,30143226,HARTWIG CARE LIMITED,75.12,22/11/2016
Delivery Units,Adults and Communities,Other Agencies - Third Party P,30143227,HARTWIG CARE LIMITED,60.81,22/11/2016
Delivery Units,Adults and Communities,Other Agencies - Third Party P,30143228,HARTWIG CARE LIMITED,184.67,22/11/2016
Delivery Units,Adults and Communities,Other Agencies - Third Party P,30143229,HARTWIG CARE LIMITED,60.81,22/11/2016
Delivery Units,Adults and Communities,Other Agencies - Third Party P,30143232,HARTWIG CARE LIMITED,60.81,22/11/2016
Delivery Units,Adults and Communities,Other Agencies - Third Party P,30143235,HARTWIG CARE LIMITED,60.81,22/11/2016
Delivery Units,Adults and Communities,Other Agencies - Third Party P,30143236,HARTWIG CARE LIMITED,283.48,22/11/2016
Delivery Units,Adults and Communities,Other Agencies - Third Party P,30143238,HARTWIG CARE LIMITED,60.81,22/11/2016
Delivery Units,Adults and Communities,Other Agencies - Third Party P,30143239,HARTWIG CARE LIMITED,283.48,22/11/2016
Delivery Units,Adults and Communities,Other Agencies - Third Party P,30143241,HARTWIG CARE LIMITED,60.81,22/11/2016
Delivery Units,Adults and Communities,Other Agencies - Third Party P,30143242,HARTWIG CARE LIMITED,283.48,22/11/2016
Delivery Units,Adults and Communities,Other Agencies - Third Party P,30143243,HARTWIG CARE LIMITED,50.08,22/11/2016
Delivery Units,Adults and Communities,Other Agencies - Third Party P,30143244,HARTWIG CARE LIMITED,60.81,22/11/2016
Delivery Units,Adults and Communities,Other Agencies - Third Party P,30143245,HARTWIG CARE LIMITED,267.96,22/11/2016
Delivery Units,Adults and Communities,Other Agencies - Third Party P,30143246,HARTWIG CARE LIMITED,162.40,22/11/2016
Delivery Units,Adults and Communities,Other Agencies - Third Party P,30143247,HARTWIG CARE LIMITED,56.84,22/11/2016
Delivery Units,Adults and Communities,Other Agencies - Third Party P,30143248,HARTWIG CARE LIMITED,267.96,22/11/2016
Delivery Units,Adults and Communities,Other Agencies - Third Party P,30143249,HARTWIG CARE LIMITED,162.40,22/11/2016
Delivery Units,Adults and Communities,Other Agencies - Third Party P,30143250,HARTWIG CARE LIMITED,56.84,22/11/2016
Delivery Units,Adults and Communities,Other Agencies - Third Party P,30143251,HARTWIG CARE LIMITED,255.78,22/11/2016
Delivery Units,Adults and Communities,Other Agencies - Third Party P,30143252,HARTWIG CARE LIMITED,162.40,22/11/2016
Delivery Units,Adults and Communities,Other Agencies - Third Party P,30143253,HARTWIG CARE LIMITED,56.84,22/11/2016
Delivery Units,Adults and Communities,Other Agencies - Third Party P,30143254,HARTWIG CARE LIMITED,255.78,22/11/2016
Delivery Units,Adults and Communities,Other Agencies - Third Party P,30143255,HARTWIG CARE LIMITED,162.40,22/11/2016
Delivery Units,Adults and Communities,Other Agencies - Third Party P,30143256,HARTWIG CARE LIMITED,56.84,22/11/2016
Delivery Units,Adults and Communities,Other Agencies - Third Party P,30143257,HARTWIG CARE LIMITED,286.23,22/11/2016
Delivery Units,Adults and Communities,Other Agencies - Third Party P,30143258,HARTWIG CARE LIMITED,186.76,22/11/2016
Delivery Units,Adults and Communities,Other Agencies - Third Party P,30143259,HARTWIG CARE LIMITED,40.60,22/11/2016
Delivery Units,Adults and Communities,Other Agencies - Third Party P,30145068,HARTWIG CARE LIMITED,"1,315.13",30/11/2016
Delivery Units,Adults and Communities,Other Agencies - Third Party P,30145069,HARTWIG CARE LIMITED,"1,028.35",30/11/2016
Delivery Units,Adults and Communities,Other Agencies - Third Party P,30138627,HEADWAY EAST LONDON,376.08,01/11/2016
Delivery Units,Adults and Communities,Other Agencies - Third Party P,30141558,HEADWAY EAST LONDON,376.08,22/11/2016
Delivery Units,Adults and Communities,Other Agencies - Third Party P,30141646,HEADWAY EAST LONDON,634.84,22/11/2016
Delivery Units,Adults and Communities,Other Agencies - Third Party P,30142143,HENRY NIHILL HOUSE,"4,797.12",15/11/2016
Delivery Units,Adults and Communities,Other Agencies - Third Party P,30141582,HFH HEALTHCARE LTD,"8,499.06",02/11/2016
Delivery Units,Adults and Communities,Other Agencies - Third Party P,30142802,HILLGREEN CARE LTD,"7,093.24",18/11/2016
Delivery Units,Adults and Communities,Other Agencies - Third Party P,30142940,HILTON LODGE LTD.,"1,342.88",18/11/2016
Delivery Units,Adults and Communities,Other Agencies - Third Party P,30142941,HILTON LODGE LTD.,514.29,18/11/2016
Delivery Units,Adults and Communities,Other Agencies - Third Party P,30144187,HILTON LODGE LTD.,"3,900.00",25/11/2016
Delivery Units,Adults and Communities,Other Agencies - Third Party P,30144210,HILTON LODGE LTD.,"4,960.00",25/11/2016
Delivery Units,Adults and Communities,Other Agencies - Third Party P,30144223,HILTON LODGE LTD.,"4,960.00",25/11/2016
Delivery Units,Adults and Communities,Other Agencies - Third Party P,30144228,HILTON LODGE LTD.,"4,512.08",25/11/2016
Delivery Units,Adults and Communities,Other Agencies - Third Party P,30144229,HILTON LODGE LTD.,"4,423.60",25/11/2016
Delivery Units,Adults and Communities,Other Agencies - Third Party P,30144230,HILTON LODGE LTD.,"4,423.60",25/11/2016
Delivery Units,Adults and Communities,Other Agencies - Third Party P,30144248,HILTON LODGE LTD.,"4,423.60",25/11/2016
Delivery Units,Adults and Communities,Other Agencies - Third Party P,30144252,HILTON LODGE LTD.,"4,423.60",25/11/2016
Delivery Units,Adults and Communities,Other Agencies - Third Party P,30142415,HOLLY HOUSE RESIDENTIAL HOME,"2,600.00",14/11/2016
Delivery Units,Adults and Communities,Other Agencies - Third Party P,30142416,HOLLY HOUSE RESIDENTIAL HOME,"2,600.00",14/11/2016
Delivery Units,Adults and Communities,Other Agencies - Third Party P,30144355,HONISTER RESIDENTIAL CARE LTD,"2,340.04",28/11/2016
Delivery Units,Adults and Communities,Other Agencies - Third Party P,30144105,HOPE WORLDWIDE,"2,425.00",25/11/2016
Delivery Units,Adults and Communities,Other Agencies - Third Party P,30144249,HUSKARDS NEW CARE LTD,"2,176.80",25/11/2016
Delivery Units,Adults and Communities,Other Agencies - Third Party P,30141576,INDEPENDENCE HOMES LIMITED,"2,900.00",02/11/2016
Delivery Units,Adults and Communities,Other Agencies - Third Party P,30144631,INDEPENDENCE HOMES LIMITED,"2,900.00",29/11/2016
Delivery Units,Adults and Communities,Other Agencies - Third Party P,30142366,INDIVIDUALISED CARE LIMITED,280.00,14/11/2016
Delivery Units,Adults and Communities,Other Agencies - Third Party P,30142367,INDIVIDUALISED CARE LIMITED,800.00,14/11/2016
Delivery Units,Adults and Communities,Other Agencies - Third Party P,30142368,INDIVIDUALISED CARE LIMITED,"1,000.00",14/11/2016
Delivery Units,Adults and Communities,Other Agencies - Third Party P,30142369,INDIVIDUALISED CARE LIMITED,256.00,14/11/2016
Delivery Units,Adults and Communities,Other Agencies - Third Party P,30142370,INDIVIDUALISED CARE LIMITED,321.00,14/11/2016
Delivery Units,Adults and Communities,Other Agencies - Third Party P,30142371,INDIVIDUALISED CARE LIMITED,233.25,14/11/2016
Delivery Units,Adults and Communities,Other Agencies - Third Party P,30142372,INDIVIDUALISED CARE LIMITED,549.50,14/11/2016
Delivery Units,Adults and Communities,Other Agencies - Third Party P,30142373,INDIVIDUALISED CARE LIMITED,400.00,14/11/2016
Delivery Units,Adults and Communities,Other Agencies - Third Party P,30142374,INDIVIDUALISED CARE LIMITED,300.00,14/11/2016
Delivery Units,Adults and Communities,Other Agencies - Third Party P,30142375,INDIVIDUALISED CARE LIMITED,"1,800.00",14/11/2016
Delivery Units,Adults and Communities,Other Agencies - Third Party P,30142376,INDIVIDUALISED CARE LIMITED,288.00,14/11/2016
Delivery Units,Adults and Communities,Other Agencies - Third Party P,30142377,INDIVIDUALISED CARE LIMITED,500.00,14/11/2016
Delivery Units,Adults and Communities,Other Agencies - Third Party P,30142378,INDIVIDUALISED CARE LIMITED,500.00,14/11/2016
Delivery Units,Adults and Communities,Other Agencies - Third Party P,30141980,INSIGHT SPECIALIST BEHAVIOURAL,"5,944.08",08/11/2016
Delivery Units,Adults and Communities,Other Agencies - Third Party P,30141981,INSIGHT SPECIALIST BEHAVIOURAL,"5,944.08",08/11/2016
Delivery Units,Adults and Communities,Other Agencies - Third Party P,30141982,INSIGHT SPECIALIST BEHAVIOURAL,"5,944.08",08/11/2016
Delivery Units,Adults and Communities,Other Agencies - Third Party P,30142785,INSIGHT SPECIALIST BEHAVIOURAL,"8,149.36",18/11/2016
Delivery Units,Adults and Communities,Other Agencies - Third Party P,30141405,JACARANDA HEALTHCARE,614.85,01/11/2016
Delivery Units,Adults and Communities,Other Agencies - Third Party P,30141406,JACARANDA HEALTHCARE,"1,744.40",01/11/2016
Delivery Units,Adults and Communities,Other Agencies - Third Party P,30141407,JACARANDA HEALTHCARE,213.75,01/11/2016
Delivery Units,Adults and Communities,Other Agencies - Third Party P,30141409,JACARANDA HEALTHCARE,"1,775.55",01/11/2016
Delivery Units,Adults and Communities,Other Agencies - Third Party P,30141860,JACARANDA HEALTHCARE,568.40,07/11/2016
Delivery Units,Adults and Communities,Other Agencies - Third Party P,30142470,JAH JIREH CHARITY HOMES,"1,510.26",14/11/2016
Delivery Units,Adults and Communities,Other Agencies - Third Party P,30141098,JEMINI RESPONSE,"9,100.00",01/11/2016
Delivery Units,Adults and Communities,Other Agencies - Third Party P,30142924,JEMINI RESPONSE,"9,100.00",23/11/2016
Delivery Units,Adults and Communities,Other Agencies - Third Party P,30141995,JEWISH CARE,-24.88,08/11/2016
Delivery Units,Adults and Communities,Other Agencies - Third Party P,30141996,JEWISH CARE,"3,329.73",08/11/2016
Delivery Units,Adults and Communities,Other Agencies - Third Party P,30142177,JEWISH CARE,"-2,322.40",09/11/2016
Delivery Units,Adults and Communities,Other Agencies - Third Party P,30142178,JEWISH CARE,"1,492.97",09/11/2016
Delivery Units,Adults and Communities,Other Agencies - Third Party P,30142181,JEWISH CARE,580.60,09/11/2016
Delivery Units,Adults and Communities,Other Agencies - Third Party P,30142421,JEWISH CARE,550.00,14/11/2016
Delivery Units,Adults and Communities,Other Agencies - Third Party P,30142899,JEWISH CARE,"3,200.00",18/11/2016
Delivery Units,Adults and Communities,Other Agencies - Third Party P,30142904,JEWISH CARE,"2,436.39",18/11/2016
Delivery Units,Adults and Communities,Other Agencies - Third Party P,30142906,JEWISH CARE,"2,060.70",18/11/2016
Delivery Units,Adults and Communities,Other Agencies - Third Party P,30142911,JEWISH CARE,"-5,333.40",18/11/2016
Delivery Units,Adults and Communities,Other Agencies - Third Party P,30143307,JEWISH CARE,"2,133.36",22/11/2016
Delivery Units,Adults and Communities,Other Agencies - Third Party P,30143309,JEWISH CARE,"-2,819.08",22/11/2016
Delivery Units,Adults and Communities,Other Agencies - Third Party P,30144167,JEWISH CARE,"7,390.57",25/11/2016
Delivery Units,Adults and Communities,Other Agencies - Third Party P,30144762,JEWISH CARE,"-3,047.66",29/11/2016
Delivery Units,Adults and Communities,Other Agencies - Third Party P,30141559,JIGSAW CREATIVE CARE LIMITED,"6,043.52",02/11/2016
Delivery Units,Adults and Communities,Other Agencies - Third Party P,30141560,JIGSAW CREATIVE CARE LIMITED,"2,824.00",02/11/2016
Delivery Units,Adults and Communities,Other Agencies - Third Party P,30141561,JIGSAW CREATIVE CARE LIMITED,"5,566.00",02/11/2016
Delivery Units,Adults and Communities,Other Agencies - Third Party P,30142408,JIGSAW CREATIVE CARE LIMITED,"6,043.52",14/11/2016
Delivery Units,Adults and Communities,Other Agencies - Third Party P,30142409,JIGSAW CREATIVE CARE LIMITED,"2,824.00",14/11/2016
Delivery Units,Adults and Communities,Other Agencies - Third Party P,30142410,JIGSAW CREATIVE CARE LIMITED,"5,566.00",14/11/2016
Delivery Units,Adults and Communities,Other Agencies - Third Party P,30142161,KARE PLUS BARNET,201.36,09/11/2016
Delivery Units,Adults and Communities,Other Agencies - Third Party P,30142162,KARE PLUS BARNET,177.67,09/11/2016
Delivery Units,Adults and Communities,Other Agencies - Third Party P,30142163,KARE PLUS BARNET,177.67,09/11/2016
Delivery Units,Adults and Communities,Other Agencies - Third Party P,30142164,KARE PLUS BARNET,177.67,09/11/2016
Delivery Units,Adults and Communities,Other Agencies - Third Party P,30142165,KARE PLUS BARNET,177.67,09/11/2016
Delivery Units,Adults and Communities,Other Agencies - Third Party P,30142166,KARE PLUS BARNET,172.54,09/11/2016
Delivery Units,Adults and Communities,Other Agencies - Third Party P,30142632,KARE PLUS BARNET,494.42,16/11/2016
Delivery Units,Adults and Communities,Other Agencies - Third Party P,30142633,KARE PLUS BARNET,735.42,16/11/2016
Delivery Units,Adults and Communities,Other Agencies - Third Party P,30142634,KARE PLUS BARNET,729.08,16/11/2016
Delivery Units,Adults and Communities,Other Agencies - Third Party P,30142635,KARE PLUS BARNET,642.50,16/11/2016
Delivery Units,Adults and Communities,Other Agencies - Third Party P,30142637,KARE PLUS BARNET,324.69,16/11/2016
Delivery Units,Adults and Communities,Other Agencies - Third Party P,30142638,KARE PLUS BARNET,632.14,16/11/2016
Delivery Units,Adults and Communities,Other Agencies - Third Party P,30142639,KARE PLUS BARNET,324.53,16/11/2016
Delivery Units,Adults and Communities,Other Agencies - Third Party P,30142640,KARE PLUS BARNET,699.42,16/11/2016
Delivery Units,Adults and Communities,Other Agencies - Third Party P,30142641,KARE PLUS BARNET,324.53,16/11/2016
Delivery Units,Adults and Communities,Other Agencies - Third Party P,30142642,KARE PLUS BARNET,670.05,16/11/2016
Delivery Units,Adults and Communities,Other Agencies - Third Party P,30142643,KARE PLUS BARNET,324.53,16/11/2016
Delivery Units,Adults and Communities,Other Agencies - Third Party P,30142644,KARE PLUS BARNET,649.06,16/11/2016
Delivery Units,Adults and Communities,Other Agencies - Third Party P,30142645,KARE PLUS BARNET,367.80,16/11/2016
Delivery Units,Adults and Communities,Other Agencies - Third Party P,30142646,KARE PLUS BARNET,367.80,16/11/2016
Delivery Units,Adults and Communities,Other Agencies - Third Party P,30142647,KARE PLUS BARNET,324.53,16/11/2016
Delivery Units,Adults and Communities,Other Agencies - Third Party P,30142648,KARE PLUS BARNET,324.53,16/11/2016
Delivery Units,Adults and Communities,Other Agencies - Third Party P,30142649,KARE PLUS BARNET,324.53,16/11/2016
Delivery Units,Adults and Communities,Other Agencies - Third Party P,30142650,KARE PLUS BARNET,324.53,16/11/2016
Delivery Units,Adults and Communities,Other Agencies - Third Party P,30142651,KARE PLUS BARNET,359.12,16/11/2016
Delivery Units,Adults and Communities,Other Agencies - Third Party P,30142652,KARE PLUS BARNET,328.64,16/11/2016
Delivery Units,Adults and Communities,Other Agencies - Third Party P,30142653,KARE PLUS BARNET,324.53,16/11/2016
Delivery Units,Adults and Communities,Other Agencies - Third Party P,30142659,KARE PLUS BARNET,-18.00,16/11/2016
Delivery Units,Adults and Communities,Other Agencies - Third Party P,30142660,KARE PLUS BARNET,-86.36,16/11/2016
Delivery Units,Adults and Communities,Other Agencies - Third Party P,30142661,KARE PLUS BARNET,-80.02,16/11/2016
Delivery Units,Adults and Communities,Other Agencies - Third Party P,30142663,KARE PLUS BARNET,-7.11,16/11/2016
Delivery Units,Adults and Communities,Other Agencies - Third Party P,30142664,KARE PLUS BARNET,-50.36,16/11/2016
Delivery Units,Adults and Communities,Other Agencies - Third Party P,30142665,KARE PLUS BARNET,-20.99,16/11/2016
Delivery Units,Adults and Communities,Other Agencies - Third Party P,30142666,KARE PLUS BARNET,-21.62,16/11/2016
Delivery Units,Adults and Communities,Other Agencies - Third Party P,30142667,KARE PLUS BARNET,-21.62,16/11/2016
Delivery Units,Adults and Communities,Other Agencies - Third Party P,30142668,KARE PLUS BARNET,-21.62,16/11/2016
Delivery Units,Adults and Communities,Other Agencies - Third Party P,30142669,KARE PLUS BARNET,-4.11,16/11/2016
Delivery Units,Adults and Communities,Other Agencies - Third Party P,30143728,KARE PLUS BARNET,735.60,24/11/2016
Delivery Units,Adults and Communities,Other Agencies - Third Party P,30143729,KARE PLUS BARNET,706.23,24/11/2016
Delivery Units,Adults and Communities,Other Agencies - Third Party P,30143731,KARE PLUS BARNET,649.06,24/11/2016
Delivery Units,Adults and Communities,Other Agencies - Third Party P,30143732,KARE PLUS BARNET,220.46,24/11/2016
Delivery Units,Adults and Communities,Other Agencies - Third Party P,30143734,KARE PLUS BARNET,88.36,24/11/2016
Delivery Units,Adults and Communities,Other Agencies - Third Party P,30143735,KARE PLUS BARNET,134.82,24/11/2016
Delivery Units,Adults and Communities,Other Agencies - Third Party P,30143736,KARE PLUS BARNET,88.36,24/11/2016
Delivery Units,Adults and Communities,Other Agencies - Third Party P,30143737,KARE PLUS BARNET,66.18,24/11/2016
Delivery Units,Adults and Communities,Other Agencies - Third Party P,30143738,KARE PLUS BARNET,79.22,24/11/2016
Delivery Units,Adults and Communities,Other Agencies - Third Party P,30143740,KARE PLUS BARNET,88.36,24/11/2016
Delivery Units,Adults and Communities,Other Agencies - Third Party P,30143746,KARE PLUS BARNET,34.37,24/11/2016
Delivery Units,Adults and Communities,Other Agencies - Third Party P,30143995,KARUNA MANOR,"4,071.43",24/11/2016
Delivery Units,Adults and Communities,Other Agencies - Third Party P,30141638,KEMBLE HOUSE,"8,192.99",03/11/2016
Delivery Units,Adults and Communities,Other Agencies - Third Party P,30144296,KEMBLE HOUSE,"7,928.70",28/11/2016
Delivery Units,Adults and Communities,Other Agencies - Third Party P,30144300,KEMBLE HOUSE,"9,368.10",28/11/2016
Delivery Units,Adults and Communities,Other Agencies - Third Party P,30144302,KEMBLE HOUSE,"3,231.30",28/11/2016
Delivery Units,Adults and Communities,Other Agencies - Third Party P,30144813,KILCULLEN HOMES (UK) LLP,"1,569.48",29/11/2016
Delivery Units,Adults and Communities,Other Agencies - Third Party P,30143199,KISHARON DAY SCHOOL,"2,144.10",22/11/2016
Delivery Units,Adults and Communities,Other Agencies - Third Party P,30143313,KISHARON DAY SCHOOL,"1,464.03",22/11/2016
Delivery Units,Adults and Communities,Other Agencies - Third Party P,30143314,KISHARON DAY SCHOOL,"4,260.72",22/11/2016
Delivery Units,Adults and Communities,Other Agencies - Third Party P,30143315,KISHARON DAY SCHOOL,"2,284.24",22/11/2016
Delivery Units,Adults and Communities,Other Agencies - Third Party P,30143316,KISHARON DAY SCHOOL,686.88,22/11/2016
Delivery Units,Adults and Communities,Other Agencies - Third Party P,30143317,KISHARON DAY SCHOOL,"1,373.49",22/11/2016
Delivery Units,Adults and Communities,Other Agencies - Third Party P,30143318,KISHARON DAY SCHOOL,381.54,22/11/2016
Delivery Units,Adults and Communities,Other Agencies - Third Party P,30143319,KISHARON DAY SCHOOL,"1,373.49",22/11/2016
Delivery Units,Adults and Communities,Other Agencies - Third Party P,30143320,KISHARON DAY SCHOOL,397.11,22/11/2016
Delivery Units,Adults and Communities,Other Agencies - Third Party P,30143321,KISHARON DAY SCHOOL,"1,679.87",22/11/2016
Delivery Units,Adults and Communities,Other Agencies - Third Party P,30143322,KISHARON DAY SCHOOL,"1,340.18",22/11/2016
Delivery Units,Adults and Communities,Other Agencies - Third Party P,30143323,KISHARON DAY SCHOOL,"1,241.16",22/11/2016
Delivery Units,Adults and Communities,Other Agencies - Third Party P,30143324,KISHARON DAY SCHOOL,"1,369.23",22/11/2016
Delivery Units,Adults and Communities,Other Agencies - Third Party P,30143325,KISHARON DAY SCHOOL,"1,373.68",22/11/2016
Delivery Units,Adults and Communities,Other Agencies - Third Party P,30143326,KISHARON DAY SCHOOL,"1,595.00",22/11/2016
Delivery Units,Adults and Communities,Other Agencies - Third Party P,30143327,KISHARON DAY SCHOOL,733.72,22/11/2016
Delivery Units,Adults and Communities,Other Agencies - Third Party P,30143329,KISHARON DAY SCHOOL,"1,275.96",22/11/2016
Delivery Units,Adults and Communities,Other Agencies - Third Party P,30143334,KISHARON DAY SCHOOL,"1,914.00",22/11/2016
Delivery Units,Adults and Communities,Other Agencies - Third Party P,30141929,LANGDON COMMUNITY LTD,"1,124.80",08/11/2016
Delivery Units,Adults and Communities,Other Agencies - Third Party P,30141930,LANGDON COMMUNITY LTD,"1,124.80",08/11/2016
Delivery Units,Adults and Communities,Other Agencies - Third Party P,30141931,LANGDON COMMUNITY LTD,"1,276.80",08/11/2016
Delivery Units,Adults and Communities,Other Agencies - Third Party P,30141932,LANGDON COMMUNITY LTD,"1,276.80",08/11/2016
Delivery Units,Adults and Communities,Other Agencies - Third Party P,30141933,LANGDON COMMUNITY LTD,"1,124.80",08/11/2016
Delivery Units,Adults and Communities,Other Agencies - Third Party P,30141936,LANGDON COMMUNITY LTD,"1,124.80",08/11/2016
Delivery Units,Adults and Communities,Other Agencies - Third Party P,30141937,LANGDON COMMUNITY LTD,"1,276.80",08/11/2016
Delivery Units,Adults and Communities,Other Agencies - Third Party P,30141938,LANGDON COMMUNITY LTD,"1,124.80",08/11/2016
Delivery Units,Adults and Communities,Other Agencies - Third Party P,30141939,LANGDON COMMUNITY LTD,"1,124.80",08/11/2016
Delivery Units,Adults and Communities,Other Agencies - Third Party P,30141940,LANGDON COMMUNITY LTD,"1,124.80",08/11/2016
Delivery Units,Adults and Communities,Other Agencies - Third Party P,30141941,LANGDON COMMUNITY LTD,"1,124.80",08/11/2016
Delivery Units,Adults and Communities,Other Agencies - Third Party P,30141942,LANGDON COMMUNITY LTD,"1,124.80",08/11/2016
Delivery Units,Adults and Communities,Other Agencies - Third Party P,30141943,LANGDON COMMUNITY LTD,"1,124.80",08/11/2016
Delivery Units,Adults and Communities,Other Agencies - Third Party P,30141944,LANGDON COMMUNITY LTD,"1,276.80",08/11/2016
Delivery Units,Adults and Communities,Other Agencies - Third Party P,30141945,LANGDON COMMUNITY LTD,"1,276.80",08/11/2016
Delivery Units,Adults and Communities,Other Agencies - Third Party P,30141946,LANGDON COMMUNITY LTD,"1,276.80",08/11/2016
Delivery Units,Adults and Communities,Other Agencies - Third Party P,30141947,LANGDON COMMUNITY LTD,"1,276.80",08/11/2016
Delivery Units,Adults and Communities,Other Agencies - Third Party P,30141948,LANGDON COMMUNITY LTD,"1,276.80",08/11/2016
Delivery Units,Adults and Communities,Other Agencies - Third Party P,30141949,LANGDON COMMUNITY LTD,"1,276.80",08/11/2016
Delivery Units,Adults and Communities,Other Agencies - Third Party P,30141950,LANGDON COMMUNITY LTD,281.20,08/11/2016
Delivery Units,Adults and Communities,Other Agencies - Third Party P,30142385,LANGDON COMMUNITY LTD,"1,763.20",14/11/2016
Delivery Units,Adults and Communities,Other Agencies - Third Party P,30142386,LANGDON COMMUNITY LTD,"1,094.40",14/11/2016
Delivery Units,Adults and Communities,Other Agencies - Third Party P,30142387,LANGDON COMMUNITY LTD,956.36,14/11/2016
Delivery Units,Adults and Communities,Other Agencies - Third Party P,30142388,LANGDON COMMUNITY LTD,851.20,14/11/2016
Delivery Units,Adults and Communities,Other Agencies - Third Party P,30142389,LANGDON COMMUNITY LTD,"1,276.80",14/11/2016
Delivery Units,Adults and Communities,Other Agencies - Third Party P,30142390,LANGDON COMMUNITY LTD,425.60,14/11/2016
Delivery Units,Adults and Communities,Other Agencies - Third Party P,30142391,LANGDON COMMUNITY LTD,"1,064.00",14/11/2016
Delivery Units,Adults and Communities,Other Agencies - Third Party P,30142393,LANGDON COMMUNITY LTD,608.00,14/11/2016
Delivery Units,Adults and Communities,Other Agencies - Third Party P,30142394,LANGDON COMMUNITY LTD,"1,315.12",14/11/2016
Delivery Units,Adults and Communities,Other Agencies - Third Party P,30142395,LANGDON COMMUNITY LTD,"1,763.20",14/11/2016
Delivery Units,Adults and Communities,Other Agencies - Third Party P,30142396,LANGDON COMMUNITY LTD,243.20,14/11/2016
Delivery Units,Adults and Communities,Other Agencies - Third Party P,30142397,LANGDON COMMUNITY LTD,"2,403.92",14/11/2016
Delivery Units,Adults and Communities,Other Agencies - Third Party P,30142399,LANGDON COMMUNITY LTD,"1,772.32",14/11/2016
Delivery Units,Adults and Communities,Other Agencies - Third Party P,30142400,LANGDON COMMUNITY LTD,"2,097.60",14/11/2016
Delivery Units,Adults and Communities,Other Agencies - Third Party P,30142401,LANGDON COMMUNITY LTD,"1,641.60",14/11/2016
Delivery Units,Adults and Communities,Other Agencies - Third Party P,30142402,LANGDON COMMUNITY LTD,"4,594.04",14/11/2016
Delivery Units,Adults and Communities,Other Agencies - Third Party P,30142403,LANGDON COMMUNITY LTD,"3,411.48",14/11/2016
Delivery Units,Adults and Communities,Other Agencies - Third Party P,30142405,LANGDON COMMUNITY LTD,"2,128.00",14/11/2016
Delivery Units,Adults and Communities,Other Agencies - Third Party P,30142407,LANGDON COMMUNITY LTD,"1,124.80",14/11/2016
Delivery Units,Adults and Communities,Other Agencies - Third Party P,30143208,LANGDON COMMUNITY LTD,790.40,22/11/2016
Delivery Units,Adults and Communities,Other Agencies - Third Party P,30143209,LANGDON COMMUNITY LTD,790.40,22/11/2016
Delivery Units,Adults and Communities,Other Agencies - Third Party P,30143210,LANGDON COMMUNITY LTD,790.40,22/11/2016
Delivery Units,Adults and Communities,Other Agencies - Third Party P,30143211,LANGDON COMMUNITY LTD,790.40,22/11/2016
Delivery Units,Adults and Communities,Other Agencies - Third Party P,30143212,LANGDON COMMUNITY LTD,790.40,22/11/2016
Delivery Units,Adults and Communities,Other Agencies - Third Party P,30143213,LANGDON COMMUNITY LTD,790.40,22/11/2016
Delivery Units,Adults and Communities,Other Agencies - Third Party P,30143214,LANGDON COMMUNITY LTD,790.40,22/11/2016
Delivery Units,Adults and Communities,Other Agencies - Third Party P,30143215,LANGDON COMMUNITY LTD,790.40,22/11/2016
Delivery Units,Adults and Communities,Other Agencies - Third Party P,80006523,LANGDON COMMUNITY LTD,"21,000.00",03/11/2016
Delivery Units,Adults and Communities,Other Agencies - Third Party P,80006524,LANGDON COMMUNITY LTD,"63,824.95",02/11/2016
Delivery Units,Adults and Communities,Other Agencies - Third Party P,80006525,LANGDON COMMUNITY LTD,"5,500.00",02/11/2016
Delivery Units,Adults and Communities,Other Agencies - Third Party P,30142037,LCS PARTNERSHIPS LTD,896.00,11/11/2016
Delivery Units,Adults and Communities,Other Agencies - Third Party P,30142474,LEEMING BAR CARE HOME,"2,107.69",14/11/2016
Delivery Units,Adults and Communities,Other Agencies - Third Party P,30144195,LEO BAECK HOUSING ASSOC. LTD,"2,369.79",25/11/2016
Delivery Units,Adults and Communities,Other Agencies - Third Party P,30144196,LEO BAECK HOUSING ASSOC. LTD,"2,176.89",25/11/2016
Delivery Units,Adults and Communities,Other Agencies - Third Party P,30144215,LEO BAECK HOUSING ASSOC. LTD,"2,176.89",25/11/2016
Delivery Units,Adults and Communities,Other Agencies - Third Party P,30144217,LEO BAECK HOUSING ASSOC. LTD,"2,369.79",25/11/2016
Delivery Units,Adults and Communities,Other Agencies - Third Party P,30144218,LEO BAECK HOUSING ASSOC. LTD,"2,176.89",25/11/2016
Delivery Units,Adults and Communities,Other Agencies - Third Party P,30144235,LEO BAECK HOUSING ASSOC. LTD,"2,252.14",25/11/2016
Delivery Units,Adults and Communities,Other Agencies - Third Party P,30144254,LEO BAECK HOUSING ASSOC. LTD,"2,176.89",25/11/2016
Delivery Units,Adults and Communities,Other Agencies - Third Party P,30144255,LEO BAECK HOUSING ASSOC. LTD,"2,285.74",25/11/2016
Delivery Units,Adults and Communities,Other Agencies - Third Party P,30144243,LEWIS.W.HAMMERSON MEMORIAL HOME,"2,571.17",25/11/2016
Delivery Units,Adults and Communities,Other Agencies - Third Party P,30144245,LEWIS.W.HAMMERSON MEMORIAL HOME,"2,243.06",25/11/2016
Delivery Units,Adults and Communities,Other Agencies - Third Party P,30144246,LEWIS.W.HAMMERSON MEMORIAL HOME,"2,243.06",25/11/2016
Delivery Units,Adults and Communities,Other Agencies - Third Party P,30141987,LIFESTYLE CARE PLC,"2,321.64",08/11/2016
Delivery Units,Adults and Communities,Other Agencies - Third Party P,30142020,LIFESTYLE CARE PLC,-829.15,08/11/2016
Delivery Units,Adults and Communities,Other Agencies - Third Party P,30142039,LIFESTYLE CARE PLC,"2,966.05",08/11/2016
Delivery Units,Adults and Communities,Other Agencies - Third Party P,30142041,LIFESTYLE CARE PLC,-63.65,15/11/2016
Delivery Units,Adults and Communities,Other Agencies - Third Party P,30142042,LIFESTYLE CARE PLC,-172.67,15/11/2016
Delivery Units,Adults and Communities,Other Agencies - Third Party P,30142043,LIFESTYLE CARE PLC,-22.92,15/11/2016
Delivery Units,Adults and Communities,Other Agencies - Third Party P,30142047,LIFESTYLE CARE PLC,"2,570.39",08/11/2016
Delivery Units,Adults and Communities,Other Agencies - Third Party P,30145058,LIFESTYLE CARE PLC,"1,049.11",30/11/2016
Delivery Units,Adults and Communities,Other Agencies - Third Party P,80006674,LIFESTYLE CARE PLC,"2,094.52",15/11/2016
Delivery Units,Adults and Communities,Other Agencies - Third Party P,30142025,LIFEWAYS,"2,993.64",08/11/2016
Delivery Units,Adults and Communities,Other Agencies - Third Party P,30144784,LIFEWAYS,"3,145.24",29/11/2016
Delivery Units,Adults and Communities,Other Agencies - Third Party P,30144785,LIFEWAYS,"6,930.00",29/11/2016
Delivery Units,Adults and Communities,Other Agencies - Third Party P,30144787,LIFEWAYS,"5,037.40",29/11/2016
Delivery Units,Adults and Communities,Other Agencies - Third Party P,30144788,LIFEWAYS,"5,943.00",29/11/2016
Delivery Units,Adults and Communities,Other Agencies - Third Party P,30144794,LIFEWAYS,"3,656.00",29/11/2016
Delivery Units,Adults and Communities,Other Agencies - Third Party P,30144795,LIFEWAYS,"5,766.44",29/11/2016
Delivery Units,Adults and Communities,Other Agencies - Third Party P,30144796,LIFEWAYS,"4,828.24",29/11/2016
Delivery Units,Adults and Communities,Other Agencies - Third Party P,30144801,LIFEWAYS,"5,275.20",29/11/2016
Delivery Units,Adults and Communities,Other Agencies - Third Party P,30144802,LIFEWAYS,"2,993.64",29/11/2016
Delivery Units,Adults and Communities,Other Agencies - Third Party P,30142012,LIVABILITY,"2,400.00",08/11/2016
Delivery Units,Adults and Communities,Other Agencies - Third Party P,30142014,LIVABILITY,"3,424.00",08/11/2016
Delivery Units,Adults and Communities,Other Agencies - Third Party P,30142016,LIVABILITY,"2,400.00",08/11/2016
Delivery Units,Adults and Communities,Other Agencies - Third Party P,30142018,LIVABILITY,"3,424.00",08/11/2016
Delivery Units,Adults and Communities,Other Agencies - Third Party P,30142044,LIVABILITY,"4,891.20",08/11/2016
Delivery Units,Adults and Communities,Other Agencies - Third Party P,30142045,LIVABILITY,"5,279.24",08/11/2016
Delivery Units,Adults and Communities,Other Agencies - Third Party P,30142046,LIVABILITY,"4,891.20",08/11/2016
Delivery Units,Adults and Communities,Other Agencies - Third Party P,30142930,LIVABILITY,"2,485.71",18/11/2016
Delivery Units,Adults and Communities,Other Agencies - Third Party P,30142932,LIVABILITY,"3,424.00",18/11/2016
Delivery Units,Adults and Communities,Other Agencies - Third Party P,30142943,LIVABILITY,"4,891.20",18/11/2016
Delivery Units,Adults and Communities,Other Agencies - Third Party P,30144044,LIVABILITY,"4,891.20",24/11/2016
Delivery Units,Adults and Communities,Other Agencies - Third Party P,30145070,LIVABILITY,"5,279.24",30/11/2016
Delivery Units,Adults and Communities,Other Agencies - Third Party P,30144444,MACINTYRE CARE,758.80,28/11/2016
Delivery Units,Adults and Communities,Other Agencies - Third Party P,30142053,MADELAYNE COURT,"2,216.41",08/11/2016
Delivery Units,Adults and Communities,Other Agencies - Third Party P,30143203,MAISON MOTI LTD,"2,500.00",22/11/2016
Delivery Units,Adults and Communities,Other Agencies - Third Party P,30143205,MAISON MOTI LTD,"2,980.00",22/11/2016
Delivery Units,Adults and Communities,Other Agencies - Third Party P,30143206,MAISON MOTI LTD,"2,380.00",22/11/2016
Delivery Units,Adults and Communities,Other Agencies - Third Party P,30143217,MAISON MOTI LTD,"2,200.00",22/11/2016
Delivery Units,Adults and Communities,Other Agencies - Third Party P,30143218,MAISON MOTI LTD,"2,200.00",22/11/2016
Delivery Units,Adults and Communities,Other Agencies - Third Party P,30143289,MAISON MOTI LTD,"2,500.00",22/11/2016
Delivery Units,Adults and Communities,Other Agencies - Third Party P,30143290,MAISON MOTI LTD,"2,500.00",22/11/2016
Delivery Units,Adults and Communities,Other Agencies - Third Party P,30143291,MAISON MOTI LTD,"2,500.00",22/11/2016
Delivery Units,Adults and Communities,Other Agencies - Third Party P,30143292,MAISON MOTI LTD,"2,500.00",22/11/2016
Delivery Units,Adults and Communities,Other Agencies - Third Party P,30143293,MAISON MOTI LTD,"2,500.00",22/11/2016
Delivery Units,Adults and Communities,Other Agencies - Third Party P,30143294,MAISON MOTI LTD,"2,500.00",22/11/2016
Delivery Units,Adults and Communities,Other Agencies - Third Party P,30143295,MAISON MOTI LTD,"1,140.00",22/11/2016
Delivery Units,Adults and Communities,Other Agencies - Third Party P,30143296,MAISON MOTI LTD,"1,026.00",22/11/2016
Delivery Units,Adults and Communities,Other Agencies - Third Party P,30143304,MAISON MOTI LTD,"2,440.00",22/11/2016
Delivery Units,Adults and Communities,Other Agencies - Third Party P,30143394,MAISON MOTI LTD,343.40,22/11/2016
Delivery Units,Adults and Communities,Other Agencies - Third Party P,30141983,MANDELA HOUSE,"10,625.52",08/11/2016
Delivery Units,Adults and Communities,Other Agencies - Third Party P,30142789,MANDELA HOUSE,"3,541.84",18/11/2016
Delivery Units,Adults and Communities,Other Agencies - Third Party P,30144071,MARLBOROUGH HOUSE,"3,823.97",24/11/2016
Delivery Units,Adults and Communities,Other Agencies - Third Party P,30144810,MARRILYNE LODGE,"2,554.16",29/11/2016
Delivery Units,Adults and Communities,Other Agencies - Third Party P,30144992,MEERA NURSING HOME LIMITED,"2,320.37",30/11/2016
Delivery Units,Adults and Communities,Other Agencies - Third Party P,30144996,MEERA NURSING HOME LIMITED,"2,320.37",30/11/2016
Delivery Units,Adults and Communities,Other Agencies - Third Party P,30145000,MEERA NURSING HOME LIMITED,"2,320.37",30/11/2016
Delivery Units,Adults and Communities,Other Agencies - Third Party P,30145003,MEERA NURSING HOME LIMITED,"2,320.37",30/11/2016
Delivery Units,Adults and Communities,Other Agencies - Third Party P,30145007,MEERA NURSING HOME LIMITED,"2,320.37",30/11/2016
Delivery Units,Adults and Communities,Other Agencies - Third Party P,30145008,MEERA NURSING HOME LIMITED,"2,320.37",30/11/2016
Delivery Units,Adults and Communities,Other Agencies - Third Party P,30145009,MEERA NURSING HOME LIMITED,"2,320.37",30/11/2016
Delivery Units,Adults and Communities,Other Agencies - Third Party P,30145010,MEERA NURSING HOME LIMITED,"2,320.37",30/11/2016
Delivery Units,Adults and Communities,Other Agencies - Third Party P,30145012,MEERA NURSING HOME LIMITED,"2,320.37",30/11/2016
Delivery Units,Adults and Communities,Other Agencies - Third Party P,30144311,MENTAL HEALTH CARE (UK) LTD,"10,781.31",28/11/2016
Delivery Units,Adults and Communities,Other Agencies - Third Party P,30142942,METHODIST HOMES FOR THE AGED,"2,001.92",18/11/2016
Delivery Units,Adults and Communities,Other Agencies - Third Party P,30142946,METHODIST HOMES FOR THE AGED,"2,500.00",18/11/2016
Delivery Units,Adults and Communities,Other Agencies - Third Party P,30144034,METHODIST HOMES FOR THE AGED,"5,075.54",24/11/2016
Delivery Units,Adults and Communities,Other Agencies - Third Party P,30144035,METHODIST HOMES FOR THE AGED,"2,631.76",24/11/2016
Delivery Units,Adults and Communities,Other Agencies - Third Party P,30144036,METHODIST HOMES FOR THE AGED,"2,631.76",28/11/2016
Delivery Units,Adults and Communities,Other Agencies - Third Party P,30144043,METHODIST HOMES FOR THE AGED,"2,001.92",28/11/2016
Delivery Units,Adults and Communities,Other Agencies - Third Party P,30144051,METHODIST HOMES FOR THE AGED,"2,500.00",28/11/2016
Delivery Units,Adults and Communities,Other Agencies - Third Party P,30142417,METRO RADIO CARS,118.80,14/11/2016
Delivery Units,Adults and Communities,Other Agencies - Third Party P,30141425,METROPOLITAN HOUSING TRUST,25.88,01/11/2016
Delivery Units,Adults and Communities,Other Agencies - Third Party P,30141426,METROPOLITAN HOUSING TRUST,687.74,01/11/2016
Delivery Units,Adults and Communities,Other Agencies - Third Party P,30141427,METROPOLITAN HOUSING TRUST,702.53,01/11/2016
Delivery Units,Adults and Communities,Other Agencies - Third Party P,30141429,METROPOLITAN HOUSING TRUST,635.98,01/11/2016
Delivery Units,Adults and Communities,Other Agencies - Third Party P,30141580,METROPOLITAN HOUSING TRUST,684.04,10/11/2016
Delivery Units,Adults and Communities,Other Agencies - Third Party P,30142026,MISSION CARE (ELMWOOD NURSING HOME),"12,561.94",08/11/2016
Delivery Units,Adults and Communities,Other Agencies - Third Party P,30142654,ML HOMES LTD,"1,780.80",15/11/2016
Delivery Units,Adults and Communities,Other Agencies - Third Party P,30142655,ML HOMES LTD,"1,740.00",15/11/2016
Delivery Units,Adults and Communities,Other Agencies - Third Party P,30142656,ML HOMES LTD,"2,118.36",15/11/2016
Delivery Units,Adults and Communities,Other Agencies - Third Party P,30142657,ML HOMES LTD,"1,433.56",15/11/2016
Delivery Units,Adults and Communities,Other Agencies - Third Party P,30142658,ML HOMES LTD,"1,751.16",15/11/2016
Delivery Units,Adults and Communities,Other Agencies - Third Party P,30142671,ML HOMES LTD,"2,118.36",15/11/2016
Delivery Units,Adults and Communities,Other Agencies - Third Party P,30142676,ML HOMES LTD,"1,417.24",15/11/2016
Delivery Units,Adults and Communities,Other Agencies - Third Party P,30142677,ML HOMES LTD,"1,428.68",15/11/2016
Delivery Units,Adults and Communities,Other Agencies - Third Party P,30142678,ML HOMES LTD,"1,765.80",15/11/2016
Delivery Units,Adults and Communities,Other Agencies - Third Party P,30142680,ML HOMES LTD,"1,751.16",15/11/2016
Delivery Units,Adults and Communities,Other Agencies - Third Party P,30142698,ML HOMES LTD,"1,767.40",15/11/2016
Delivery Units,Adults and Communities,Other Agencies - Third Party P,30142707,ML HOMES LTD,"1,780.00",15/11/2016
Delivery Units,Adults and Communities,Other Agencies - Third Party P,30142708,ML HOMES LTD,"1,780.80",15/11/2016
Delivery Units,Adults and Communities,Other Agencies - Third Party P,30141601,MOREWAYS HEALTHCARE,"3,026.12",02/11/2016
Delivery Units,Adults and Communities,Other Agencies - Third Party P,30141603,MOREWAYS HEALTHCARE,"2,600.00",02/11/2016
Delivery Units,Adults and Communities,Other Agencies - Third Party P,30141605,MOREWAYS HEALTHCARE,"2,824.00",02/11/2016
Delivery Units,Adults and Communities,Other Agencies - Third Party P,30141616,MOREWAYS HEALTHCARE,"2,200.00",02/11/2016
Delivery Units,Adults and Communities,Other Agencies - Third Party P,30142005,MOREWAYS HEALTHCARE,"2,600.00",08/11/2016
Delivery Units,Adults and Communities,Other Agencies - Third Party P,30143360,MOREWAYS HEALTHCARE,"2,907.00",22/11/2016
Delivery Units,Adults and Communities,Other Agencies - Third Party P,30143386,MOREWAYS HEALTHCARE,"1,800.00",22/11/2016
Delivery Units,Adults and Communities,Other Agencies - Third Party P,30144804,MOREWAYS HEALTHCARE,"3,026.12",29/11/2016
Delivery Units,Adults and Communities,Other Agencies - Third Party P,30144805,MOREWAYS HEALTHCARE,"2,600.00",29/11/2016
Delivery Units,Adults and Communities,Other Agencies - Third Party P,30144812,MOREWAYS HEALTHCARE,"2,824.00",29/11/2016
Delivery Units,Adults and Communities,Other Agencies - Third Party P,30144884,MOREWAYS HEALTHCARE,"2,200.00",29/11/2016
Delivery Units,Adults and Communities,Other Agencies - Third Party P,30142191,NAZARETH HOUSE,"3,036.00",09/11/2016
Delivery Units,Adults and Communities,Other Agencies - Third Party P,30142192,NAZARETH HOUSE,"2,031.76",09/11/2016
Delivery Units,Adults and Communities,Other Agencies - Third Party P,30142193,NAZARETH HOUSE,"2,031.76",09/11/2016
Delivery Units,Adults and Communities,Other Agencies - Third Party P,30142194,NAZARETH HOUSE,"2,031.76",09/11/2016
Delivery Units,Adults and Communities,Other Agencies - Third Party P,30142195,NAZARETH HOUSE,"2,031.76",09/11/2016
Delivery Units,Adults and Communities,Other Agencies - Third Party P,30142197,NAZARETH HOUSE,"2,031.76",09/11/2016
Delivery Units,Adults and Communities,Other Agencies - Third Party P,30142198,NAZARETH HOUSE,"2,211.80",09/11/2016
Delivery Units,Adults and Communities,Other Agencies - Third Party P,30142199,NAZARETH HOUSE,"2,031.76",09/11/2016
Delivery Units,Adults and Communities,Other Agencies - Third Party P,30142200,NAZARETH HOUSE,"2,031.76",09/11/2016
Delivery Units,Adults and Communities,Other Agencies - Third Party P,30143362,NAZARETH HOUSE,"3,990.96",22/11/2016
Delivery Units,Adults and Communities,Other Agencies - Third Party P,30143363,NAZARETH HOUSE,"-1,668.95",22/11/2016
Delivery Units,Adults and Communities,Other Agencies - Third Party P,30144013,NAZARETH HOUSE,"3,036.00",24/11/2016
Delivery Units,Adults and Communities,Other Agencies - Third Party P,30144014,NAZARETH HOUSE,"2,031.76",24/11/2016
Delivery Units,Adults and Communities,Other Agencies - Third Party P,30144015,NAZARETH HOUSE,"2,031.76",24/11/2016
Delivery Units,Adults and Communities,Other Agencies - Third Party P,30144016,NAZARETH HOUSE,"2,031.76",24/11/2016
Delivery Units,Adults and Communities,Other Agencies - Third Party P,30144017,NAZARETH HOUSE,"2,031.76",24/11/2016
Delivery Units,Adults and Communities,Other Agencies - Third Party P,30144018,NAZARETH HOUSE,"2,031.76",24/11/2016
Delivery Units,Adults and Communities,Other Agencies - Third Party P,30144019,NAZARETH HOUSE,"2,031.76",24/11/2016
Delivery Units,Adults and Communities,Other Agencies - Third Party P,30144020,NAZARETH HOUSE,"2,650.40",24/11/2016
Delivery Units,Adults and Communities,Other Agencies - Third Party P,30144021,NAZARETH HOUSE,"2,211.80",24/11/2016
Delivery Units,Adults and Communities,Other Agencies - Third Party P,30144022,NAZARETH HOUSE,"2,031.76",24/11/2016
Delivery Units,Adults and Communities,Other Agencies - Third Party P,30144024,NAZARETH HOUSE,"2,031.76",24/11/2016
Delivery Units,Adults and Communities,Other Agencies - Third Party P,30144025,NAZARETH HOUSE,"2,211.80",24/11/2016
Delivery Units,Adults and Communities,Other Agencies - Third Party P,30144026,NAZARETH HOUSE,"2,031.76",24/11/2016
Delivery Units,Adults and Communities,Other Agencies - Third Party P,30144027,NAZARETH HOUSE,"2,031.76",24/11/2016
Delivery Units,Adults and Communities,Other Agencies - Third Party P,30144028,NAZARETH HOUSE,"2,249.45",24/11/2016
Delivery Units,Adults and Communities,Other Agencies - Third Party P,30144201,NAZARETH HOUSE,"2,031.76",25/11/2016
Delivery Units,Adults and Communities,Other Agencies - Third Party P,30141552,NEWCENTURY CARE LTD,599.64,02/11/2016
Delivery Units,Adults and Communities,Other Agencies - Third Party P,30142725,NEWCENTURY CARE LTD,"2,398.56",18/11/2016
Delivery Units,Adults and Communities,Other Agencies - Third Party P,30144100,NEWCENTURY CARE LTD,"3,642.86",25/11/2016
Delivery Units,Adults and Communities,Other Agencies - Third Party P,30144101,NEWCENTURY CARE LTD,"2,569.89",25/11/2016
Delivery Units,Adults and Communities,Other Agencies - Third Party P,30144102,NEWCENTURY CARE LTD,"2,569.89",25/11/2016
Delivery Units,Adults and Communities,Other Agencies - Third Party P,30144103,NEWCENTURY CARE LTD,"2,569.89",25/11/2016
Delivery Units,Adults and Communities,Other Agencies - Third Party P,30144937,NEWCENTURY CARE LTD,"6,678.57",30/11/2016
Delivery Units,Adults and Communities,Other Agencies - Third Party P,30142465,NEXT STEP SUPPORT LIMITED,"2,240.00",14/11/2016
Delivery Units,Adults and Communities,Other Agencies - Third Party P,30143414,NEXT STEP SUPPORT LIMITED,"2,000.00",22/11/2016
Delivery Units,Adults and Communities,Other Agencies - Third Party P,30141408,NEXUS FOSTERING LTD,"1,714.20",01/11/2016
Delivery Units,Adults and Communities,Other Agencies - Third Party P,30144327,NIGHTINGALES RESIDENTIAL CARE HOME,"3,218.79",28/11/2016
Delivery Units,Adults and Communities,Other Agencies - Third Party P,30144328,NIGHTINGALES RESIDENTIAL CARE HOME,"3,218.79",28/11/2016
Delivery Units,Adults and Communities,Other Agencies - Third Party P,30142948,NORWOOD RAVENSWOOD SCHOOLS LTD,"1,592.28",18/11/2016
Delivery Units,Adults and Communities,Other Agencies - Third Party P,30142964,NORWOOD RAVENSWOOD SCHOOLS LTD,"5,540.00",18/11/2016
Delivery Units,Adults and Communities,Other Agencies - Third Party P,30144073,NORWOOD RAVENSWOOD SCHOOLS LTD,"-1,348.45",24/11/2016
Delivery Units,Adults and Communities,Other Agencies - Third Party P,30144074,NORWOOD RAVENSWOOD SCHOOLS LTD,-175.89,24/11/2016
Delivery Units,Adults and Communities,Other Agencies - Third Party P,30144075,NORWOOD RAVENSWOOD SCHOOLS LTD,615.60,24/11/2016
